{"text_format":"1","workbook":"xlsx","n_sheets":7,"sheets":["Instructions","Dashboard","TT","Backend","Data In","Data Out","Settings"],"not_rendered":{"charts":1,"images":9,"macros":1,"external_links":0,"defined_names":93,"comments":0,"pivot_tables":0},"unopened":[],"bounds":{"document_bytes":16777216,"sheet_cells":100000,"rows_first":2000,"rows_last":500,"rows_between":2000,"halvings":0,"cell_chars":16384,"cell_head_chars":4096},"cells_cut":0,"cells_raw":0,"read":"whole","date_system":"1900"}

{"sheet":"Instructions","index":0,"n_rows":4,"n_cols":3,"rows_kept":4,"cut":false,"hidden":false,"merged":[[1,1,1,3]]}
[null,"v. 210714"]
[null,{"$f":"TT!$O$3","v":"Select Language"}]
[]
[null,null,"English"]

{"sheet":"Dashboard","index":1,"n_rows":31,"n_cols":39,"rows_kept":31,"cut":false,"hidden":false,"merged":[[8,43,8,44],[1,2,1,39],[5,4,5,6],[4,11,4,12],[14,5,15,6],[6,5,7,5],[3,5,3,7],[3,9,3,14],[3,15,3,17],[3,18,3,20],[3,21,3,23],[3,24,3,26],[3,27,3,29],[3,30,3,32],[3,33,3,35],[3,36,3,38],[17,5,17,7],[13,4,13,7],[11,5,12,7],[8,25,9,25],[8,22,9,22],[16,16,17,16],[16,22,17,22],[12,22,13,22],[16,25,17,25],[12,25,13,25],[25,10,25,11],[29,10,29,11],[8,19,9,19],[9,10,9,11],[13,10,13,11],[17,10,17,11],[21,10,21,11],[24,16,25,16],[28,16,29,16],[28,19,29,19],[24,19,25,19],[20,19,21,19],[16,19,17,19],[12,19,13,19],[8,16,9,16],[12,16,13,16],[28,37,29,37],[24,37,25,37],[24,34,25,34],[24,31,25,31],[24,28,25,28],[28,34,29,34],[20,16,21,16],[28,22,29,22],[28,25,29,25],[28,28,29,28],[28,31,29,31],[24,22,25,22],[20,22,21,22],[24,25,25,25],[20,25,21,25],[20,37,21,37],[16,37,17,37],[12,37,13,37],[8,37,9,37],[20,28,21,28],[20,31,21,31],[20,34,21,34],[16,34,17,34],[16,31,17,31],[16,28,17,28],[12,28,13,28],[12,31,13,31],[12,34,13,34],[8,34,9,34],[8,31,9,31],[8,28,9,28]]}
[1,null,null,null,null,null,null,null,null,{"$f":"IF(ProgRunning=TRUE,'Data In'!B5+1,9)","v":9},null,null,null,null,null,1,1,1,2,2,2,3,3,3,4,4,4,5,5,5,6,6,6,7,7,7,8,8,8]
[{"$f":"RIGHT(CELL(\"filename\",A2),LEN(CELL(\"filename\",A2))-FIND(\"]\",CELL(\"filename\",A2)))","v":"Dashboard"},null,{"$f":"TT!$O$8","v":"Control Board"}]
[]
[null,null,null,null,null,null,null,null,null,null,null,null,null,null,null,{"$f":"TT!$O$24","v":"Column A"},null,null,{"$f":"TT!$O$25","v":"Column B"},null,null,{"$f":"TT!$O$26","v":"Column C"},null,null,{"$f":"TT!$O$27","v":"Column D"},null,null,{"$f":"TT!$O$28","v":"Column E"},null,null,{"$f":"TT!$O$29","v":"Column F"},null,null,{"$f":"TT!$O$30","v":"Column G"},null,null,{"$f":"TT!$O$31","v":"Column H"}]
[null,null,null,null,null,null,null,null,null,null,null,null,null,null,{"$f":"TT!$O$37","v":"Brightness"}]
[null,null,null,null,{"$f":"TT!$O$9","v":"Click to add active lights:"},null,null,null,null,null,null,null,null,null,{"$f":"TT!$O$38","v":"Speed"}]
[null,null,null,null,null,5]
[null,1]
[{"$f":"INDEX(Backend!$AE$3:$AE$9,MATCH(K10,Backend!$AD$3:$AD$9,0))","v":1},1,null,null,null,null,null,null,null,null,{"$f":"TT!$O$18","v":"Light 1"},null,null,null,null,null,{"$f":"IF(INDEX(BackendTable[],MATCH(PatternSelect&\"_\"&Q$1,BackendTable[LineID],0),MATCH(\"Light\"&$B9,BackendTable[#Headers],0))=1,\"I\",\"O\")","v":"I"},null,null,{"$f":"IF(INDEX(BackendTable[],MATCH(PatternSelect&\"_\"&T$1,BackendTable[LineID],0),MATCH(\"Light\"&$B9,BackendTable[#Headers],0))=1,\"I\",\"O\")","v":"O"},null,null,{"$f":"IF(INDEX(BackendTable[],MATCH(PatternSelect&\"_\"&W$1,BackendTable[LineID],0),MATCH(\"Light\"&$B9,BackendTable[#Headers],0))=1,\"I\",\"O\")","v":"I"},null,null,{"$f":"IF(INDEX(BackendTable[],MATCH(PatternSelect&\"_\"&Z$1,BackendTable[LineID],0),MATCH(\"Light\"&$B9,BackendTable[#Headers],0))=1,\"I\",\"O\")","v":"I"},null,null,{"$f":"IF(INDEX(BackendTable[],MATCH(PatternSelect&\"_\"&AC$1,BackendTable[LineID],0),MATCH(\"Light\"&$B9,BackendTable[#Headers],0))=1,\"I\",\"O\")","v":"O"},null,null,{"$f":"IF(INDEX(BackendTable[],MATCH(PatternSelect&\"_\"&AF$1,BackendTable[LineID],0),MATCH(\"Light\"&$B9,BackendTable[#Headers],0))=1,\"I\",\"O\")","v":"O"},null,null,{"$f":"IF(INDEX(BackendTable[],MATCH(PatternSelect&\"_\"&AI$1,BackendTable[LineID],0),MATCH(\"Light\"&$B9,BackendTable[#Headers],0))=1,\"I\",\"O\")","v":"I"},null,null,{"$f":"IF(INDEX(BackendTable[],MATCH(PatternSelect&\"_\"&AL$1,BackendTable[LineID],0),MATCH(\"Light\"&$B9,BackendTable[#Headers],0))=1,\"I\",\"O\")","v":"O"}]
[{"$f":"A9","v":1},1,null,null,null,null,null,null,null,null,"Colorless"]
[null,1]
[2,2,null,null,null,{"$f":"TT!$O$10","v":"My Pattern"}]
[{"$f":"INDEX(Backend!$AE$3:$AE$9,MATCH(K14,Backend!$AD$3:$AD$9,0))","v":3},2,null,null,null,null,null,null,null,null,{"$f":"TT!$O$19","v":"Light 2"},null,null,null,null,null,{"$f":"IF(INDEX(BackendTable[],MATCH(PatternSelect&\"_\"&Q$1,BackendTable[LineID],0),MATCH(\"Light\"&$B13,BackendTable[#Headers],0))=1,\"I\",\"O\")","v":"I"},null,null,{"$f":"IF(INDEX(BackendTable[],MATCH(PatternSelect&\"_\"&T$1,BackendTable[LineID],0),MATCH(\"Light\"&$B13,BackendTable[#Headers],0))=1,\"I\",\"O\")","v":"O"},null,null,{"$f":"IF(INDEX(BackendTable[],MATCH(PatternSelect&\"_\"&W$1,BackendTable[LineID],0),MATCH(\"Light\"&$B13,BackendTable[#Headers],0))=1,\"I\",\"O\")","v":"I"},null,null,{"$f":"IF(INDEX(BackendTable[],MATCH(PatternSelect&\"_\"&Z$1,BackendTable[LineID],0),MATCH(\"Light\"&$B13,BackendTable[#Headers],0))=1,\"I\",\"O\")","v":"O"},null,null,{"$f":"IF(INDEX(BackendTable[],MATCH(PatternSelect&\"_\"&AC$1,BackendTable[LineID],0),MATCH(\"Light\"&$B13,BackendTable[#Headers],0))=1,\"I\",\"O\")","v":"I"},null,null,{"$f":"IF(INDEX(BackendTable[],MATCH(PatternSelect&\"_\"&AF$1,BackendTable[LineID],0),MATCH(\"Light\"&$B13,BackendTable[#Headers],0))=1,\"I\",\"O\")","v":"O"},null,null,{"$f":"IF(INDEX(BackendTable[],MATCH(PatternSelect&\"_\"&AI$1,BackendTable[LineID],0),MATCH(\"Light\"&$B13,BackendTable[#Headers],0))=1,\"I\",\"O\")","v":"O"},null,null,{"$f":"IF(INDEX(BackendTable[],MATCH(PatternSelect&\"_\"&AL$1,BackendTable[LineID],0),MATCH(\"Light\"&$B13,BackendTable[#Headers],0))=1,\"I\",\"O\")","v":"I"}]
[{"$f":"A13","v":3},2,null,null,{"$f":"TT!$O$11","v":"Select preset"},null,null,null,null,null,"Red"]
[null,2,null,null,null,{"$f":"TT!$O$12","v":"Preset 1"}]
[3,3]
[{"$f":"INDEX(Backend!$AE$3:$AE$9,MATCH(K18,Backend!$AD$3:$AD$9,0))","v":4},3,null,null,null,{"$f":"TT!$O$13","v":"Preset 2"},null,null,null,null,{"$f":"TT!$O$20","v":"Light 3"},null,null,null,null,null,{"$f":"IF(INDEX(BackendTable[],MATCH(PatternSelect&\"_\"&Q$1,BackendTable[LineID],0),MATCH(\"Light\"&$B17,BackendTable[#Headers],0))=1,\"I\",\"O\")","v":"O"},null,null,{"$f":"IF(INDEX(BackendTable[],MATCH(PatternSelect&\"_\"&T$1,BackendTable[LineID],0),MATCH(\"Light\"&$B17,BackendTable[#Headers],0))=1,\"I\",\"O\")","v":"I"},null,null,{"$f":"IF(INDEX(BackendTable[],MATCH(PatternSelect&\"_\"&W$1,BackendTable[LineID],0),MATCH(\"Light\"&$B17,BackendTable[#Headers],0))=1,\"I\",\"O\")","v":"I"},null,null,{"$f":"IF(INDEX(BackendTable[],MATCH(PatternSelect&\"_\"&Z$1,BackendTable[LineID],0),MATCH(\"Light\"&$B17,BackendTable[#Headers],0))=1,\"I\",\"O\")","v":"O"},null,null,{"$f":"IF(INDEX(BackendTable[],MATCH(PatternSelect&\"_\"&AC$1,BackendTable[LineID],0),MATCH(\"Light\"&$B17,BackendTable[#Headers],0))=1,\"I\",\"O\")","v":"O"},null,null,{"$f":"IF(INDEX(BackendTable[],MATCH(PatternSelect&\"_\"&AF$1,BackendTable[LineID],0),MATCH(\"Light\"&$B17,BackendTable[#Headers],0))=1,\"I\",\"O\")","v":"I"},null,null,{"$f":"IF(INDEX(BackendTable[],MATCH(PatternSelect&\"_\"&AI$1,BackendTable[LineID],0),MATCH(\"Light\"&$B17,BackendTable[#Headers],0))=1,\"I\",\"O\")","v":"I"},null,null,{"$f":"IF(INDEX(BackendTable[],MATCH(PatternSelect&\"_\"&AL$1,BackendTable[LineID],0),MATCH(\"Light\"&$B17,BackendTable[#Headers],0))=1,\"I\",\"O\")","v":"O"}]
[{"$f":"A17","v":4},3,null,null,null,{"$f":"TT!$O$14","v":"Preset 3"},null,null,null,null,"Yellow"]
[null,3]
[4,4]
[{"$f":"INDEX(Backend!$AE$3:$AE$9,MATCH(K22,Backend!$AD$3:$AD$9,0))","v":2},4,null,null,null,null,null,null,null,null,{"$f":"TT!$O$21","v":"Light 4"},null,null,null,null,null,{"$f":"IF(INDEX(BackendTable[],MATCH(PatternSelect&\"_\"&Q$1,BackendTable[LineID],0),MATCH(\"Light\"&$B21,BackendTable[#Headers],0))=1,\"I\",\"O\")","v":"O"},null,null,{"$f":"IF(INDEX(BackendTable[],MATCH(PatternSelect&\"_\"&T$1,BackendTable[LineID],0),MATCH(\"Light\"&$B21,BackendTable[#Headers],0))=1,\"I\",\"O\")","v":"I"},null,null,{"$f":"IF(INDEX(BackendTable[],MATCH(PatternSelect&\"_\"&W$1,BackendTable[LineID],0),MATCH(\"Light\"&$B21,BackendTable[#Headers],0))=1,\"I\",\"O\")","v":"I"},null,null,{"$f":"IF(INDEX(BackendTable[],MATCH(PatternSelect&\"_\"&Z$1,BackendTable[LineID],0),MATCH(\"Light\"&$B21,BackendTable[#Headers],0))=1,\"I\",\"O\")","v":"O"},null,null,{"$f":"IF(INDEX(BackendTable[],MATCH(PatternSelect&\"_\"&AC$1,BackendTable[LineID],0),MATCH(\"Light\"&$B21,BackendTable[#Headers],0))=1,\"I\",\"O\")","v":"O"},null,null,{"$f":"IF(INDEX(BackendTable[],MATCH(PatternSelect&\"_\"&AF$1,BackendTable[LineID],0),MATCH(\"Light\"&$B21,BackendTable[#Headers],0))=1,\"I\",\"O\")","v":"I"},null,null,{"$f":"IF(INDEX(BackendTable[],MATCH(PatternSelect&\"_\"&AI$1,BackendTable[LineID],0),MATCH(\"Light\"&$B21,BackendTable[#Headers],0))=1,\"I\",\"O\")","v":"O"},null,null,{"$f":"IF(INDEX(BackendTable[],MATCH(PatternSelect&\"_\"&AL$1,BackendTable[LineID],0),MATCH(\"Light\"&$B21,BackendTable[#Headers],0))=1,\"I\",\"O\")","v":"I"}]
[{"$f":"A21","v":2},4,null,null,null,null,null,null,null,null,"Green"]
[null,4]
[5,5]
[{"$f":"INDEX(Backend!$AE$3:$AE$9,MATCH(K26,Backend!$AD$3:$AD$9,0))","v":3},5,null,null,null,null,null,null,null,null,{"$f":"TT!$O$22","v":"Light 5"},null,null,null,null,null,{"$f":"IF(INDEX(BackendTable[],MATCH(PatternSelect&\"_\"&Q$1,BackendTable[LineID],0),MATCH(\"Light\"&$B25,BackendTable[#Headers],0))=1,\"I\",\"O\")","v":"I"},null,null,{"$f":"IF(INDEX(BackendTable[],MATCH(PatternSelect&\"_\"&T$1,BackendTable[LineID],0),MATCH(\"Light\"&$B25,BackendTable[#Headers],0))=1,\"I\",\"O\")","v":"O"},null,null,{"$f":"IF(INDEX(BackendTable[],MATCH(PatternSelect&\"_\"&W$1,BackendTable[LineID],0),MATCH(\"Light\"&$B25,BackendTable[#Headers],0))=1,\"I\",\"O\")","v":"I"},null,null,{"$f":"IF(INDEX(BackendTable[],MATCH(PatternSelect&\"_\"&Z$1,BackendTable[LineID],0),MATCH(\"Light\"&$B25,BackendTable[#Headers],0))=1,\"I\",\"O\")","v":"O"},null,null,{"$f":"IF(INDEX(BackendTable[],MATCH(PatternSelect&\"_\"&AC$1,BackendTable[LineID],0),MATCH(\"Light\"&$B25,BackendTable[#Headers],0))=1,\"I\",\"O\")","v":"I"},null,null,{"$f":"IF(INDEX(BackendTable[],MATCH(PatternSelect&\"_\"&AF$1,BackendTable[LineID],0),MATCH(\"Light\"&$B25,BackendTable[#Headers],0))=1,\"I\",\"O\")","v":"O"},null,null,{"$f":"IF(INDEX(BackendTable[],MATCH(PatternSelect&\"_\"&AI$1,BackendTable[LineID],0),MATCH(\"Light\"&$B25,BackendTable[#Headers],0))=1,\"I\",\"O\")","v":"I"},null,null,{"$f":"IF(INDEX(BackendTable[],MATCH(PatternSelect&\"_\"&AL$1,BackendTable[LineID],0),MATCH(\"Light\"&$B25,BackendTable[#Headers],0))=1,\"I\",\"O\")","v":"O"}]
[{"$f":"A25","v":3},5,null,null,null,null,null,null,null,null,"Red"]
[null,5]
[6,6]
[{"$f":"INDEX(Backend!$AE$3:$AE$9,MATCH(K30,Backend!$AD$3:$AD$9,0))","v":5},6,null,null,null,null,null,null,null,null,{"$f":"TT!$O$23","v":"Light 6"},null,null,null,null,null,{"$f":"IF(INDEX(BackendTable[],MATCH(PatternSelect&\"_\"&Q$1,BackendTable[LineID],0),MATCH(\"Light\"&$B29,BackendTable[#Headers],0))=1,\"I\",\"O\")","v":"O"},null,null,{"$f":"IF(INDEX(BackendTable[],MATCH(PatternSelect&\"_\"&T$1,BackendTable[LineID],0),MATCH(\"Light\"&$B29,BackendTable[#Headers],0))=1,\"I\",\"O\")","v":"I"},null,null,{"$f":"IF(INDEX(BackendTable[],MATCH(PatternSelect&\"_\"&W$1,BackendTable[LineID],0),MATCH(\"Light\"&$B29,BackendTable[#Headers],0))=1,\"I\",\"O\")","v":"I"},null,null,{"$f":"IF(INDEX(BackendTable[],MATCH(PatternSelect&\"_\"&Z$1,BackendTable[LineID],0),MATCH(\"Light\"&$B29,BackendTable[#Headers],0))=1,\"I\",\"O\")","v":"I"},null,null,{"$f":"IF(INDEX(BackendTable[],MATCH(PatternSelect&\"_\"&AC$1,BackendTable[LineID],0),MATCH(\"Light\"&$B29,BackendTable[#Headers],0))=1,\"I\",\"O\")","v":"O"},null,null,{"$f":"IF(INDEX(BackendTable[],MATCH(PatternSelect&\"_\"&AF$1,BackendTable[LineID],0),MATCH(\"Light\"&$B29,BackendTable[#Headers],0))=1,\"I\",\"O\")","v":"O"},null,null,{"$f":"IF(INDEX(BackendTable[],MATCH(PatternSelect&\"_\"&AI$1,BackendTable[LineID],0),MATCH(\"Light\"&$B29,BackendTable[#Headers],0))=1,\"I\",\"O\")","v":"O"},null,null,{"$f":"IF(INDEX(BackendTable[],MATCH(PatternSelect&\"_\"&AL$1,BackendTable[LineID],0),MATCH(\"Light\"&$B29,BackendTable[#Headers],0))=1,\"I\",\"O\")","v":"I"}]
[{"$f":"A29","v":5},6,null,null,null,null,null,null,null,null,"Blue"]
[null,6]

{"sheet":"TT","index":2,"n_rows":62,"n_cols":20,"rows_kept":62,"cut":false,"hidden":true,"merged":[]}
[]
[null,"Row","Tab","Location","Language 1","Language 2","Language 3","Language 4","Language 5","Language 6","Language 7","Language 8","Language 9","Language 10","Display"]
[null,{"$f":"ROW()","v":3},null,{"$f":"TT[[#This Row],[Tab]]&TT[[#This Row],[Row]]","v":"3"},"Select Language","Selecionar Idioma","Seleccionar Idioma",null,null,null,null,null,null,null,{"$f":"INDEX(TT[[#This Row],[Language 1]:[Language 10]],1,LangSelect)","v":"Select Language"},null,null,"Select Language",{"$f":"Instructions!C4","v":"English"},{"$f":"INDEX($R$5:$R$14,MATCH($S$3,$S$5:$S$14,0))","v":1}]
[null,{"$f":"ROW()","v":4},null,{"$f":"TT[[#This Row],[Tab]]&TT[[#This Row],[Row]]","v":"4"},"This workbook uses \"Macros\" (automated Excel commands) to assist in the data collection process","Esta pasta de trabalho usa \"Macros\" (comandos automatizados do Excel) para auxiliar no processo de coleta de dados","Este cuaderno utiliza \"Macros\" (comandos automatizados de Excel) para ayudar en el proceso de recolección de datos",null,null,null,null,null,null,null,{"$f":"INDEX(TT[[#This Row],[Language 1]:[Language 10]],1,LangSelect)","v":"This workbook uses \"Macros\" (automated Excel commands) to assist in the data collection process"}]
[null,{"$f":"ROW()","v":5},null,{"$f":"TT[[#This Row],[Tab]]&TT[[#This Row],[Row]]","v":"5"},"To use these Macros and have buttons on the spreadsheets work, you must \"Enable\" the Macros","Para usar essas Macros e ter botões nas planilhas funcionando, você deve \"Habilitar\" as Macros","Para utilizar estas macros y hacer que funcionen los botones en las hojas de cálculo, debes \"Habilitar\" las Macros",null,null,null,null,null,null,null,{"$f":"INDEX(TT[[#This Row],[Language 1]:[Language 10]],1,LangSelect)","v":"To use these Macros and have buttons on the spreadsheets work, you must \"Enable\" the Macros"},null,null,1,"English"]
[null,{"$f":"ROW()","v":6},null,{"$f":"TT[[#This Row],[Tab]]&TT[[#This Row],[Row]]","v":"6"},"Click the \"Enable Content\" button that appears above when you first open this workbook","Clique no botão \"Habilitar Conteúdo\" exibido acima quando você abrir a pasta de trabalho pela primeira vez","Haz clic en el botón \"Habilitar Contenido\" que aparece en la parte superior cuando abres este cuaderno de ejercicios por primera vez",null,null,null,null,null,null,null,{"$f":"INDEX(TT[[#This Row],[Language 1]:[Language 10]],1,LangSelect)","v":"Click the \"Enable Content\" button that appears above when you first open this workbook"},null,null,2,"Português"]
[null,{"$f":"ROW()","v":7},null,{"$f":"TT[[#This Row],[Tab]]&TT[[#This Row],[Row]]","v":"7"},"Once you have enabled macros, you can use the workbook.  If you do not see this message, macros are enabled","Depois de habilitar as macros, você poderá usar a pasta de trabalho.  Se você não vê essa mensagem, as macros estão habilitadas","Una vez que hayas habilitado las macros, puedes utilizar el cuaderno de ejercicios. Si no ves este mensaje, las macros están habilitadas",null,null,null,null,null,null,null,{"$f":"INDEX(TT[[#This Row],[Language 1]:[Language 10]],1,LangSelect)","v":"Once you have enabled macros, you can use the workbook.  If you do not see this message, macros are enabled"},null,null,3,"Español"]
[null,{"$f":"ROW()","v":8},null,{"$f":"TT[[#This Row],[Tab]]&TT[[#This Row],[Row]]","v":"8"},"Control Board","Tablero de Control","Painel de Controle",null,null,null,null,null,null,null,{"$f":"INDEX(TT[[#This Row],[Language 1]:[Language 10]],1,LangSelect)","v":"Control Board"},null,null,4]
[null,{"$f":"ROW()","v":9},null,{"$f":"TT[[#This Row],[Tab]]&TT[[#This Row],[Row]]","v":"9"},"Click to add active lights:","Haz clic para agregar luces activas:","Clique para adicionar as luzes ativas:",null,null,null,null,null,null,null,{"$f":"INDEX(TT[[#This Row],[Language 1]:[Language 10]],1,LangSelect)","v":"Click to add active lights:"},null,null,5]
[null,{"$f":"ROW()","v":10},null,{"$f":"TT[[#This Row],[Tab]]&TT[[#This Row],[Row]]","v":"10"},"My Pattern","Meu Padrão","Mi Patrón",null,null,null,null,null,null,null,{"$f":"INDEX(TT[[#This Row],[Language 1]:[Language 10]],1,LangSelect)","v":"My Pattern"},null,null,6]
[null,{"$f":"ROW()","v":11},null,{"$f":"TT[[#This Row],[Tab]]&TT[[#This Row],[Row]]","v":"11"},"Select preset","Selecionar predefinição","Seleccionar preajuste",null,null,null,null,null,null,null,{"$f":"INDEX(TT[[#This Row],[Language 1]:[Language 10]],1,LangSelect)","v":"Select preset"},null,null,7]
[null,{"$f":"ROW()","v":12},null,{"$f":"TT[[#This Row],[Tab]]&TT[[#This Row],[Row]]","v":"12"},"Preset 1","Predefinição 1","Preajuste 1",null,null,null,null,null,null,null,{"$f":"INDEX(TT[[#This Row],[Language 1]:[Language 10]],1,LangSelect)","v":"Preset 1"},null,null,8]
[null,{"$f":"ROW()","v":13},null,{"$f":"TT[[#This Row],[Tab]]&TT[[#This Row],[Row]]","v":"13"},"Preset 2","Predefinição 2","Preajuste 2",null,null,null,null,null,null,null,{"$f":"INDEX(TT[[#This Row],[Language 1]:[Language 10]],1,LangSelect)","v":"Preset 2"},null,null,9]
[null,{"$f":"ROW()","v":14},null,{"$f":"TT[[#This Row],[Tab]]&TT[[#This Row],[Row]]","v":"14"},"Preset 3","Predefinição 3","Preajuste 3",null,null,null,null,null,null,null,{"$f":"INDEX(TT[[#This Row],[Language 1]:[Language 10]],1,LangSelect)","v":"Preset 3"},null,null,10]
[null,{"$f":"ROW()","v":15},null,{"$f":"TT[[#This Row],[Tab]]&TT[[#This Row],[Row]]","v":"15"},"Play Once","Jogar Uma Vez","Jugar una vez",null,null,null,null,null,null,null,{"$f":"INDEX(TT[[#This Row],[Language 1]:[Language 10]],1,LangSelect)","v":"Play Once"}]
[null,{"$f":"ROW()","v":16},null,{"$f":"TT[[#This Row],[Tab]]&TT[[#This Row],[Row]]","v":"16"},"Loop","Repetir","Repetir",null,null,null,null,null,null,null,{"$f":"INDEX(TT[[#This Row],[Language 1]:[Language 10]],1,LangSelect)","v":"Loop"}]
[null,{"$f":"ROW()","v":17},null,{"$f":"TT[[#This Row],[Tab]]&TT[[#This Row],[Row]]","v":"17"},"Stop","Parar","Parar",null,null,null,null,null,null,null,{"$f":"INDEX(TT[[#This Row],[Language 1]:[Language 10]],1,LangSelect)","v":"Stop"}]
[null,{"$f":"ROW()","v":18},null,{"$f":"TT[[#This Row],[Tab]]&TT[[#This Row],[Row]]","v":"18"},"Light 1","Luz 1","Luz 1",null,null,null,null,null,null,null,{"$f":"INDEX(TT[[#This Row],[Language 1]:[Language 10]],1,LangSelect)","v":"Light 1"}]
[null,{"$f":"ROW()","v":19},null,{"$f":"TT[[#This Row],[Tab]]&TT[[#This Row],[Row]]","v":"19"},"Light 2","Luz 2","Luz 2",null,null,null,null,null,null,null,{"$f":"INDEX(TT[[#This Row],[Language 1]:[Language 10]],1,LangSelect)","v":"Light 2"}]
[null,{"$f":"ROW()","v":20},null,{"$f":"TT[[#This Row],[Tab]]&TT[[#This Row],[Row]]","v":"20"},"Light 3","Luz 3","Luz 3",null,null,null,null,null,null,null,{"$f":"INDEX(TT[[#This Row],[Language 1]:[Language 10]],1,LangSelect)","v":"Light 3"}]
[null,{"$f":"ROW()","v":21},null,{"$f":"TT[[#This Row],[Tab]]&TT[[#This Row],[Row]]","v":"21"},"Light 4","Luz 4","Luz 4",null,null,null,null,null,null,null,{"$f":"INDEX(TT[[#This Row],[Language 1]:[Language 10]],1,LangSelect)","v":"Light 4"}]
[null,{"$f":"ROW()","v":22},null,{"$f":"TT[[#This Row],[Tab]]&TT[[#This Row],[Row]]","v":"22"},"Light 5","Luz 5","Luz 5",null,null,null,null,null,null,null,{"$f":"INDEX(TT[[#This Row],[Language 1]:[Language 10]],1,LangSelect)","v":"Light 5"}]
[null,{"$f":"ROW()","v":23},null,{"$f":"TT[[#This Row],[Tab]]&TT[[#This Row],[Row]]","v":"23"},"Light 6","Luz 6","Luz 6",null,null,null,null,null,null,null,{"$f":"INDEX(TT[[#This Row],[Language 1]:[Language 10]],1,LangSelect)","v":"Light 6"}]
[null,{"$f":"ROW()","v":24},null,{"$f":"TT[[#This Row],[Tab]]&TT[[#This Row],[Row]]","v":"24"},"Column A","Coluna A","Columna A",null,null,null,null,null,null,null,{"$f":"INDEX(TT[[#This Row],[Language 1]:[Language 10]],1,LangSelect)","v":"Column A"}]
[null,{"$f":"ROW()","v":25},null,{"$f":"TT[[#This Row],[Tab]]&TT[[#This Row],[Row]]","v":"25"},"Column B","Coluna B","Columna B",null,null,null,null,null,null,null,{"$f":"INDEX(TT[[#This Row],[Language 1]:[Language 10]],1,LangSelect)","v":"Column B"}]
[null,{"$f":"ROW()","v":26},null,{"$f":"TT[[#This Row],[Tab]]&TT[[#This Row],[Row]]","v":"26"},"Column C","Coluna C","Columna C",null,null,null,null,null,null,null,{"$f":"INDEX(TT[[#This Row],[Language 1]:[Language 10]],1,LangSelect)","v":"Column C"}]
[null,{"$f":"ROW()","v":27},null,{"$f":"TT[[#This Row],[Tab]]&TT[[#This Row],[Row]]","v":"27"},"Column D","Coluna D","Columna D",null,null,null,null,null,null,null,{"$f":"INDEX(TT[[#This Row],[Language 1]:[Language 10]],1,LangSelect)","v":"Column D"}]
[null,{"$f":"ROW()","v":28},null,{"$f":"TT[[#This Row],[Tab]]&TT[[#This Row],[Row]]","v":"28"},"Column E","Coluna E","Columna E",null,null,null,null,null,null,null,{"$f":"INDEX(TT[[#This Row],[Language 1]:[Language 10]],1,LangSelect)","v":"Column E"}]
[null,{"$f":"ROW()","v":29},null,{"$f":"TT[[#This Row],[Tab]]&TT[[#This Row],[Row]]","v":"29"},"Column F","Coluna F","Columna F",null,null,null,null,null,null,null,{"$f":"INDEX(TT[[#This Row],[Language 1]:[Language 10]],1,LangSelect)","v":"Column F"}]
[null,{"$f":"ROW()","v":30},null,{"$f":"TT[[#This Row],[Tab]]&TT[[#This Row],[Row]]","v":"30"},"Column G","Coluna G","Columna G",null,null,null,null,null,null,null,{"$f":"INDEX(TT[[#This Row],[Language 1]:[Language 10]],1,LangSelect)","v":"Column G"}]
[null,{"$f":"ROW()","v":31},null,{"$f":"TT[[#This Row],[Tab]]&TT[[#This Row],[Row]]","v":"31"},"Column H","Coluna H","Columna H",null,null,null,null,null,null,null,{"$f":"INDEX(TT[[#This Row],[Language 1]:[Language 10]],1,LangSelect)","v":"Column H"}]
[null,{"$f":"ROW()","v":32},null,{"$f":"TT[[#This Row],[Tab]]&TT[[#This Row],[Row]]","v":"32"},"Colorless","Incolor","Sin color",null,null,null,null,null,null,null,{"$f":"INDEX(TT[[#This Row],[Language 1]:[Language 10]],1,LangSelect)","v":"Colorless"}]
[null,{"$f":"ROW()","v":33},null,{"$f":"TT[[#This Row],[Tab]]&TT[[#This Row],[Row]]","v":"33"},"Green","Verde","Verde",null,null,null,null,null,null,null,{"$f":"INDEX(TT[[#This Row],[Language 1]:[Language 10]],1,LangSelect)","v":"Green"}]
[null,{"$f":"ROW()","v":34},null,{"$f":"TT[[#This Row],[Tab]]&TT[[#This Row],[Row]]","v":"34"},"Red","Vermelho","Rojo",null,null,null,null,null,null,null,{"$f":"INDEX(TT[[#This Row],[Language 1]:[Language 10]],1,LangSelect)","v":"Red"}]
[null,{"$f":"ROW()","v":35},null,{"$f":"TT[[#This Row],[Tab]]&TT[[#This Row],[Row]]","v":"35"},"Yellow","Amarelo","Amarillo",null,null,null,null,null,null,null,{"$f":"INDEX(TT[[#This Row],[Language 1]:[Language 10]],1,LangSelect)","v":"Yellow"}]
[null,{"$f":"ROW()","v":36},null,{"$f":"TT[[#This Row],[Tab]]&TT[[#This Row],[Row]]","v":"36"},"Blue","Azul","Azul",null,null,null,null,null,null,null,{"$f":"INDEX(TT[[#This Row],[Language 1]:[Language 10]],1,LangSelect)","v":"Blue"}]
[null,{"$f":"ROW()","v":37},null,{"$f":"TT[[#This Row],[Tab]]&TT[[#This Row],[Row]]","v":"37"},"Brightness","Brilho","Brillo",null,null,null,null,null,null,null,{"$f":"INDEX(TT[[#This Row],[Language 1]:[Language 10]],1,LangSelect)","v":"Brightness"}]
[null,{"$f":"ROW()","v":38},null,{"$f":"TT[[#This Row],[Tab]]&TT[[#This Row],[Row]]","v":"38"},"Speed","Velocidade","Velocidad",null,null,null,null,null,null,null,{"$f":"INDEX(TT[[#This Row],[Language 1]:[Language 10]],1,LangSelect)","v":"Speed"}]
[null,{"$f":"ROW()","v":39},null,{"$f":"TT[[#This Row],[Tab]]&TT[[#This Row],[Row]]","v":"39"},"Data In (From Source)","Entrada de Dados (Da Fonte)","Datos entrantes (desde la fuente)",null,null,null,null,null,null,null,{"$f":"INDEX(TT[[#This Row],[Language 1]:[Language 10]],1,LangSelect)","v":"Data In (From Source)"}]
[null,{"$f":"ROW()","v":40},null,{"$f":"TT[[#This Row],[Tab]]&TT[[#This Row],[Row]]","v":"40"},"Data coming from the current data source will appear below as it is received.","Os dados provenientes da fonte de dados atual aparecerão abaixo conforme são recebidos.","Los datos procedentes de la fuente de datos actual aparecerán a continuación a medida que se reciban.",null,null,null,null,null,null,null,{"$f":"INDEX(TT[[#This Row],[Language 1]:[Language 10]],1,LangSelect)","v":"Data coming from the current data source will appear below as it is received."}]
[null,{"$f":"ROW()","v":41},null,{"$f":"TT[[#This Row],[Tab]]&TT[[#This Row],[Row]]","v":"41"},"Current Data","Dados atuais","Datos actuales",null,null,null,null,null,null,null,{"$f":"INDEX(TT[[#This Row],[Language 1]:[Language 10]],1,LangSelect)","v":"Current Data"}]
[null,{"$f":"ROW()","v":42},null,{"$f":"TT[[#This Row],[Tab]]&TT[[#This Row],[Row]]","v":"42"},"Time","Tempo","Tiempo",null,null,null,null,null,null,null,{"$f":"INDEX(TT[[#This Row],[Language 1]:[Language 10]],1,LangSelect)","v":"Time"}]
[null,{"$f":"ROW()","v":43},null,{"$f":"TT[[#This Row],[Tab]]&TT[[#This Row],[Row]]","v":"43"},"Historical Data","Histórico de Dados","Información histórica",null,null,null,null,null,null,null,{"$f":"INDEX(TT[[#This Row],[Language 1]:[Language 10]],1,LangSelect)","v":"Historical Data"}]
[null,{"$f":"ROW()","v":44},null,{"$f":"TT[[#This Row],[Tab]]&TT[[#This Row],[Row]]","v":"44"},"◀ Newest","◀ o mais novo","◀ El más nuevo",null,null,null,null,null,null,null,{"$f":"INDEX(TT[[#This Row],[Language 1]:[Language 10]],1,LangSelect)","v":"◀ Newest"}]
[null,{"$f":"ROW()","v":45},null,{"$f":"TT[[#This Row],[Tab]]&TT[[#This Row],[Row]]","v":"45"},"Data Out (To Device)","Saída de dados (para o dispositivo)","Datos de salida (al dispositivo)",null,null,null,null,null,null,null,{"$f":"INDEX(TT[[#This Row],[Language 1]:[Language 10]],1,LangSelect)","v":"Data Out (To Device)"}]
[null,{"$f":"ROW()","v":46},null,{"$f":"TT[[#This Row],[Tab]]&TT[[#This Row],[Row]]","v":"46"},"Data entered into the channels below will be sent to the currently connected device as a comma-delimited string.","Os dados inseridos nos canais abaixo serão enviados para o dispositivo conectado no momento como uma corda delimitada por vírgula","Los datos ingresados en los siguientes canales se enviarán al dispositivo actualmente conectado",null,null,null,null,null,null,null,{"$f":"INDEX(TT[[#This Row],[Language 1]:[Language 10]],1,LangSelect)","v":"Data entered into the channels below will be sent to the currently connected device as a comma-delimited string."}]
[null,{"$f":"ROW()","v":47},null,{"$f":"TT[[#This Row],[Tab]]&TT[[#This Row],[Row]]","v":"47"},"Command","Comando","Mando",null,null,null,null,null,null,null,{"$f":"INDEX(TT[[#This Row],[Language 1]:[Language 10]],1,LangSelect)","v":"Command"}]
[null,{"$f":"ROW()","v":48},null,{"$f":"TT[[#This Row],[Tab]]&TT[[#This Row],[Row]]","v":"48"},"ActionR1","AçãoR1","AcciónR1",null,null,null,null,null,null,null,{"$f":"INDEX(TT[[#This Row],[Language 1]:[Language 10]],1,LangSelect)","v":"ActionR1"}]
[null,{"$f":"ROW()","v":49},null,{"$f":"TT[[#This Row],[Tab]]&TT[[#This Row],[Row]]","v":"49"},"ActionR2","AçãoR2","AcciónR2",null,null,null,null,null,null,null,{"$f":"INDEX(TT[[#This Row],[Language 1]:[Language 10]],1,LangSelect)","v":"ActionR2"}]
[null,{"$f":"ROW()","v":50},null,{"$f":"TT[[#This Row],[Tab]]&TT[[#This Row],[Row]]","v":"50"},"ActionR3","AçãoR3","AcciónR3",null,null,null,null,null,null,null,{"$f":"INDEX(TT[[#This Row],[Language 1]:[Language 10]],1,LangSelect)","v":"ActionR3"}]
[null,{"$f":"ROW()","v":51},null,{"$f":"TT[[#This Row],[Tab]]&TT[[#This Row],[Row]]","v":"51"},"ActionR4","AçãoR4","AcciónR4",null,null,null,null,null,null,null,{"$f":"INDEX(TT[[#This Row],[Language 1]:[Language 10]],1,LangSelect)","v":"ActionR4"}]
[null,{"$f":"ROW()","v":52},null,{"$f":"TT[[#This Row],[Tab]]&TT[[#This Row],[Row]]","v":"52"},"ActionR5","AçãoR5","AcciónR5",null,null,null,null,null,null,null,{"$f":"INDEX(TT[[#This Row],[Language 1]:[Language 10]],1,LangSelect)","v":"ActionR5"}]
[null,{"$f":"ROW()","v":53},null,{"$f":"TT[[#This Row],[Tab]]&TT[[#This Row],[Row]]","v":"53"},"ActionR6","AçãoR6","AcciónR6",null,null,null,null,null,null,null,{"$f":"INDEX(TT[[#This Row],[Language 1]:[Language 10]],1,LangSelect)","v":"ActionR6"}]
[null,{"$f":"ROW()","v":54},null,{"$f":"TT[[#This Row],[Tab]]&TT[[#This Row],[Row]]","v":"54"},"ActionR7","AçãoR7","AcciónR7",null,null,null,null,null,null,null,{"$f":"INDEX(TT[[#This Row],[Language 1]:[Language 10]],1,LangSelect)","v":"ActionR7"}]
[null,{"$f":"ROW()","v":55},null,{"$f":"TT[[#This Row],[Tab]]&TT[[#This Row],[Row]]","v":"55"},"ActionR8","AçãoR8","AcciónR8",null,null,null,null,null,null,null,{"$f":"INDEX(TT[[#This Row],[Language 1]:[Language 10]],1,LangSelect)","v":"ActionR8"}]
[null,{"$f":"ROW()","v":56},null,{"$f":"TT[[#This Row],[Tab]]&TT[[#This Row],[Row]]","v":"56"},"Workbook Settings","Configurações de pasta de trabalho","Configuración del libro",null,null,null,null,null,null,null,{"$f":"INDEX(TT[[#This Row],[Language 1]:[Language 10]],1,LangSelect)","v":"Workbook Settings"}]
[null,{"$f":"ROW()","v":57},null,{"$f":"TT[[#This Row],[Tab]]&TT[[#This Row],[Row]]","v":"57"},"Settings below will affect how data is read into the current workbook from data sources. Clear a field's contents to revert to its default setting.","As configurações abaixo afetarão como os dados são lidos na pasta de trabalho atual a partir de fontes de dados. Limpe o conteúdo de um campo para reverter para sua configuração padrão.","Los siguientes ajustes afectarán la forma en que se leen los datos en el libro actual a partir de las fuentes de datos. Borra los contenidos de un campo para volver a la configuración predeterminada.",null,null,null,null,null,null,null,{"$f":"INDEX(TT[[#This Row],[Language 1]:[Language 10]],1,LangSelect)","v":"Settings below will affect how data is read into the current workbook from data sources. Clear a field's contents to revert to its default setting."}]
[null,{"$f":"ROW()","v":58},null,{"$f":"TT[[#This Row],[Tab]]&TT[[#This Row],[Row]]","v":"58"},"Data interval (ms):","Intervalo de dados (ms):","Intervalo de datos (ms):",null,null,null,null,null,null,null,{"$f":"INDEX(TT[[#This Row],[Language 1]:[Language 10]],1,LangSelect)","v":"Data interval (ms):"}]
[null,{"$f":"ROW()","v":59},null,{"$f":"TT[[#This Row],[Tab]]&TT[[#This Row],[Row]]","v":"59"},"Data rows:","Linhas de dados","Filas de datos:",null,null,null,null,null,null,null,{"$f":"INDEX(TT[[#This Row],[Language 1]:[Language 10]],1,LangSelect)","v":"Data rows:"}]
[null,{"$f":"ROW()","v":60},null,{"$f":"TT[[#This Row],[Tab]]&TT[[#This Row],[Row]]","v":"60"},"Data channels:","Canais de Dados","Canales de datos:",null,null,null,null,null,null,null,{"$f":"INDEX(TT[[#This Row],[Language 1]:[Language 10]],1,LangSelect)","v":"Data channels:"}]
[null,{"$f":"ROW()","v":61},null,{"$f":"TT[[#This Row],[Tab]]&TT[[#This Row],[Row]]","v":"61"},"Data Orientation:","Orientação de Dados","Orientación de datos:",null,null,null,null,null,null,null,{"$f":"INDEX(TT[[#This Row],[Language 1]:[Language 10]],1,LangSelect)","v":"Data Orientation:"}]
[null,{"$f":"ROW()","v":62},null,{"$f":"TT[[#This Row],[Tab]]&TT[[#This Row],[Row]]","v":"62"},"WARNING: Changing settings may result in the loss of content and/or custom formatting in the Data In and Data Out worksheets. Always save before changing values.","AVISO: A alteração das configurações pode resultar na perda de conteúdo e / ou formatação personalizada nas planilhas de entrada de dados e saída de dados. Sempre salve antes de alterar os valores.","ADVERTENCIA: El cambio de configuraciones puede ocasionar la pérdida de contenido y/o formato personalizado en las hojas de trabajo de entrada y salida de datos. Siempre guarda antes de cambiar los valores.",null,null,null,null,null,null,null,{"$f":"INDEX(TT[[#This Row],[Language 1]:[Language 10]],1,LangSelect)","v":"WARNING: Changing settings may result in the loss of content and/or custom formatting in the Data In and Data Out worksheets. Always save before changing values."}]

{"sheet":"Backend","index":3,"n_rows":154,"n_cols":53,"rows_kept":154,"cut":false,"hidden":true,"merged":[]}
[{"$f":"RIGHT(CELL(\"filename\",A1),LEN(CELL(\"filename\",A1))-FIND(\"]\",CELL(\"filename\",A1)))","v":"Backend"}]
[null,"LineID","Pattern","Combo","Intensity","Speed","Light1","Light2","Light3","Light4","Light5","Light6","DecString","HexString","Old String","String to Board",null,null,null,null,null,"Row","Intensity","Speed","InitDecString","EndofDecString","DecString","HexString",null,"Color","Num",null,"Light","P0Saved","P0","1L_P1","1L_P2","1L_P3","2L_P1","2L_P2","2L_P3","3L_P1","3L_P2","3L_P3","4L_P1","4L_P2","4L_P3","5L_P1","5L_P2","5L_P3","6L_P1","6L_P2","6L_P3"]
[null,{"$f":"BackendTable[[#This Row],[Pattern]]&\"_\"&BackendTable[[#This Row],[Combo]]","v":"P0_1"},"P0",1,3,1,1,1,0,0,1,0,{"$f":"DEC2BIN(BackendTable[[#This Row],[Intensity]],2)&DEC2BIN(BackendTable[[#This Row],[Speed]],2)&_xlfn.CONCAT(BackendTable[[#This Row],[Light1]:[Light6]])","v":"1101110010"},{"$f":"BIN2HEX(VALUE(MID(BackendTable[[#This Row],[DecString]],1,2)))&BIN2HEX(VALUE(MID(BackendTable[[#This Row],[DecString]],3,4)))&BIN2HEX(VALUE(MID(BackendTable[[#This Row],[DecString]],7,4)))","v":"372"},{"$f":"BackendTable[[#This Row],[Intensity]]&\";\"&BackendTable[[#This Row],[Speed]]&\";\"&BackendTable[[#This Row],[Light1]]&\";\"&BackendTable[[#This Row],[Light2]]&\";\"&BackendTable[[#This Row],[Light3]]&\";\"&BackendTable[[#This Row],[Light4]]&\";\"&BackendTable[[#This Row],[Light5]]&\";\"&BackendTable[[#This Row],[Light6]]","v":"3;1;1;1;0;0;1;0"},{"$f":"BackendTable[[#This Row],[HexString]]","v":"372"},null,"Pattern",0,null,null,1,{"$f":"INDEX(INDIRECT(\"BackendTable[\"&W$2&\"]\",0),MATCH(PatternSelect&\"_\"&RIGHT(Table_ShowIS[[#This Row],[Row]],1),BackendTable[LineID],0))","v":3},{"$f":"INDEX(INDIRECT(\"BackendTable[\"&X$2&\"]\",0),MATCH(PatternSelect&\"_\"&RIGHT(Table_ShowIS[[#This Row],[Row]],1),BackendTable[LineID],0))","v":1},{"$f":"INDEX(BackendTable[DecString],MATCH(PatternSelect&\"_\"&Table_ShowIS[[#This Row],[Row]],BackendTable[LineID],0))","v":"1101110010"},{"$f":"MID(TEXT(10^(6-NumLights),\"0\"),2,6-NumLights)","v":"0"},{"$f":"LEFT(Table_ShowIS[[#This Row],[InitDecString]],4+NumLights)&Table_ShowIS[[#This Row],[EndofDecString]]","v":"1101110010"},{"$f":"BIN2HEX(VALUE(MID(Table_ShowIS[[#This Row],[DecString]],1,2)))&BIN2HEX(VALUE(MID(Table_ShowIS[[#This Row],[DecString]],3,4)))&BIN2HEX(VALUE(MID(Table_ShowIS[[#This Row],[DecString]],7,4)))","v":"372"},null,{"$f":"TT!$O32","v":"Colorless"},1,null,1,1,{"$f":"IFERROR(MATCH(PatternColorTable[[#This Row],[P0Saved]],ColorPallete[Color],0),PatternColorTable[[#This Row],[P0Saved]])","v":1},2,3,5,1,2,4,3,3,3,3,1,1,5,4,5,1,2,3]
[null,{"$f":"BackendTable[[#This Row],[Pattern]]&\"_\"&BackendTable[[#This Row],[Combo]]","v":"P0_2"},"P0",2,2,1,0,0,1,1,0,1,{"$f":"DEC2BIN(BackendTable[[#This Row],[Intensity]],2)&DEC2BIN(BackendTable[[#This Row],[Speed]],2)&_xlfn.CONCAT(BackendTable[[#This Row],[Light1]:[Light6]])","v":"1001001101"},{"$f":"BIN2HEX(VALUE(MID(BackendTable[[#This Row],[DecString]],1,2)))&BIN2HEX(VALUE(MID(BackendTable[[#This Row],[DecString]],3,4)))&BIN2HEX(VALUE(MID(BackendTable[[#This Row],[DecString]],7,4)))","v":"24D"},{"$f":"BackendTable[[#This Row],[Intensity]]&\";\"&BackendTable[[#This Row],[Speed]]&\";\"&BackendTable[[#This Row],[Light1]]&\";\"&BackendTable[[#This Row],[Light2]]&\";\"&BackendTable[[#This Row],[Light3]]&\";\"&BackendTable[[#This Row],[Light4]]&\";\"&BackendTable[[#This Row],[Light5]]&\";\"&BackendTable[[#This Row],[Light6]]","v":"2;1;0;0;1;1;0;1"},{"$f":"BackendTable[[#This Row],[HexString]]","v":"24D"},null,"Lights",{"$f":"Dashboard!$F$7","v":5},null,null,2,{"$f":"INDEX(INDIRECT(\"BackendTable[\"&W$2&\"]\",0),MATCH(PatternSelect&\"_\"&RIGHT(Table_ShowIS[[#This Row],[Row]],1),BackendTable[LineID],0))","v":2},{"$f":"INDEX(INDIRECT(\"BackendTable[\"&X$2&\"]\",0),MATCH(PatternSelect&\"_\"&RIGHT(Table_ShowIS[[#This Row],[Row]],1),BackendTable[LineID],0))","v":1},{"$f":"INDEX(BackendTable[DecString],MATCH(PatternSelect&\"_\"&Table_ShowIS[[#This Row],[Row]],BackendTable[LineID],0))","v":"1001001101"},"0",{"$f":"LEFT(Table_ShowIS[[#This Row],[InitDecString]],4+NumLights)&Table_ShowIS[[#This Row],[EndofDecString]]","v":"1001001100"},{"$f":"BIN2HEX(VALUE(MID(Table_ShowIS[[#This Row],[DecString]],1,2)))&BIN2HEX(VALUE(MID(Table_ShowIS[[#This Row],[DecString]],3,4)))&BIN2HEX(VALUE(MID(Table_ShowIS[[#This Row],[DecString]],7,4)))","v":"24C"},null,{"$f":"TT!$O33","v":"Green"},2,null,2,3,{"$f":"IFERROR(MATCH(PatternColorTable[[#This Row],[P0Saved]],ColorPallete[Color],0),PatternColorTable[[#This Row],[P0Saved]])","v":3},1,1,1,4,3,5,4,4,4,5,5,3,4,2,5,3,4,4]
[null,{"$f":"BackendTable[[#This Row],[Pattern]]&\"_\"&BackendTable[[#This Row],[Combo]]","v":"P0_3"},"P0",3,1,3,1,1,1,1,1,1,{"$f":"DEC2BIN(BackendTable[[#This Row],[Intensity]],2)&DEC2BIN(BackendTable[[#This Row],[Speed]],2)&_xlfn.CONCAT(BackendTable[[#This Row],[Light1]:[Light6]])","v":"0111111111"},{"$f":"BIN2HEX(VALUE(MID(BackendTable[[#This Row],[DecString]],1,2)))&BIN2HEX(VALUE(MID(BackendTable[[#This Row],[DecString]],3,4)))&BIN2HEX(VALUE(MID(BackendTable[[#This Row],[DecString]],7,4)))","v":"1FF"},{"$f":"BackendTable[[#This Row],[Intensity]]&\";\"&BackendTable[[#This Row],[Speed]]&\";\"&BackendTable[[#This Row],[Light1]]&\";\"&BackendTable[[#This Row],[Light2]]&\";\"&BackendTable[[#This Row],[Light3]]&\";\"&BackendTable[[#This Row],[Light4]]&\";\"&BackendTable[[#This Row],[Light5]]&\";\"&BackendTable[[#This Row],[Light6]]","v":"1;3;1;1;1;1;1;1"},{"$f":"BackendTable[[#This Row],[HexString]]","v":"1FF"},null,"Pattern Select",{"$f":"IF(S3=0,\"P0\",S4&\"L_P\"&S3)","v":"P0"},null,null,3,{"$f":"INDEX(INDIRECT(\"BackendTable[\"&W$2&\"]\",0),MATCH(PatternSelect&\"_\"&RIGHT(Table_ShowIS[[#This Row],[Row]],1),BackendTable[LineID],0))","v":1},{"$f":"INDEX(INDIRECT(\"BackendTable[\"&X$2&\"]\",0),MATCH(PatternSelect&\"_\"&RIGHT(Table_ShowIS[[#This Row],[Row]],1),BackendTable[LineID],0))","v":3},{"$f":"INDEX(BackendTable[DecString],MATCH(PatternSelect&\"_\"&Table_ShowIS[[#This Row],[Row]],BackendTable[LineID],0))","v":"0111111111"},"0",{"$f":"LEFT(Table_ShowIS[[#This Row],[InitDecString]],4+NumLights)&Table_ShowIS[[#This Row],[EndofDecString]]","v":"0111111110"},{"$f":"BIN2HEX(VALUE(MID(Table_ShowIS[[#This Row],[DecString]],1,2)))&BIN2HEX(VALUE(MID(Table_ShowIS[[#This Row],[DecString]],3,4)))&BIN2HEX(VALUE(MID(Table_ShowIS[[#This Row],[DecString]],7,4)))","v":"1FE"},null,{"$f":"TT!$O34","v":"Red"},3,null,3,4,{"$f":"IFERROR(MATCH(PatternColorTable[[#This Row],[P0Saved]],ColorPallete[Color],0),PatternColorTable[[#This Row],[P0Saved]])","v":4},1,1,1,1,1,1,2,2,2,4,2,5,2,1,1,5,2,2]
[null,{"$f":"BackendTable[[#This Row],[Pattern]]&\"_\"&BackendTable[[#This Row],[Combo]]","v":"P0_4"},"P0",4,2,2,1,0,0,0,0,1,{"$f":"DEC2BIN(BackendTable[[#This Row],[Intensity]],2)&DEC2BIN(BackendTable[[#This Row],[Speed]],2)&_xlfn.CONCAT(BackendTable[[#This Row],[Light1]:[Light6]])","v":"1010100001"},{"$f":"BIN2HEX(VALUE(MID(BackendTable[[#This Row],[DecString]],1,2)))&BIN2HEX(VALUE(MID(BackendTable[[#This Row],[DecString]],3,4)))&BIN2HEX(VALUE(MID(BackendTable[[#This Row],[DecString]],7,4)))","v":"2A1"},{"$f":"BackendTable[[#This Row],[Intensity]]&\";\"&BackendTable[[#This Row],[Speed]]&\";\"&BackendTable[[#This Row],[Light1]]&\";\"&BackendTable[[#This Row],[Light2]]&\";\"&BackendTable[[#This Row],[Light3]]&\";\"&BackendTable[[#This Row],[Light4]]&\";\"&BackendTable[[#This Row],[Light5]]&\";\"&BackendTable[[#This Row],[Light6]]","v":"2;2;1;0;0;0;0;1"},{"$f":"BackendTable[[#This Row],[HexString]]","v":"2A1"},null,"Light Color 1",{"$f":"INDEX(ColorPallete[Color],INDEX(PatternColorTable[],MATCH(VALUE(RIGHT($R6,1)),PatternColorTable[Light],0),MATCH(PatternSelect,PatternColorTable[#Headers],0)))","v":"Colorless"},{"$f":"MATCH(ColorLight1,ColorPallete[Color],0)","v":1},null,4,{"$f":"INDEX(INDIRECT(\"BackendTable[\"&W$2&\"]\",0),MATCH(PatternSelect&\"_\"&RIGHT(Table_ShowIS[[#This Row],[Row]],1),BackendTable[LineID],0))","v":2},{"$f":"INDEX(INDIRECT(\"BackendTable[\"&X$2&\"]\",0),MATCH(PatternSelect&\"_\"&RIGHT(Table_ShowIS[[#This Row],[Row]],1),BackendTable[LineID],0))","v":2},{"$f":"INDEX(BackendTable[DecString],MATCH(PatternSelect&\"_\"&Table_ShowIS[[#This Row],[Row]],BackendTable[LineID],0))","v":"1010100001"},"0",{"$f":"LEFT(Table_ShowIS[[#This Row],[InitDecString]],4+NumLights)&Table_ShowIS[[#This Row],[EndofDecString]]","v":"1010100000"},{"$f":"BIN2HEX(VALUE(MID(Table_ShowIS[[#This Row],[DecString]],1,2)))&BIN2HEX(VALUE(MID(Table_ShowIS[[#This Row],[DecString]],3,4)))&BIN2HEX(VALUE(MID(Table_ShowIS[[#This Row],[DecString]],7,4)))","v":"2A0"},null,{"$f":"TT!$O35","v":"Yellow"},4,null,4,2,{"$f":"IFERROR(MATCH(PatternColorTable[[#This Row],[P0Saved]],ColorPallete[Color],0),PatternColorTable[[#This Row],[P0Saved]])","v":2},1,1,1,1,1,1,1,1,1,2,3,4,4,5,2,4,3,2]
[null,{"$f":"BackendTable[[#This Row],[Pattern]]&\"_\"&BackendTable[[#This Row],[Combo]]","v":"P0_5"},"P0",5,3,1,0,1,0,0,1,0,{"$f":"DEC2BIN(BackendTable[[#This Row],[Intensity]],2)&DEC2BIN(BackendTable[[#This Row],[Speed]],2)&_xlfn.CONCAT(BackendTable[[#This Row],[Light1]:[Light6]])","v":"1101010010"},{"$f":"BIN2HEX(VALUE(MID(BackendTable[[#This Row],[DecString]],1,2)))&BIN2HEX(VALUE(MID(BackendTable[[#This Row],[DecString]],3,4)))&BIN2HEX(VALUE(MID(BackendTable[[#This Row],[DecString]],7,4)))","v":"352"},{"$f":"BackendTable[[#This Row],[Intensity]]&\";\"&BackendTable[[#This Row],[Speed]]&\";\"&BackendTable[[#This Row],[Light1]]&\";\"&BackendTable[[#This Row],[Light2]]&\";\"&BackendTable[[#This Row],[Light3]]&\";\"&BackendTable[[#This Row],[Light4]]&\";\"&BackendTable[[#This Row],[Light5]]&\";\"&BackendTable[[#This Row],[Light6]]","v":"3;1;0;1;0;0;1;0"},{"$f":"BackendTable[[#This Row],[HexString]]","v":"352"},null,"Light Color 2",{"$f":"INDEX(ColorPallete[Color],INDEX(PatternColorTable[],MATCH(VALUE(RIGHT($R7,1)),PatternColorTable[Light],0),MATCH(PatternSelect,PatternColorTable[#Headers],0)))","v":"Red"},{"$f":"MATCH(ColorLight2,ColorPallete[Color],0)","v":3},null,5,{"$f":"INDEX(INDIRECT(\"BackendTable[\"&W$2&\"]\",0),MATCH(PatternSelect&\"_\"&RIGHT(Table_ShowIS[[#This Row],[Row]],1),BackendTable[LineID],0))","v":3},{"$f":"INDEX(INDIRECT(\"BackendTable[\"&X$2&\"]\",0),MATCH(PatternSelect&\"_\"&RIGHT(Table_ShowIS[[#This Row],[Row]],1),BackendTable[LineID],0))","v":1},{"$f":"INDEX(BackendTable[DecString],MATCH(PatternSelect&\"_\"&Table_ShowIS[[#This Row],[Row]],BackendTable[LineID],0))","v":"1101010010"},"0",{"$f":"LEFT(Table_ShowIS[[#This Row],[InitDecString]],4+NumLights)&Table_ShowIS[[#This Row],[EndofDecString]]","v":"1101010010"},{"$f":"BIN2HEX(VALUE(MID(Table_ShowIS[[#This Row],[DecString]],1,2)))&BIN2HEX(VALUE(MID(Table_ShowIS[[#This Row],[DecString]],3,4)))&BIN2HEX(VALUE(MID(Table_ShowIS[[#This Row],[DecString]],7,4)))","v":"352"},null,{"$f":"TT!$O36","v":"Blue"},5,null,5,3,{"$f":"IFERROR(MATCH(PatternColorTable[[#This Row],[P0Saved]],ColorPallete[Color],0),PatternColorTable[[#This Row],[P0Saved]])","v":3},1,1,1,1,1,1,1,1,1,1,1,1,3,5,4,1,5,4]
[null,{"$f":"BackendTable[[#This Row],[Pattern]]&\"_\"&BackendTable[[#This Row],[Combo]]","v":"P0_6"},"P0",6,2,2,0,0,1,1,0,0,{"$f":"DEC2BIN(BackendTable[[#This Row],[Intensity]],2)&DEC2BIN(BackendTable[[#This Row],[Speed]],2)&_xlfn.CONCAT(BackendTable[[#This Row],[Light1]:[Light6]])","v":"1010001100"},{"$f":"BIN2HEX(VALUE(MID(BackendTable[[#This Row],[DecString]],1,2)))&BIN2HEX(VALUE(MID(BackendTable[[#This Row],[DecString]],3,4)))&BIN2HEX(VALUE(MID(BackendTable[[#This Row],[DecString]],7,4)))","v":"28C"},{"$f":"BackendTable[[#This Row],[Intensity]]&\";\"&BackendTable[[#This Row],[Speed]]&\";\"&BackendTable[[#This Row],[Light1]]&\";\"&BackendTable[[#This Row],[Light2]]&\";\"&BackendTable[[#This Row],[Light3]]&\";\"&BackendTable[[#This Row],[Light4]]&\";\"&BackendTable[[#This Row],[Light5]]&\";\"&BackendTable[[#This Row],[Light6]]","v":"2;2;0;0;1;1;0;0"},{"$f":"BackendTable[[#This Row],[HexString]]","v":"28C"},null,"Light Color 3",{"$f":"INDEX(ColorPallete[Color],INDEX(PatternColorTable[],MATCH(VALUE(RIGHT($R8,1)),PatternColorTable[Light],0),MATCH(PatternSelect,PatternColorTable[#Headers],0)))","v":"Yellow"},{"$f":"MATCH(ColorLight3,ColorPallete[Color],0)","v":4},null,6,{"$f":"INDEX(INDIRECT(\"BackendTable[\"&W$2&\"]\",0),MATCH(PatternSelect&\"_\"&RIGHT(Table_ShowIS[[#This Row],[Row]],1),BackendTable[LineID],0))","v":2},{"$f":"INDEX(INDIRECT(\"BackendTable[\"&X$2&\"]\",0),MATCH(PatternSelect&\"_\"&RIGHT(Table_ShowIS[[#This Row],[Row]],1),BackendTable[LineID],0))","v":2},{"$f":"INDEX(BackendTable[DecString],MATCH(PatternSelect&\"_\"&Table_ShowIS[[#This Row],[Row]],BackendTable[LineID],0))","v":"1010001100"},"0",{"$f":"LEFT(Table_ShowIS[[#This Row],[InitDecString]],4+NumLights)&Table_ShowIS[[#This Row],[EndofDecString]]","v":"1010001100"},{"$f":"BIN2HEX(VALUE(MID(Table_ShowIS[[#This Row],[DecString]],1,2)))&BIN2HEX(VALUE(MID(Table_ShowIS[[#This Row],[DecString]],3,4)))&BIN2HEX(VALUE(MID(Table_ShowIS[[#This Row],[DecString]],7,4)))","v":"28C"},null,null,null,null,6,5,{"$f":"IFERROR(MATCH(PatternColorTable[[#This Row],[P0Saved]],ColorPallete[Color],0),PatternColorTable[[#This Row],[P0Saved]])","v":5},1,1,1,1,1,1,1,1,1,1,1,1,1,1,1,2,4,3]
[null,{"$f":"BackendTable[[#This Row],[Pattern]]&\"_\"&BackendTable[[#This Row],[Combo]]","v":"P0_7"},"P0",7,1,1,1,0,1,0,1,0,{"$f":"DEC2BIN(BackendTable[[#This Row],[Intensity]],2)&DEC2BIN(BackendTable[[#This Row],[Speed]],2)&_xlfn.CONCAT(BackendTable[[#This Row],[Light1]:[Light6]])","v":"0101101010"},{"$f":"BIN2HEX(VALUE(MID(BackendTable[[#This Row],[DecString]],1,2)))&BIN2HEX(VALUE(MID(BackendTable[[#This Row],[DecString]],3,4)))&BIN2HEX(VALUE(MID(BackendTable[[#This Row],[DecString]],7,4)))","v":"16A"},{"$f":"BackendTable[[#This Row],[Intensity]]&\";\"&BackendTable[[#This Row],[Speed]]&\";\"&BackendTable[[#This Row],[Light1]]&\";\"&BackendTable[[#This Row],[Light2]]&\";\"&BackendTable[[#This Row],[Light3]]&\";\"&BackendTable[[#This Row],[Light4]]&\";\"&BackendTable[[#This Row],[Light5]]&\";\"&BackendTable[[#This Row],[Light6]]","v":"1;1;1;0;1;0;1;0"},{"$f":"BackendTable[[#This Row],[HexString]]","v":"16A"},null,"Light Color 4",{"$f":"INDEX(ColorPallete[Color],INDEX(PatternColorTable[],MATCH(VALUE(RIGHT($R9,1)),PatternColorTable[Light],0),MATCH(PatternSelect,PatternColorTable[#Headers],0)))","v":"Green"},{"$f":"MATCH(ColorLight4,ColorPallete[Color],0)","v":2},null,7,{"$f":"INDEX(INDIRECT(\"BackendTable[\"&W$2&\"]\",0),MATCH(PatternSelect&\"_\"&RIGHT(Table_ShowIS[[#This Row],[Row]],1),BackendTable[LineID],0))","v":1},{"$f":"INDEX(INDIRECT(\"BackendTable[\"&X$2&\"]\",0),MATCH(PatternSelect&\"_\"&RIGHT(Table_ShowIS[[#This Row],[Row]],1),BackendTable[LineID],0))","v":1},{"$f":"INDEX(BackendTable[DecString],MATCH(PatternSelect&\"_\"&Table_ShowIS[[#This Row],[Row]],BackendTable[LineID],0))","v":"0101101010"},"0",{"$f":"LEFT(Table_ShowIS[[#This Row],[InitDecString]],4+NumLights)&Table_ShowIS[[#This Row],[EndofDecString]]","v":"0101101010"},{"$f":"BIN2HEX(VALUE(MID(Table_ShowIS[[#This Row],[DecString]],1,2)))&BIN2HEX(VALUE(MID(Table_ShowIS[[#This Row],[DecString]],3,4)))&BIN2HEX(VALUE(MID(Table_ShowIS[[#This Row],[DecString]],7,4)))","v":"16A"}]
[null,{"$f":"BackendTable[[#This Row],[Pattern]]&\"_\"&BackendTable[[#This Row],[Combo]]","v":"P0_8"},"P0",8,2,3,0,1,0,1,0,1,{"$f":"DEC2BIN(BackendTable[[#This Row],[Intensity]],2)&DEC2BIN(BackendTable[[#This Row],[Speed]],2)&_xlfn.CONCAT(BackendTable[[#This Row],[Light1]:[Light6]])","v":"1011010101"},{"$f":"BIN2HEX(VALUE(MID(BackendTable[[#This Row],[DecString]],1,2)))&BIN2HEX(VALUE(MID(BackendTable[[#This Row],[DecString]],3,4)))&BIN2HEX(VALUE(MID(BackendTable[[#This Row],[DecString]],7,4)))","v":"2D5"},{"$f":"BackendTable[[#This Row],[Intensity]]&\";\"&BackendTable[[#This Row],[Speed]]&\";\"&BackendTable[[#This Row],[Light1]]&\";\"&BackendTable[[#This Row],[Light2]]&\";\"&BackendTable[[#This Row],[Light3]]&\";\"&BackendTable[[#This Row],[Light4]]&\";\"&BackendTable[[#This Row],[Light5]]&\";\"&BackendTable[[#This Row],[Light6]]","v":"2;3;0;1;0;1;0;1"},{"$f":"BackendTable[[#This Row],[HexString]]","v":"2D5"},null,"Light Color 5",{"$f":"INDEX(ColorPallete[Color],INDEX(PatternColorTable[],MATCH(VALUE(RIGHT($R10,1)),PatternColorTable[Light],0),MATCH(PatternSelect,PatternColorTable[#Headers],0)))","v":"Red"},{"$f":"MATCH(ColorLight5,ColorPallete[Color],0)","v":3},null,8,{"$f":"INDEX(INDIRECT(\"BackendTable[\"&W$2&\"]\",0),MATCH(PatternSelect&\"_\"&RIGHT(Table_ShowIS[[#This Row],[Row]],1),BackendTable[LineID],0))","v":2},{"$f":"INDEX(INDIRECT(\"BackendTable[\"&X$2&\"]\",0),MATCH(PatternSelect&\"_\"&RIGHT(Table_ShowIS[[#This Row],[Row]],1),BackendTable[LineID],0))","v":3},{"$f":"INDEX(BackendTable[DecString],MATCH(PatternSelect&\"_\"&Table_ShowIS[[#This Row],[Row]],BackendTable[LineID],0))","v":"1011010101"},"0",{"$f":"LEFT(Table_ShowIS[[#This Row],[InitDecString]],4+NumLights)&Table_ShowIS[[#This Row],[EndofDecString]]","v":"1011010100"},{"$f":"BIN2HEX(VALUE(MID(Table_ShowIS[[#This Row],[DecString]],1,2)))&BIN2HEX(VALUE(MID(Table_ShowIS[[#This Row],[DecString]],3,4)))&BIN2HEX(VALUE(MID(Table_ShowIS[[#This Row],[DecString]],7,4)))","v":"2D4"}]
[null,{"$f":"BackendTable[[#This Row],[Pattern]]&\"_\"&BackendTable[[#This Row],[Combo]]","v":"1L_P1_1"},"1L_P1",1,3,2,1,0,0,0,0,0,{"$f":"DEC2BIN(BackendTable[[#This Row],[Intensity]],2)&DEC2BIN(BackendTable[[#This Row],[Speed]],2)&_xlfn.CONCAT(BackendTable[[#This Row],[Light1]:[Light6]])","v":"1110100000"},{"$f":"BIN2HEX(VALUE(MID(BackendTable[[#This Row],[DecString]],1,2)))&BIN2HEX(VALUE(MID(BackendTable[[#This Row],[DecString]],3,4)))&BIN2HEX(VALUE(MID(BackendTable[[#This Row],[DecString]],7,4)))","v":"3A0"},{"$f":"BackendTable[[#This Row],[Intensity]]&\";\"&BackendTable[[#This Row],[Speed]]&\";\"&BackendTable[[#This Row],[Light1]]&\";\"&BackendTable[[#This Row],[Light2]]&\";\"&BackendTable[[#This Row],[Light3]]&\";\"&BackendTable[[#This Row],[Light4]]&\";\"&BackendTable[[#This Row],[Light5]]&\";\"&BackendTable[[#This Row],[Light6]]","v":"3;2;1;0;0;0;0;0"},{"$f":"BackendTable[[#This Row],[HexString]]","v":"3A0"},null,"Light Color 6",{"$f":"INDEX(ColorPallete[Color],INDEX(PatternColorTable[],MATCH(VALUE(RIGHT($R11,1)),PatternColorTable[Light],0),MATCH(PatternSelect,PatternColorTable[#Headers],0)))","v":"Blue"},{"$f":"MATCH(ColorLight6,ColorPallete[Color],0)","v":5}]
[null,{"$f":"BackendTable[[#This Row],[Pattern]]&\"_\"&BackendTable[[#This Row],[Combo]]","v":"1L_P1_2"},"1L_P1",2,1,1,0,0,0,0,0,0,{"$f":"DEC2BIN(BackendTable[[#This Row],[Intensity]],2)&DEC2BIN(BackendTable[[#This Row],[Speed]],2)&_xlfn.CONCAT(BackendTable[[#This Row],[Light1]:[Light6]])","v":"0101000000"},{"$f":"BIN2HEX(VALUE(MID(BackendTable[[#This Row],[DecString]],1,2)))&BIN2HEX(VALUE(MID(BackendTable[[#This Row],[DecString]],3,4)))&BIN2HEX(VALUE(MID(BackendTable[[#This Row],[DecString]],7,4)))","v":"140"},{"$f":"BackendTable[[#This Row],[Intensity]]&\";\"&BackendTable[[#This Row],[Speed]]&\";\"&BackendTable[[#This Row],[Light1]]&\";\"&BackendTable[[#This Row],[Light2]]&\";\"&BackendTable[[#This Row],[Light3]]&\";\"&BackendTable[[#This Row],[Light4]]&\";\"&BackendTable[[#This Row],[Light5]]&\";\"&BackendTable[[#This Row],[Light6]]","v":"1;1;0;0;0;0;0;0"},{"$f":"BackendTable[[#This Row],[HexString]]","v":"140"},null,"PatternSectionStart",{"$f":"_xlfn.SWITCH(TRUE(),PatternSelect=\"P0\",0,(S4-1)*24+PatternValue*8)","v":0}]
[null,{"$f":"BackendTable[[#This Row],[Pattern]]&\"_\"&BackendTable[[#This Row],[Combo]]","v":"1L_P1_3"},"1L_P1",3,1,1,1,0,0,0,0,0,{"$f":"DEC2BIN(BackendTable[[#This Row],[Intensity]],2)&DEC2BIN(BackendTable[[#This Row],[Speed]],2)&_xlfn.CONCAT(BackendTable[[#This Row],[Light1]:[Light6]])","v":"0101100000"},{"$f":"BIN2HEX(VALUE(MID(BackendTable[[#This Row],[DecString]],1,2)))&BIN2HEX(VALUE(MID(BackendTable[[#This Row],[DecString]],3,4)))&BIN2HEX(VALUE(MID(BackendTable[[#This Row],[DecString]],7,4)))","v":"160"},{"$f":"BackendTable[[#This Row],[Intensity]]&\";\"&BackendTable[[#This Row],[Speed]]&\";\"&BackendTable[[#This Row],[Light1]]&\";\"&BackendTable[[#This Row],[Light2]]&\";\"&BackendTable[[#This Row],[Light3]]&\";\"&BackendTable[[#This Row],[Light4]]&\";\"&BackendTable[[#This Row],[Light5]]&\";\"&BackendTable[[#This Row],[Light6]]","v":"1;1;1;0;0;0;0;0"},{"$f":"BackendTable[[#This Row],[HexString]]","v":"160"},null,"CellGrpA",{"$f":"TT!O15","v":"Play Once"}]
[null,{"$f":"BackendTable[[#This Row],[Pattern]]&\"_\"&BackendTable[[#This Row],[Combo]]","v":"1L_P1_4"},"1L_P1",4,2,2,1,0,0,0,0,0,{"$f":"DEC2BIN(BackendTable[[#This Row],[Intensity]],2)&DEC2BIN(BackendTable[[#This Row],[Speed]],2)&_xlfn.CONCAT(BackendTable[[#This Row],[Light1]:[Light6]])","v":"1010100000"},{"$f":"BIN2HEX(VALUE(MID(BackendTable[[#This Row],[DecString]],1,2)))&BIN2HEX(VALUE(MID(BackendTable[[#This Row],[DecString]],3,4)))&BIN2HEX(VALUE(MID(BackendTable[[#This Row],[DecString]],7,4)))","v":"2A0"},{"$f":"BackendTable[[#This Row],[Intensity]]&\";\"&BackendTable[[#This Row],[Speed]]&\";\"&BackendTable[[#This Row],[Light1]]&\";\"&BackendTable[[#This Row],[Light2]]&\";\"&BackendTable[[#This Row],[Light3]]&\";\"&BackendTable[[#This Row],[Light4]]&\";\"&BackendTable[[#This Row],[Light5]]&\";\"&BackendTable[[#This Row],[Light6]]","v":"2;2;1;0;0;0;0;0"},{"$f":"BackendTable[[#This Row],[HexString]]","v":"2A0"},null,"CellGrpB",{"$f":"TT!O16","v":"Loop"}]
[null,{"$f":"BackendTable[[#This Row],[Pattern]]&\"_\"&BackendTable[[#This Row],[Combo]]","v":"1L_P1_5"},"1L_P1",5,1,2,1,0,0,0,0,0,{"$f":"DEC2BIN(BackendTable[[#This Row],[Intensity]],2)&DEC2BIN(BackendTable[[#This Row],[Speed]],2)&_xlfn.CONCAT(BackendTable[[#This Row],[Light1]:[Light6]])","v":"0110100000"},{"$f":"BIN2HEX(VALUE(MID(BackendTable[[#This Row],[DecString]],1,2)))&BIN2HEX(VALUE(MID(BackendTable[[#This Row],[DecString]],3,4)))&BIN2HEX(VALUE(MID(BackendTable[[#This Row],[DecString]],7,4)))","v":"1A0"},{"$f":"BackendTable[[#This Row],[Intensity]]&\";\"&BackendTable[[#This Row],[Speed]]&\";\"&BackendTable[[#This Row],[Light1]]&\";\"&BackendTable[[#This Row],[Light2]]&\";\"&BackendTable[[#This Row],[Light3]]&\";\"&BackendTable[[#This Row],[Light4]]&\";\"&BackendTable[[#This Row],[Light5]]&\";\"&BackendTable[[#This Row],[Light6]]","v":"1;2;1;0;0;0;0;0"},{"$f":"BackendTable[[#This Row],[HexString]]","v":"1A0"},null,"CellGrpC",{"$f":"TT!O17","v":"Stop"}]
[null,{"$f":"BackendTable[[#This Row],[Pattern]]&\"_\"&BackendTable[[#This Row],[Combo]]","v":"1L_P1_6"},"1L_P1",6,3,3,0,0,0,0,0,0,{"$f":"DEC2BIN(BackendTable[[#This Row],[Intensity]],2)&DEC2BIN(BackendTable[[#This Row],[Speed]],2)&_xlfn.CONCAT(BackendTable[[#This Row],[Light1]:[Light6]])","v":"1111000000"},{"$f":"BIN2HEX(VALUE(MID(BackendTable[[#This Row],[DecString]],1,2)))&BIN2HEX(VALUE(MID(BackendTable[[#This Row],[DecString]],3,4)))&BIN2HEX(VALUE(MID(BackendTable[[#This Row],[DecString]],7,4)))","v":"3C0"},{"$f":"BackendTable[[#This Row],[Intensity]]&\";\"&BackendTable[[#This Row],[Speed]]&\";\"&BackendTable[[#This Row],[Light1]]&\";\"&BackendTable[[#This Row],[Light2]]&\";\"&BackendTable[[#This Row],[Light3]]&\";\"&BackendTable[[#This Row],[Light4]]&\";\"&BackendTable[[#This Row],[Light5]]&\";\"&BackendTable[[#This Row],[Light6]]","v":"3;3;0;0;0;0;0;0"},{"$f":"BackendTable[[#This Row],[HexString]]","v":"3C0"},null,"PlayButton",{"$f":"IF(ProgRunning,NA(),1)","v":1}]
[null,{"$f":"BackendTable[[#This Row],[Pattern]]&\"_\"&BackendTable[[#This Row],[Combo]]","v":"1L_P1_7"},"1L_P1",7,1,1,1,0,0,0,0,0,{"$f":"DEC2BIN(BackendTable[[#This Row],[Intensity]],2)&DEC2BIN(BackendTable[[#This Row],[Speed]],2)&_xlfn.CONCAT(BackendTable[[#This Row],[Light1]:[Light6]])","v":"0101100000"},{"$f":"BIN2HEX(VALUE(MID(BackendTable[[#This Row],[DecString]],1,2)))&BIN2HEX(VALUE(MID(BackendTable[[#This Row],[DecString]],3,4)))&BIN2HEX(VALUE(MID(BackendTable[[#This Row],[DecString]],7,4)))","v":"160"},{"$f":"BackendTable[[#This Row],[Intensity]]&\";\"&BackendTable[[#This Row],[Speed]]&\";\"&BackendTable[[#This Row],[Light1]]&\";\"&BackendTable[[#This Row],[Light2]]&\";\"&BackendTable[[#This Row],[Light3]]&\";\"&BackendTable[[#This Row],[Light4]]&\";\"&BackendTable[[#This Row],[Light5]]&\";\"&BackendTable[[#This Row],[Light6]]","v":"1;1;1;0;0;0;0;0"},{"$f":"BackendTable[[#This Row],[HexString]]","v":"160"},null,"StopButton",{"$f":"IF(ProgRunning,2,NA())","v":{"$error":"#N/A"}}]
[null,{"$f":"BackendTable[[#This Row],[Pattern]]&\"_\"&BackendTable[[#This Row],[Combo]]","v":"1L_P1_8"},"1L_P1",8,1,2,0,0,0,0,0,0,{"$f":"DEC2BIN(BackendTable[[#This Row],[Intensity]],2)&DEC2BIN(BackendTable[[#This Row],[Speed]],2)&_xlfn.CONCAT(BackendTable[[#This Row],[Light1]:[Light6]])","v":"0110000000"},{"$f":"BIN2HEX(VALUE(MID(BackendTable[[#This Row],[DecString]],1,2)))&BIN2HEX(VALUE(MID(BackendTable[[#This Row],[DecString]],3,4)))&BIN2HEX(VALUE(MID(BackendTable[[#This Row],[DecString]],7,4)))","v":"180"},{"$f":"BackendTable[[#This Row],[Intensity]]&\";\"&BackendTable[[#This Row],[Speed]]&\";\"&BackendTable[[#This Row],[Light1]]&\";\"&BackendTable[[#This Row],[Light2]]&\";\"&BackendTable[[#This Row],[Light3]]&\";\"&BackendTable[[#This Row],[Light4]]&\";\"&BackendTable[[#This Row],[Light5]]&\";\"&BackendTable[[#This Row],[Light6]]","v":"1;2;0;0;0;0;0;0"},{"$f":"BackendTable[[#This Row],[HexString]]","v":"180"},null,"LoopButton",{"$f":"IF(ProgRunning,NA(),3)","v":3}]
[null,{"$f":"BackendTable[[#This Row],[Pattern]]&\"_\"&BackendTable[[#This Row],[Combo]]","v":"1L_P2_1"},"1L_P2",1,2,1,1,0,0,0,0,0,{"$f":"DEC2BIN(BackendTable[[#This Row],[Intensity]],2)&DEC2BIN(BackendTable[[#This Row],[Speed]],2)&_xlfn.CONCAT(BackendTable[[#This Row],[Light1]:[Light6]])","v":"1001100000"},{"$f":"BIN2HEX(VALUE(MID(BackendTable[[#This Row],[DecString]],1,2)))&BIN2HEX(VALUE(MID(BackendTable[[#This Row],[DecString]],3,4)))&BIN2HEX(VALUE(MID(BackendTable[[#This Row],[DecString]],7,4)))","v":"260"},{"$f":"BackendTable[[#This Row],[Intensity]]&\";\"&BackendTable[[#This Row],[Speed]]&\";\"&BackendTable[[#This Row],[Light1]]&\";\"&BackendTable[[#This Row],[Light2]]&\";\"&BackendTable[[#This Row],[Light3]]&\";\"&BackendTable[[#This Row],[Light4]]&\";\"&BackendTable[[#This Row],[Light5]]&\";\"&BackendTable[[#This Row],[Light6]]","v":"2;1;1;0;0;0;0;0"},{"$f":"BackendTable[[#This Row],[HexString]]","v":"260"},null,"ProgRunning",{"$f":"NOT(OR(CommandCell=\"#pause\",AND(CommandCell=0,LoopCommand=0,'Data In'!B5>7)))","v":false},null,"C0","C1","C2"]
[null,{"$f":"BackendTable[[#This Row],[Pattern]]&\"_\"&BackendTable[[#This Row],[Combo]]","v":"1L_P2_2"},"1L_P2",2,1,2,0,0,0,0,0,0,{"$f":"DEC2BIN(BackendTable[[#This Row],[Intensity]],2)&DEC2BIN(BackendTable[[#This Row],[Speed]],2)&_xlfn.CONCAT(BackendTable[[#This Row],[Light1]:[Light6]])","v":"0110000000"},{"$f":"BIN2HEX(VALUE(MID(BackendTable[[#This Row],[DecString]],1,2)))&BIN2HEX(VALUE(MID(BackendTable[[#This Row],[DecString]],3,4)))&BIN2HEX(VALUE(MID(BackendTable[[#This Row],[DecString]],7,4)))","v":"180"},{"$f":"BackendTable[[#This Row],[Intensity]]&\";\"&BackendTable[[#This Row],[Speed]]&\";\"&BackendTable[[#This Row],[Light1]]&\";\"&BackendTable[[#This Row],[Light2]]&\";\"&BackendTable[[#This Row],[Light3]]&\";\"&BackendTable[[#This Row],[Light4]]&\";\"&BackendTable[[#This Row],[Light5]]&\";\"&BackendTable[[#This Row],[Light6]]","v":"1;2;0;0;0;0;0;0"},{"$f":"BackendTable[[#This Row],[HexString]]","v":"180"},null,"Command","#pause",null,0,0,"#pause"]
[null,{"$f":"BackendTable[[#This Row],[Pattern]]&\"_\"&BackendTable[[#This Row],[Combo]]","v":"1L_P2_3"},"1L_P2",3,2,2,1,0,0,0,0,0,{"$f":"DEC2BIN(BackendTable[[#This Row],[Intensity]],2)&DEC2BIN(BackendTable[[#This Row],[Speed]],2)&_xlfn.CONCAT(BackendTable[[#This Row],[Light1]:[Light6]])","v":"1010100000"},{"$f":"BIN2HEX(VALUE(MID(BackendTable[[#This Row],[DecString]],1,2)))&BIN2HEX(VALUE(MID(BackendTable[[#This Row],[DecString]],3,4)))&BIN2HEX(VALUE(MID(BackendTable[[#This Row],[DecString]],7,4)))","v":"2A0"},{"$f":"BackendTable[[#This Row],[Intensity]]&\";\"&BackendTable[[#This Row],[Speed]]&\";\"&BackendTable[[#This Row],[Light1]]&\";\"&BackendTable[[#This Row],[Light2]]&\";\"&BackendTable[[#This Row],[Light3]]&\";\"&BackendTable[[#This Row],[Light4]]&\";\"&BackendTable[[#This Row],[Light5]]&\";\"&BackendTable[[#This Row],[Light6]]","v":"2;2;1;0;0;0;0;0"},{"$f":"BackendTable[[#This Row],[HexString]]","v":"2A0"},null,"Loop",0,null,0,1,0]
[null,{"$f":"BackendTable[[#This Row],[Pattern]]&\"_\"&BackendTable[[#This Row],[Combo]]","v":"1L_P2_4"},"1L_P2",4,1,3,0,0,0,0,0,0,{"$f":"DEC2BIN(BackendTable[[#This Row],[Intensity]],2)&DEC2BIN(BackendTable[[#This Row],[Speed]],2)&_xlfn.CONCAT(BackendTable[[#This Row],[Light1]:[Light6]])","v":"0111000000"},{"$f":"BIN2HEX(VALUE(MID(BackendTable[[#This Row],[DecString]],1,2)))&BIN2HEX(VALUE(MID(BackendTable[[#This Row],[DecString]],3,4)))&BIN2HEX(VALUE(MID(BackendTable[[#This Row],[DecString]],7,4)))","v":"1C0"},{"$f":"BackendTable[[#This Row],[Intensity]]&\";\"&BackendTable[[#This Row],[Speed]]&\";\"&BackendTable[[#This Row],[Light1]]&\";\"&BackendTable[[#This Row],[Light2]]&\";\"&BackendTable[[#This Row],[Light3]]&\";\"&BackendTable[[#This Row],[Light4]]&\";\"&BackendTable[[#This Row],[Light5]]&\";\"&BackendTable[[#This Row],[Light6]]","v":"1;3;0;0;0;0;0;0"},{"$f":"BackendTable[[#This Row],[HexString]]","v":"1C0"}]
[null,{"$f":"BackendTable[[#This Row],[Pattern]]&\"_\"&BackendTable[[#This Row],[Combo]]","v":"1L_P2_5"},"1L_P2",5,2,1,1,0,0,0,0,0,{"$f":"DEC2BIN(BackendTable[[#This Row],[Intensity]],2)&DEC2BIN(BackendTable[[#This Row],[Speed]],2)&_xlfn.CONCAT(BackendTable[[#This Row],[Light1]:[Light6]])","v":"1001100000"},{"$f":"BIN2HEX(VALUE(MID(BackendTable[[#This Row],[DecString]],1,2)))&BIN2HEX(VALUE(MID(BackendTable[[#This Row],[DecString]],3,4)))&BIN2HEX(VALUE(MID(BackendTable[[#This Row],[DecString]],7,4)))","v":"260"},{"$f":"BackendTable[[#This Row],[Intensity]]&\";\"&BackendTable[[#This Row],[Speed]]&\";\"&BackendTable[[#This Row],[Light1]]&\";\"&BackendTable[[#This Row],[Light2]]&\";\"&BackendTable[[#This Row],[Light3]]&\";\"&BackendTable[[#This Row],[Light4]]&\";\"&BackendTable[[#This Row],[Light5]]&\";\"&BackendTable[[#This Row],[Light6]]","v":"2;1;1;0;0;0;0;0"},{"$f":"BackendTable[[#This Row],[HexString]]","v":"260"}]
[null,{"$f":"BackendTable[[#This Row],[Pattern]]&\"_\"&BackendTable[[#This Row],[Combo]]","v":"1L_P2_6"},"1L_P2",6,3,3,1,0,0,0,0,0,{"$f":"DEC2BIN(BackendTable[[#This Row],[Intensity]],2)&DEC2BIN(BackendTable[[#This Row],[Speed]],2)&_xlfn.CONCAT(BackendTable[[#This Row],[Light1]:[Light6]])","v":"1111100000"},{"$f":"BIN2HEX(VALUE(MID(BackendTable[[#This Row],[DecString]],1,2)))&BIN2HEX(VALUE(MID(BackendTable[[#This Row],[DecString]],3,4)))&BIN2HEX(VALUE(MID(BackendTable[[#This Row],[DecString]],7,4)))","v":"3E0"},{"$f":"BackendTable[[#This Row],[Intensity]]&\";\"&BackendTable[[#This Row],[Speed]]&\";\"&BackendTable[[#This Row],[Light1]]&\";\"&BackendTable[[#This Row],[Light2]]&\";\"&BackendTable[[#This Row],[Light3]]&\";\"&BackendTable[[#This Row],[Light4]]&\";\"&BackendTable[[#This Row],[Light5]]&\";\"&BackendTable[[#This Row],[Light6]]","v":"3;3;1;0;0;0;0;0"},{"$f":"BackendTable[[#This Row],[HexString]]","v":"3E0"}]
[null,{"$f":"BackendTable[[#This Row],[Pattern]]&\"_\"&BackendTable[[#This Row],[Combo]]","v":"1L_P2_7"},"1L_P2",7,1,2,1,0,0,0,0,0,{"$f":"DEC2BIN(BackendTable[[#This Row],[Intensity]],2)&DEC2BIN(BackendTable[[#This Row],[Speed]],2)&_xlfn.CONCAT(BackendTable[[#This Row],[Light1]:[Light6]])","v":"0110100000"},{"$f":"BIN2HEX(VALUE(MID(BackendTable[[#This Row],[DecString]],1,2)))&BIN2HEX(VALUE(MID(BackendTable[[#This Row],[DecString]],3,4)))&BIN2HEX(VALUE(MID(BackendTable[[#This Row],[DecString]],7,4)))","v":"1A0"},{"$f":"BackendTable[[#This Row],[Intensity]]&\";\"&BackendTable[[#This Row],[Speed]]&\";\"&BackendTable[[#This Row],[Light1]]&\";\"&BackendTable[[#This Row],[Light2]]&\";\"&BackendTable[[#This Row],[Light3]]&\";\"&BackendTable[[#This Row],[Light4]]&\";\"&BackendTable[[#This Row],[Light5]]&\";\"&BackendTable[[#This Row],[Light6]]","v":"1;2;1;0;0;0;0;0"},{"$f":"BackendTable[[#This Row],[HexString]]","v":"1A0"}]
[null,{"$f":"BackendTable[[#This Row],[Pattern]]&\"_\"&BackendTable[[#This Row],[Combo]]","v":"1L_P2_8"},"1L_P2",8,1,1,0,0,0,0,0,0,{"$f":"DEC2BIN(BackendTable[[#This Row],[Intensity]],2)&DEC2BIN(BackendTable[[#This Row],[Speed]],2)&_xlfn.CONCAT(BackendTable[[#This Row],[Light1]:[Light6]])","v":"0101000000"},{"$f":"BIN2HEX(VALUE(MID(BackendTable[[#This Row],[DecString]],1,2)))&BIN2HEX(VALUE(MID(BackendTable[[#This Row],[DecString]],3,4)))&BIN2HEX(VALUE(MID(BackendTable[[#This Row],[DecString]],7,4)))","v":"140"},{"$f":"BackendTable[[#This Row],[Intensity]]&\";\"&BackendTable[[#This Row],[Speed]]&\";\"&BackendTable[[#This Row],[Light1]]&\";\"&BackendTable[[#This Row],[Light2]]&\";\"&BackendTable[[#This Row],[Light3]]&\";\"&BackendTable[[#This Row],[Light4]]&\";\"&BackendTable[[#This Row],[Light5]]&\";\"&BackendTable[[#This Row],[Light6]]","v":"1;1;0;0;0;0;0;0"},{"$f":"BackendTable[[#This Row],[HexString]]","v":"140"}]
[null,{"$f":"BackendTable[[#This Row],[Pattern]]&\"_\"&BackendTable[[#This Row],[Combo]]","v":"1L_P3_1"},"1L_P3",1,1,1,1,0,0,0,0,0,{"$f":"DEC2BIN(BackendTable[[#This Row],[Intensity]],2)&DEC2BIN(BackendTable[[#This Row],[Speed]],2)&_xlfn.CONCAT(BackendTable[[#This Row],[Light1]:[Light6]])","v":"0101100000"},{"$f":"BIN2HEX(VALUE(MID(BackendTable[[#This Row],[DecString]],1,2)))&BIN2HEX(VALUE(MID(BackendTable[[#This Row],[DecString]],3,4)))&BIN2HEX(VALUE(MID(BackendTable[[#This Row],[DecString]],7,4)))","v":"160"},{"$f":"BackendTable[[#This Row],[Intensity]]&\";\"&BackendTable[[#This Row],[Speed]]&\";\"&BackendTable[[#This Row],[Light1]]&\";\"&BackendTable[[#This Row],[Light2]]&\";\"&BackendTable[[#This Row],[Light3]]&\";\"&BackendTable[[#This Row],[Light4]]&\";\"&BackendTable[[#This Row],[Light5]]&\";\"&BackendTable[[#This Row],[Light6]]","v":"1;1;1;0;0;0;0;0"},{"$f":"BackendTable[[#This Row],[HexString]]","v":"160"}]
[null,{"$f":"BackendTable[[#This Row],[Pattern]]&\"_\"&BackendTable[[#This Row],[Combo]]","v":"1L_P3_2"},"1L_P3",2,2,3,0,0,0,0,0,0,{"$f":"DEC2BIN(BackendTable[[#This Row],[Intensity]],2)&DEC2BIN(BackendTable[[#This Row],[Speed]],2)&_xlfn.CONCAT(BackendTable[[#This Row],[Light1]:[Light6]])","v":"1011000000"},{"$f":"BIN2HEX(VALUE(MID(BackendTable[[#This Row],[DecString]],1,2)))&BIN2HEX(VALUE(MID(BackendTable[[#This Row],[DecString]],3,4)))&BIN2HEX(VALUE(MID(BackendTable[[#This Row],[DecString]],7,4)))","v":"2C0"},{"$f":"BackendTable[[#This Row],[Intensity]]&\";\"&BackendTable[[#This Row],[Speed]]&\";\"&BackendTable[[#This Row],[Light1]]&\";\"&BackendTable[[#This Row],[Light2]]&\";\"&BackendTable[[#This Row],[Light3]]&\";\"&BackendTable[[#This Row],[Light4]]&\";\"&BackendTable[[#This Row],[Light5]]&\";\"&BackendTable[[#This Row],[Light6]]","v":"2;3;0;0;0;0;0;0"},{"$f":"BackendTable[[#This Row],[HexString]]","v":"2C0"}]
[null,{"$f":"BackendTable[[#This Row],[Pattern]]&\"_\"&BackendTable[[#This Row],[Combo]]","v":"1L_P3_3"},"1L_P3",3,1,3,1,0,0,0,0,0,{"$f":"DEC2BIN(BackendTable[[#This Row],[Intensity]],2)&DEC2BIN(BackendTable[[#This Row],[Speed]],2)&_xlfn.CONCAT(BackendTable[[#This Row],[Light1]:[Light6]])","v":"0111100000"},{"$f":"BIN2HEX(VALUE(MID(BackendTable[[#This Row],[DecString]],1,2)))&BIN2HEX(VALUE(MID(BackendTable[[#This Row],[DecString]],3,4)))&BIN2HEX(VALUE(MID(BackendTable[[#This Row],[DecString]],7,4)))","v":"1E0"},{"$f":"BackendTable[[#This Row],[Intensity]]&\";\"&BackendTable[[#This Row],[Speed]]&\";\"&BackendTable[[#This Row],[Light1]]&\";\"&BackendTable[[#This Row],[Light2]]&\";\"&BackendTable[[#This Row],[Light3]]&\";\"&BackendTable[[#This Row],[Light4]]&\";\"&BackendTable[[#This Row],[Light5]]&\";\"&BackendTable[[#This Row],[Light6]]","v":"1;3;1;0;0;0;0;0"},{"$f":"BackendTable[[#This Row],[HexString]]","v":"1E0"}]
[null,{"$f":"BackendTable[[#This Row],[Pattern]]&\"_\"&BackendTable[[#This Row],[Combo]]","v":"1L_P3_4"},"1L_P3",4,2,1,1,0,0,0,0,0,{"$f":"DEC2BIN(BackendTable[[#This Row],[Intensity]],2)&DEC2BIN(BackendTable[[#This Row],[Speed]],2)&_xlfn.CONCAT(BackendTable[[#This Row],[Light1]:[Light6]])","v":"1001100000"},{"$f":"BIN2HEX(VALUE(MID(BackendTable[[#This Row],[DecString]],1,2)))&BIN2HEX(VALUE(MID(BackendTable[[#This Row],[DecString]],3,4)))&BIN2HEX(VALUE(MID(BackendTable[[#This Row],[DecString]],7,4)))","v":"260"},{"$f":"BackendTable[[#This Row],[Intensity]]&\";\"&BackendTable[[#This Row],[Speed]]&\";\"&BackendTable[[#This Row],[Light1]]&\";\"&BackendTable[[#This Row],[Light2]]&\";\"&BackendTable[[#This Row],[Light3]]&\";\"&BackendTable[[#This Row],[Light4]]&\";\"&BackendTable[[#This Row],[Light5]]&\";\"&BackendTable[[#This Row],[Light6]]","v":"2;1;1;0;0;0;0;0"},{"$f":"BackendTable[[#This Row],[HexString]]","v":"260"}]
[null,{"$f":"BackendTable[[#This Row],[Pattern]]&\"_\"&BackendTable[[#This Row],[Combo]]","v":"1L_P3_5"},"1L_P3",5,2,1,1,0,0,0,0,0,{"$f":"DEC2BIN(BackendTable[[#This Row],[Intensity]],2)&DEC2BIN(BackendTable[[#This Row],[Speed]],2)&_xlfn.CONCAT(BackendTable[[#This Row],[Light1]:[Light6]])","v":"1001100000"},{"$f":"BIN2HEX(VALUE(MID(BackendTable[[#This Row],[DecString]],1,2)))&BIN2HEX(VALUE(MID(BackendTable[[#This Row],[DecString]],3,4)))&BIN2HEX(VALUE(MID(BackendTable[[#This Row],[DecString]],7,4)))","v":"260"},{"$f":"BackendTable[[#This Row],[Intensity]]&\";\"&BackendTable[[#This Row],[Speed]]&\";\"&BackendTable[[#This Row],[Light1]]&\";\"&BackendTable[[#This Row],[Light2]]&\";\"&BackendTable[[#This Row],[Light3]]&\";\"&BackendTable[[#This Row],[Light4]]&\";\"&BackendTable[[#This Row],[Light5]]&\";\"&BackendTable[[#This Row],[Light6]]","v":"2;1;1;0;0;0;0;0"},{"$f":"BackendTable[[#This Row],[HexString]]","v":"260"}]
[null,{"$f":"BackendTable[[#This Row],[Pattern]]&\"_\"&BackendTable[[#This Row],[Combo]]","v":"1L_P3_6"},"1L_P3",6,2,2,0,0,0,0,0,0,{"$f":"DEC2BIN(BackendTable[[#This Row],[Intensity]],2)&DEC2BIN(BackendTable[[#This Row],[Speed]],2)&_xlfn.CONCAT(BackendTable[[#This Row],[Light1]:[Light6]])","v":"1010000000"},{"$f":"BIN2HEX(VALUE(MID(BackendTable[[#This Row],[DecString]],1,2)))&BIN2HEX(VALUE(MID(BackendTable[[#This Row],[DecString]],3,4)))&BIN2HEX(VALUE(MID(BackendTable[[#This Row],[DecString]],7,4)))","v":"280"},{"$f":"BackendTable[[#This Row],[Intensity]]&\";\"&BackendTable[[#This Row],[Speed]]&\";\"&BackendTable[[#This Row],[Light1]]&\";\"&BackendTable[[#This Row],[Light2]]&\";\"&BackendTable[[#This Row],[Light3]]&\";\"&BackendTable[[#This Row],[Light4]]&\";\"&BackendTable[[#This Row],[Light5]]&\";\"&BackendTable[[#This Row],[Light6]]","v":"2;2;0;0;0;0;0;0"},{"$f":"BackendTable[[#This Row],[HexString]]","v":"280"}]
[null,{"$f":"BackendTable[[#This Row],[Pattern]]&\"_\"&BackendTable[[#This Row],[Combo]]","v":"1L_P3_7"},"1L_P3",7,3,2,1,0,0,0,0,0,{"$f":"DEC2BIN(BackendTable[[#This Row],[Intensity]],2)&DEC2BIN(BackendTable[[#This Row],[Speed]],2)&_xlfn.CONCAT(BackendTable[[#This Row],[Light1]:[Light6]])","v":"1110100000"},{"$f":"BIN2HEX(VALUE(MID(BackendTable[[#This Row],[DecString]],1,2)))&BIN2HEX(VALUE(MID(BackendTable[[#This Row],[DecString]],3,4)))&BIN2HEX(VALUE(MID(BackendTable[[#This Row],[DecString]],7,4)))","v":"3A0"},{"$f":"BackendTable[[#This Row],[Intensity]]&\";\"&BackendTable[[#This Row],[Speed]]&\";\"&BackendTable[[#This Row],[Light1]]&\";\"&BackendTable[[#This Row],[Light2]]&\";\"&BackendTable[[#This Row],[Light3]]&\";\"&BackendTable[[#This Row],[Light4]]&\";\"&BackendTable[[#This Row],[Light5]]&\";\"&BackendTable[[#This Row],[Light6]]","v":"3;2;1;0;0;0;0;0"},{"$f":"BackendTable[[#This Row],[HexString]]","v":"3A0"}]
[null,{"$f":"BackendTable[[#This Row],[Pattern]]&\"_\"&BackendTable[[#This Row],[Combo]]","v":"1L_P3_8"},"1L_P3",8,2,3,1,0,0,0,0,0,{"$f":"DEC2BIN(BackendTable[[#This Row],[Intensity]],2)&DEC2BIN(BackendTable[[#This Row],[Speed]],2)&_xlfn.CONCAT(BackendTable[[#This Row],[Light1]:[Light6]])","v":"1011100000"},{"$f":"BIN2HEX(VALUE(MID(BackendTable[[#This Row],[DecString]],1,2)))&BIN2HEX(VALUE(MID(BackendTable[[#This Row],[DecString]],3,4)))&BIN2HEX(VALUE(MID(BackendTable[[#This Row],[DecString]],7,4)))","v":"2E0"},{"$f":"BackendTable[[#This Row],[Intensity]]&\";\"&BackendTable[[#This Row],[Speed]]&\";\"&BackendTable[[#This Row],[Light1]]&\";\"&BackendTable[[#This Row],[Light2]]&\";\"&BackendTable[[#This Row],[Light3]]&\";\"&BackendTable[[#This Row],[Light4]]&\";\"&BackendTable[[#This Row],[Light5]]&\";\"&BackendTable[[#This Row],[Light6]]","v":"2;3;1;0;0;0;0;0"},{"$f":"BackendTable[[#This Row],[HexString]]","v":"2E0"}]
[null,{"$f":"BackendTable[[#This Row],[Pattern]]&\"_\"&BackendTable[[#This Row],[Combo]]","v":"2L_P1_1"},"2L_P1",1,1,3,0,1,0,0,0,0,{"$f":"DEC2BIN(BackendTable[[#This Row],[Intensity]],2)&DEC2BIN(BackendTable[[#This Row],[Speed]],2)&_xlfn.CONCAT(BackendTable[[#This Row],[Light1]:[Light6]])","v":"0111010000"},{"$f":"BIN2HEX(VALUE(MID(BackendTable[[#This Row],[DecString]],1,2)))&BIN2HEX(VALUE(MID(BackendTable[[#This Row],[DecString]],3,4)))&BIN2HEX(VALUE(MID(BackendTable[[#This Row],[DecString]],7,4)))","v":"1D0"},{"$f":"BackendTable[[#This Row],[Intensity]]&\";\"&BackendTable[[#This Row],[Speed]]&\";\"&BackendTable[[#This Row],[Light1]]&\";\"&BackendTable[[#This Row],[Light2]]&\";\"&BackendTable[[#This Row],[Light3]]&\";\"&BackendTable[[#This Row],[Light4]]&\";\"&BackendTable[[#This Row],[Light5]]&\";\"&BackendTable[[#This Row],[Light6]]","v":"1;3;0;1;0;0;0;0"},{"$f":"BackendTable[[#This Row],[HexString]]","v":"1D0"}]
[null,{"$f":"BackendTable[[#This Row],[Pattern]]&\"_\"&BackendTable[[#This Row],[Combo]]","v":"2L_P1_2"},"2L_P1",2,3,1,1,0,0,0,0,0,{"$f":"DEC2BIN(BackendTable[[#This Row],[Intensity]],2)&DEC2BIN(BackendTable[[#This Row],[Speed]],2)&_xlfn.CONCAT(BackendTable[[#This Row],[Light1]:[Light6]])","v":"1101100000"},{"$f":"BIN2HEX(VALUE(MID(BackendTable[[#This Row],[DecString]],1,2)))&BIN2HEX(VALUE(MID(BackendTable[[#This Row],[DecString]],3,4)))&BIN2HEX(VALUE(MID(BackendTable[[#This Row],[DecString]],7,4)))","v":"360"},{"$f":"BackendTable[[#This Row],[Intensity]]&\";\"&BackendTable[[#This Row],[Speed]]&\";\"&BackendTable[[#This Row],[Light1]]&\";\"&BackendTable[[#This Row],[Light2]]&\";\"&BackendTable[[#This Row],[Light3]]&\";\"&BackendTable[[#This Row],[Light4]]&\";\"&BackendTable[[#This Row],[Light5]]&\";\"&BackendTable[[#This Row],[Light6]]","v":"3;1;1;0;0;0;0;0"},{"$f":"BackendTable[[#This Row],[HexString]]","v":"360"}]
[null,{"$f":"BackendTable[[#This Row],[Pattern]]&\"_\"&BackendTable[[#This Row],[Combo]]","v":"2L_P1_3"},"2L_P1",3,2,2,0,1,0,0,0,0,{"$f":"DEC2BIN(BackendTable[[#This Row],[Intensity]],2)&DEC2BIN(BackendTable[[#This Row],[Speed]],2)&_xlfn.CONCAT(BackendTable[[#This Row],[Light1]:[Light6]])","v":"1010010000"},{"$f":"BIN2HEX(VALUE(MID(BackendTable[[#This Row],[DecString]],1,2)))&BIN2HEX(VALUE(MID(BackendTable[[#This Row],[DecString]],3,4)))&BIN2HEX(VALUE(MID(BackendTable[[#This Row],[DecString]],7,4)))","v":"290"},{"$f":"BackendTable[[#This Row],[Intensity]]&\";\"&BackendTable[[#This Row],[Speed]]&\";\"&BackendTable[[#This Row],[Light1]]&\";\"&BackendTable[[#This Row],[Light2]]&\";\"&BackendTable[[#This Row],[Light3]]&\";\"&BackendTable[[#This Row],[Light4]]&\";\"&BackendTable[[#This Row],[Light5]]&\";\"&BackendTable[[#This Row],[Light6]]","v":"2;2;0;1;0;0;0;0"},{"$f":"BackendTable[[#This Row],[HexString]]","v":"290"}]
[null,{"$f":"BackendTable[[#This Row],[Pattern]]&\"_\"&BackendTable[[#This Row],[Combo]]","v":"2L_P1_4"},"2L_P1",4,1,1,1,1,0,0,0,0,{"$f":"DEC2BIN(BackendTable[[#This Row],[Intensity]],2)&DEC2BIN(BackendTable[[#This Row],[Speed]],2)&_xlfn.CONCAT(BackendTable[[#This Row],[Light1]:[Light6]])","v":"0101110000"},{"$f":"BIN2HEX(VALUE(MID(BackendTable[[#This Row],[DecString]],1,2)))&BIN2HEX(VALUE(MID(BackendTable[[#This Row],[DecString]],3,4)))&BIN2HEX(VALUE(MID(BackendTable[[#This Row],[DecString]],7,4)))","v":"170"},{"$f":"BackendTable[[#This Row],[Intensity]]&\";\"&BackendTable[[#This Row],[Speed]]&\";\"&BackendTable[[#This Row],[Light1]]&\";\"&BackendTable[[#This Row],[Light2]]&\";\"&BackendTable[[#This Row],[Light3]]&\";\"&BackendTable[[#This Row],[Light4]]&\";\"&BackendTable[[#This Row],[Light5]]&\";\"&BackendTable[[#This Row],[Light6]]","v":"1;1;1;1;0;0;0;0"},{"$f":"BackendTable[[#This Row],[HexString]]","v":"170"}]
[null,{"$f":"BackendTable[[#This Row],[Pattern]]&\"_\"&BackendTable[[#This Row],[Combo]]","v":"2L_P1_5"},"2L_P1",5,3,1,0,1,0,0,0,0,{"$f":"DEC2BIN(BackendTable[[#This Row],[Intensity]],2)&DEC2BIN(BackendTable[[#This Row],[Speed]],2)&_xlfn.CONCAT(BackendTable[[#This Row],[Light1]:[Light6]])","v":"1101010000"},{"$f":"BIN2HEX(VALUE(MID(BackendTable[[#This Row],[DecString]],1,2)))&BIN2HEX(VALUE(MID(BackendTable[[#This Row],[DecString]],3,4)))&BIN2HEX(VALUE(MID(BackendTable[[#This Row],[DecString]],7,4)))","v":"350"},{"$f":"BackendTable[[#This Row],[Intensity]]&\";\"&BackendTable[[#This Row],[Speed]]&\";\"&BackendTable[[#This Row],[Light1]]&\";\"&BackendTable[[#This Row],[Light2]]&\";\"&BackendTable[[#This Row],[Light3]]&\";\"&BackendTable[[#This Row],[Light4]]&\";\"&BackendTable[[#This Row],[Light5]]&\";\"&BackendTable[[#This Row],[Light6]]","v":"3;1;0;1;0;0;0;0"},{"$f":"BackendTable[[#This Row],[HexString]]","v":"350"}]
[null,{"$f":"BackendTable[[#This Row],[Pattern]]&\"_\"&BackendTable[[#This Row],[Combo]]","v":"2L_P1_6"},"2L_P1",6,2,1,1,0,0,0,0,0,{"$f":"DEC2BIN(BackendTable[[#This Row],[Intensity]],2)&DEC2BIN(BackendTable[[#This Row],[Speed]],2)&_xlfn.CONCAT(BackendTable[[#This Row],[Light1]:[Light6]])","v":"1001100000"},{"$f":"BIN2HEX(VALUE(MID(BackendTable[[#This Row],[DecString]],1,2)))&BIN2HEX(VALUE(MID(BackendTable[[#This Row],[DecString]],3,4)))&BIN2HEX(VALUE(MID(BackendTable[[#This Row],[DecString]],7,4)))","v":"260"},{"$f":"BackendTable[[#This Row],[Intensity]]&\";\"&BackendTable[[#This Row],[Speed]]&\";\"&BackendTable[[#This Row],[Light1]]&\";\"&BackendTable[[#This Row],[Light2]]&\";\"&BackendTable[[#This Row],[Light3]]&\";\"&BackendTable[[#This Row],[Light4]]&\";\"&BackendTable[[#This Row],[Light5]]&\";\"&BackendTable[[#This Row],[Light6]]","v":"2;1;1;0;0;0;0;0"},{"$f":"BackendTable[[#This Row],[HexString]]","v":"260"}]
[null,{"$f":"BackendTable[[#This Row],[Pattern]]&\"_\"&BackendTable[[#This Row],[Combo]]","v":"2L_P1_7"},"2L_P1",7,2,3,1,0,0,0,0,0,{"$f":"DEC2BIN(BackendTable[[#This Row],[Intensity]],2)&DEC2BIN(BackendTable[[#This Row],[Speed]],2)&_xlfn.CONCAT(BackendTable[[#This Row],[Light1]:[Light6]])","v":"1011100000"},{"$f":"BIN2HEX(VALUE(MID(BackendTable[[#This Row],[DecString]],1,2)))&BIN2HEX(VALUE(MID(BackendTable[[#This Row],[DecString]],3,4)))&BIN2HEX(VALUE(MID(BackendTable[[#This Row],[DecString]],7,4)))","v":"2E0"},{"$f":"BackendTable[[#This Row],[Intensity]]&\";\"&BackendTable[[#This Row],[Speed]]&\";\"&BackendTable[[#This Row],[Light1]]&\";\"&BackendTable[[#This Row],[Light2]]&\";\"&BackendTable[[#This Row],[Light3]]&\";\"&BackendTable[[#This Row],[Light4]]&\";\"&BackendTable[[#This Row],[Light5]]&\";\"&BackendTable[[#This Row],[Light6]]","v":"2;3;1;0;0;0;0;0"},{"$f":"BackendTable[[#This Row],[HexString]]","v":"2E0"}]
[null,{"$f":"BackendTable[[#This Row],[Pattern]]&\"_\"&BackendTable[[#This Row],[Combo]]","v":"2L_P1_8"},"2L_P1",8,3,2,1,1,0,0,0,0,{"$f":"DEC2BIN(BackendTable[[#This Row],[Intensity]],2)&DEC2BIN(BackendTable[[#This Row],[Speed]],2)&_xlfn.CONCAT(BackendTable[[#This Row],[Light1]:[Light6]])","v":"1110110000"},{"$f":"BIN2HEX(VALUE(MID(BackendTable[[#This Row],[DecString]],1,2)))&BIN2HEX(VALUE(MID(BackendTable[[#This Row],[DecString]],3,4)))&BIN2HEX(VALUE(MID(BackendTable[[#This Row],[DecString]],7,4)))","v":"3B0"},{"$f":"BackendTable[[#This Row],[Intensity]]&\";\"&BackendTable[[#This Row],[Speed]]&\";\"&BackendTable[[#This Row],[Light1]]&\";\"&BackendTable[[#This Row],[Light2]]&\";\"&BackendTable[[#This Row],[Light3]]&\";\"&BackendTable[[#This Row],[Light4]]&\";\"&BackendTable[[#This Row],[Light5]]&\";\"&BackendTable[[#This Row],[Light6]]","v":"3;2;1;1;0;0;0;0"},{"$f":"BackendTable[[#This Row],[HexString]]","v":"3B0"}]
[null,{"$f":"BackendTable[[#This Row],[Pattern]]&\"_\"&BackendTable[[#This Row],[Combo]]","v":"2L_P2_1"},"2L_P2",1,1,1,1,0,0,0,0,0,{"$f":"DEC2BIN(BackendTable[[#This Row],[Intensity]],2)&DEC2BIN(BackendTable[[#This Row],[Speed]],2)&_xlfn.CONCAT(BackendTable[[#This Row],[Light1]:[Light6]])","v":"0101100000"},{"$f":"BIN2HEX(VALUE(MID(BackendTable[[#This Row],[DecString]],1,2)))&BIN2HEX(VALUE(MID(BackendTable[[#This Row],[DecString]],3,4)))&BIN2HEX(VALUE(MID(BackendTable[[#This Row],[DecString]],7,4)))","v":"160"},{"$f":"BackendTable[[#This Row],[Intensity]]&\";\"&BackendTable[[#This Row],[Speed]]&\";\"&BackendTable[[#This Row],[Light1]]&\";\"&BackendTable[[#This Row],[Light2]]&\";\"&BackendTable[[#This Row],[Light3]]&\";\"&BackendTable[[#This Row],[Light4]]&\";\"&BackendTable[[#This Row],[Light5]]&\";\"&BackendTable[[#This Row],[Light6]]","v":"1;1;1;0;0;0;0;0"},{"$f":"BackendTable[[#This Row],[HexString]]","v":"160"}]
[null,{"$f":"BackendTable[[#This Row],[Pattern]]&\"_\"&BackendTable[[#This Row],[Combo]]","v":"2L_P2_2"},"2L_P2",2,1,1,0,1,0,0,0,0,{"$f":"DEC2BIN(BackendTable[[#This Row],[Intensity]],2)&DEC2BIN(BackendTable[[#This Row],[Speed]],2)&_xlfn.CONCAT(BackendTable[[#This Row],[Light1]:[Light6]])","v":"0101010000"},{"$f":"BIN2HEX(VALUE(MID(BackendTable[[#This Row],[DecString]],1,2)))&BIN2HEX(VALUE(MID(BackendTable[[#This Row],[DecString]],3,4)))&BIN2HEX(VALUE(MID(BackendTable[[#This Row],[DecString]],7,4)))","v":"150"},{"$f":"BackendTable[[#This Row],[Intensity]]&\";\"&BackendTable[[#This Row],[Speed]]&\";\"&BackendTable[[#This Row],[Light1]]&\";\"&BackendTable[[#This Row],[Light2]]&\";\"&BackendTable[[#This Row],[Light3]]&\";\"&BackendTable[[#This Row],[Light4]]&\";\"&BackendTable[[#This Row],[Light5]]&\";\"&BackendTable[[#This Row],[Light6]]","v":"1;1;0;1;0;0;0;0"},{"$f":"BackendTable[[#This Row],[HexString]]","v":"150"}]
[null,{"$f":"BackendTable[[#This Row],[Pattern]]&\"_\"&BackendTable[[#This Row],[Combo]]","v":"2L_P2_3"},"2L_P2",3,1,1,0,1,0,0,0,0,{"$f":"DEC2BIN(BackendTable[[#This Row],[Intensity]],2)&DEC2BIN(BackendTable[[#This Row],[Speed]],2)&_xlfn.CONCAT(BackendTable[[#This Row],[Light1]:[Light6]])","v":"0101010000"},{"$f":"BIN2HEX(VALUE(MID(BackendTable[[#This Row],[DecString]],1,2)))&BIN2HEX(VALUE(MID(BackendTable[[#This Row],[DecString]],3,4)))&BIN2HEX(VALUE(MID(BackendTable[[#This Row],[DecString]],7,4)))","v":"150"},{"$f":"BackendTable[[#This Row],[Intensity]]&\";\"&BackendTable[[#This Row],[Speed]]&\";\"&BackendTable[[#This Row],[Light1]]&\";\"&BackendTable[[#This Row],[Light2]]&\";\"&BackendTable[[#This Row],[Light3]]&\";\"&BackendTable[[#This Row],[Light4]]&\";\"&BackendTable[[#This Row],[Light5]]&\";\"&BackendTable[[#This Row],[Light6]]","v":"1;1;0;1;0;0;0;0"},{"$f":"BackendTable[[#This Row],[HexString]]","v":"150"}]
[null,{"$f":"BackendTable[[#This Row],[Pattern]]&\"_\"&BackendTable[[#This Row],[Combo]]","v":"2L_P2_4"},"2L_P2",4,2,1,1,0,0,0,0,0,{"$f":"DEC2BIN(BackendTable[[#This Row],[Intensity]],2)&DEC2BIN(BackendTable[[#This Row],[Speed]],2)&_xlfn.CONCAT(BackendTable[[#This Row],[Light1]:[Light6]])","v":"1001100000"},{"$f":"BIN2HEX(VALUE(MID(BackendTable[[#This Row],[DecString]],1,2)))&BIN2HEX(VALUE(MID(BackendTable[[#This Row],[DecString]],3,4)))&BIN2HEX(VALUE(MID(BackendTable[[#This Row],[DecString]],7,4)))","v":"260"},{"$f":"BackendTable[[#This Row],[Intensity]]&\";\"&BackendTable[[#This Row],[Speed]]&\";\"&BackendTable[[#This Row],[Light1]]&\";\"&BackendTable[[#This Row],[Light2]]&\";\"&BackendTable[[#This Row],[Light3]]&\";\"&BackendTable[[#This Row],[Light4]]&\";\"&BackendTable[[#This Row],[Light5]]&\";\"&BackendTable[[#This Row],[Light6]]","v":"2;1;1;0;0;0;0;0"},{"$f":"BackendTable[[#This Row],[HexString]]","v":"260"}]
[null,{"$f":"BackendTable[[#This Row],[Pattern]]&\"_\"&BackendTable[[#This Row],[Combo]]","v":"2L_P2_5"},"2L_P2",5,1,3,1,1,0,0,0,0,{"$f":"DEC2BIN(BackendTable[[#This Row],[Intensity]],2)&DEC2BIN(BackendTable[[#This Row],[Speed]],2)&_xlfn.CONCAT(BackendTable[[#This Row],[Light1]:[Light6]])","v":"0111110000"},{"$f":"BIN2HEX(VALUE(MID(BackendTable[[#This Row],[DecString]],1,2)))&BIN2HEX(VALUE(MID(BackendTable[[#This Row],[DecString]],3,4)))&BIN2HEX(VALUE(MID(BackendTable[[#This Row],[DecString]],7,4)))","v":"1F0"},{"$f":"BackendTable[[#This Row],[Intensity]]&\";\"&BackendTable[[#This Row],[Speed]]&\";\"&BackendTable[[#This Row],[Light1]]&\";\"&BackendTable[[#This Row],[Light2]]&\";\"&BackendTable[[#This Row],[Light3]]&\";\"&BackendTable[[#This Row],[Light4]]&\";\"&BackendTable[[#This Row],[Light5]]&\";\"&BackendTable[[#This Row],[Light6]]","v":"1;3;1;1;0;0;0;0"},{"$f":"BackendTable[[#This Row],[HexString]]","v":"1F0"}]
[null,{"$f":"BackendTable[[#This Row],[Pattern]]&\"_\"&BackendTable[[#This Row],[Combo]]","v":"2L_P2_6"},"2L_P2",6,1,2,1,0,0,0,0,0,{"$f":"DEC2BIN(BackendTable[[#This Row],[Intensity]],2)&DEC2BIN(BackendTable[[#This Row],[Speed]],2)&_xlfn.CONCAT(BackendTable[[#This Row],[Light1]:[Light6]])","v":"0110100000"},{"$f":"BIN2HEX(VALUE(MID(BackendTable[[#This Row],[DecString]],1,2)))&BIN2HEX(VALUE(MID(BackendTable[[#This Row],[DecString]],3,4)))&BIN2HEX(VALUE(MID(BackendTable[[#This Row],[DecString]],7,4)))","v":"1A0"},{"$f":"BackendTable[[#This Row],[Intensity]]&\";\"&BackendTable[[#This Row],[Speed]]&\";\"&BackendTable[[#This Row],[Light1]]&\";\"&BackendTable[[#This Row],[Light2]]&\";\"&BackendTable[[#This Row],[Light3]]&\";\"&BackendTable[[#This Row],[Light4]]&\";\"&BackendTable[[#This Row],[Light5]]&\";\"&BackendTable[[#This Row],[Light6]]","v":"1;2;1;0;0;0;0;0"},{"$f":"BackendTable[[#This Row],[HexString]]","v":"1A0"}]
[null,{"$f":"BackendTable[[#This Row],[Pattern]]&\"_\"&BackendTable[[#This Row],[Combo]]","v":"2L_P2_7"},"2L_P2",7,3,3,0,1,0,0,0,0,{"$f":"DEC2BIN(BackendTable[[#This Row],[Intensity]],2)&DEC2BIN(BackendTable[[#This Row],[Speed]],2)&_xlfn.CONCAT(BackendTable[[#This Row],[Light1]:[Light6]])","v":"1111010000"},{"$f":"BIN2HEX(VALUE(MID(BackendTable[[#This Row],[DecString]],1,2)))&BIN2HEX(VALUE(MID(BackendTable[[#This Row],[DecString]],3,4)))&BIN2HEX(VALUE(MID(BackendTable[[#This Row],[DecString]],7,4)))","v":"3D0"},{"$f":"BackendTable[[#This Row],[Intensity]]&\";\"&BackendTable[[#This Row],[Speed]]&\";\"&BackendTable[[#This Row],[Light1]]&\";\"&BackendTable[[#This Row],[Light2]]&\";\"&BackendTable[[#This Row],[Light3]]&\";\"&BackendTable[[#This Row],[Light4]]&\";\"&BackendTable[[#This Row],[Light5]]&\";\"&BackendTable[[#This Row],[Light6]]","v":"3;3;0;1;0;0;0;0"},{"$f":"BackendTable[[#This Row],[HexString]]","v":"3D0"}]
[null,{"$f":"BackendTable[[#This Row],[Pattern]]&\"_\"&BackendTable[[#This Row],[Combo]]","v":"2L_P2_8"},"2L_P2",8,1,3,1,0,0,0,0,0,{"$f":"DEC2BIN(BackendTable[[#This Row],[Intensity]],2)&DEC2BIN(BackendTable[[#This Row],[Speed]],2)&_xlfn.CONCAT(BackendTable[[#This Row],[Light1]:[Light6]])","v":"0111100000"},{"$f":"BIN2HEX(VALUE(MID(BackendTable[[#This Row],[DecString]],1,2)))&BIN2HEX(VALUE(MID(BackendTable[[#This Row],[DecString]],3,4)))&BIN2HEX(VALUE(MID(BackendTable[[#This Row],[DecString]],7,4)))","v":"1E0"},{"$f":"BackendTable[[#This Row],[Intensity]]&\";\"&BackendTable[[#This Row],[Speed]]&\";\"&BackendTable[[#This Row],[Light1]]&\";\"&BackendTable[[#This Row],[Light2]]&\";\"&BackendTable[[#This Row],[Light3]]&\";\"&BackendTable[[#This Row],[Light4]]&\";\"&BackendTable[[#This Row],[Light5]]&\";\"&BackendTable[[#This Row],[Light6]]","v":"1;3;1;0;0;0;0;0"},{"$f":"BackendTable[[#This Row],[HexString]]","v":"1E0"}]
[null,{"$f":"BackendTable[[#This Row],[Pattern]]&\"_\"&BackendTable[[#This Row],[Combo]]","v":"2L_P3_1"},"2L_P3",1,2,3,0,1,0,0,0,0,{"$f":"DEC2BIN(BackendTable[[#This Row],[Intensity]],2)&DEC2BIN(BackendTable[[#This Row],[Speed]],2)&_xlfn.CONCAT(BackendTable[[#This Row],[Light1]:[Light6]])","v":"1011010000"},{"$f":"BIN2HEX(VALUE(MID(BackendTable[[#This Row],[DecString]],1,2)))&BIN2HEX(VALUE(MID(BackendTable[[#This Row],[DecString]],3,4)))&BIN2HEX(VALUE(MID(BackendTable[[#This Row],[DecString]],7,4)))","v":"2D0"},{"$f":"BackendTable[[#This Row],[Intensity]]&\";\"&BackendTable[[#This Row],[Speed]]&\";\"&BackendTable[[#This Row],[Light1]]&\";\"&BackendTable[[#This Row],[Light2]]&\";\"&BackendTable[[#This Row],[Light3]]&\";\"&BackendTable[[#This Row],[Light4]]&\";\"&BackendTable[[#This Row],[Light5]]&\";\"&BackendTable[[#This Row],[Light6]]","v":"2;3;0;1;0;0;0;0"},{"$f":"BackendTable[[#This Row],[HexString]]","v":"2D0"}]
[null,{"$f":"BackendTable[[#This Row],[Pattern]]&\"_\"&BackendTable[[#This Row],[Combo]]","v":"2L_P3_2"},"2L_P3",2,2,2,1,0,0,0,0,0,{"$f":"DEC2BIN(BackendTable[[#This Row],[Intensity]],2)&DEC2BIN(BackendTable[[#This Row],[Speed]],2)&_xlfn.CONCAT(BackendTable[[#This Row],[Light1]:[Light6]])","v":"1010100000"},{"$f":"BIN2HEX(VALUE(MID(BackendTable[[#This Row],[DecString]],1,2)))&BIN2HEX(VALUE(MID(BackendTable[[#This Row],[DecString]],3,4)))&BIN2HEX(VALUE(MID(BackendTable[[#This Row],[DecString]],7,4)))","v":"2A0"},{"$f":"BackendTable[[#This Row],[Intensity]]&\";\"&BackendTable[[#This Row],[Speed]]&\";\"&BackendTable[[#This Row],[Light1]]&\";\"&BackendTable[[#This Row],[Light2]]&\";\"&BackendTable[[#This Row],[Light3]]&\";\"&BackendTable[[#This Row],[Light4]]&\";\"&BackendTable[[#This Row],[Light5]]&\";\"&BackendTable[[#This Row],[Light6]]","v":"2;2;1;0;0;0;0;0"},{"$f":"BackendTable[[#This Row],[HexString]]","v":"2A0"}]
[null,{"$f":"BackendTable[[#This Row],[Pattern]]&\"_\"&BackendTable[[#This Row],[Combo]]","v":"2L_P3_3"},"2L_P3",3,1,2,1,0,0,0,0,0,{"$f":"DEC2BIN(BackendTable[[#This Row],[Intensity]],2)&DEC2BIN(BackendTable[[#This Row],[Speed]],2)&_xlfn.CONCAT(BackendTable[[#This Row],[Light1]:[Light6]])","v":"0110100000"},{"$f":"BIN2HEX(VALUE(MID(BackendTable[[#This Row],[DecString]],1,2)))&BIN2HEX(VALUE(MID(BackendTable[[#This Row],[DecString]],3,4)))&BIN2HEX(VALUE(MID(BackendTable[[#This Row],[DecString]],7,4)))","v":"1A0"},{"$f":"BackendTable[[#This Row],[Intensity]]&\";\"&BackendTable[[#This Row],[Speed]]&\";\"&BackendTable[[#This Row],[Light1]]&\";\"&BackendTable[[#This Row],[Light2]]&\";\"&BackendTable[[#This Row],[Light3]]&\";\"&BackendTable[[#This Row],[Light4]]&\";\"&BackendTable[[#This Row],[Light5]]&\";\"&BackendTable[[#This Row],[Light6]]","v":"1;2;1;0;0;0;0;0"},{"$f":"BackendTable[[#This Row],[HexString]]","v":"1A0"}]
[null,{"$f":"BackendTable[[#This Row],[Pattern]]&\"_\"&BackendTable[[#This Row],[Combo]]","v":"2L_P3_4"},"2L_P3",4,2,1,0,1,0,0,0,0,{"$f":"DEC2BIN(BackendTable[[#This Row],[Intensity]],2)&DEC2BIN(BackendTable[[#This Row],[Speed]],2)&_xlfn.CONCAT(BackendTable[[#This Row],[Light1]:[Light6]])","v":"1001010000"},{"$f":"BIN2HEX(VALUE(MID(BackendTable[[#This Row],[DecString]],1,2)))&BIN2HEX(VALUE(MID(BackendTable[[#This Row],[DecString]],3,4)))&BIN2HEX(VALUE(MID(BackendTable[[#This Row],[DecString]],7,4)))","v":"250"},{"$f":"BackendTable[[#This Row],[Intensity]]&\";\"&BackendTable[[#This Row],[Speed]]&\";\"&BackendTable[[#This Row],[Light1]]&\";\"&BackendTable[[#This Row],[Light2]]&\";\"&BackendTable[[#This Row],[Light3]]&\";\"&BackendTable[[#This Row],[Light4]]&\";\"&BackendTable[[#This Row],[Light5]]&\";\"&BackendTable[[#This Row],[Light6]]","v":"2;1;0;1;0;0;0;0"},{"$f":"BackendTable[[#This Row],[HexString]]","v":"250"}]
[null,{"$f":"BackendTable[[#This Row],[Pattern]]&\"_\"&BackendTable[[#This Row],[Combo]]","v":"2L_P3_5"},"2L_P3",5,3,2,1,1,0,0,0,0,{"$f":"DEC2BIN(BackendTable[[#This Row],[Intensity]],2)&DEC2BIN(BackendTable[[#This Row],[Speed]],2)&_xlfn.CONCAT(BackendTable[[#This Row],[Light1]:[Light6]])","v":"1110110000"},{"$f":"BIN2HEX(VALUE(MID(BackendTable[[#This Row],[DecString]],1,2)))&BIN2HEX(VALUE(MID(BackendTable[[#This Row],[DecString]],3,4)))&BIN2HEX(VALUE(MID(BackendTable[[#This Row],[DecString]],7,4)))","v":"3B0"},{"$f":"BackendTable[[#This Row],[Intensity]]&\";\"&BackendTable[[#This Row],[Speed]]&\";\"&BackendTable[[#This Row],[Light1]]&\";\"&BackendTable[[#This Row],[Light2]]&\";\"&BackendTable[[#This Row],[Light3]]&\";\"&BackendTable[[#This Row],[Light4]]&\";\"&BackendTable[[#This Row],[Light5]]&\";\"&BackendTable[[#This Row],[Light6]]","v":"3;2;1;1;0;0;0;0"},{"$f":"BackendTable[[#This Row],[HexString]]","v":"3B0"}]
[null,{"$f":"BackendTable[[#This Row],[Pattern]]&\"_\"&BackendTable[[#This Row],[Combo]]","v":"2L_P3_6"},"2L_P3",6,3,3,1,0,0,0,0,0,{"$f":"DEC2BIN(BackendTable[[#This Row],[Intensity]],2)&DEC2BIN(BackendTable[[#This Row],[Speed]],2)&_xlfn.CONCAT(BackendTable[[#This Row],[Light1]:[Light6]])","v":"1111100000"},{"$f":"BIN2HEX(VALUE(MID(BackendTable[[#This Row],[DecString]],1,2)))&BIN2HEX(VALUE(MID(BackendTable[[#This Row],[DecString]],3,4)))&BIN2HEX(VALUE(MID(BackendTable[[#This Row],[DecString]],7,4)))","v":"3E0"},{"$f":"BackendTable[[#This Row],[Intensity]]&\";\"&BackendTable[[#This Row],[Speed]]&\";\"&BackendTable[[#This Row],[Light1]]&\";\"&BackendTable[[#This Row],[Light2]]&\";\"&BackendTable[[#This Row],[Light3]]&\";\"&BackendTable[[#This Row],[Light4]]&\";\"&BackendTable[[#This Row],[Light5]]&\";\"&BackendTable[[#This Row],[Light6]]","v":"3;3;1;0;0;0;0;0"},{"$f":"BackendTable[[#This Row],[HexString]]","v":"3E0"}]
[null,{"$f":"BackendTable[[#This Row],[Pattern]]&\"_\"&BackendTable[[#This Row],[Combo]]","v":"2L_P3_7"},"2L_P3",7,1,3,0,1,0,0,0,0,{"$f":"DEC2BIN(BackendTable[[#This Row],[Intensity]],2)&DEC2BIN(BackendTable[[#This Row],[Speed]],2)&_xlfn.CONCAT(BackendTable[[#This Row],[Light1]:[Light6]])","v":"0111010000"},{"$f":"BIN2HEX(VALUE(MID(BackendTable[[#This Row],[DecString]],1,2)))&BIN2HEX(VALUE(MID(BackendTable[[#This Row],[DecString]],3,4)))&BIN2HEX(VALUE(MID(BackendTable[[#This Row],[DecString]],7,4)))","v":"1D0"},{"$f":"BackendTable[[#This Row],[Intensity]]&\";\"&BackendTable[[#This Row],[Speed]]&\";\"&BackendTable[[#This Row],[Light1]]&\";\"&BackendTable[[#This Row],[Light2]]&\";\"&BackendTable[[#This Row],[Light3]]&\";\"&BackendTable[[#This Row],[Light4]]&\";\"&BackendTable[[#This Row],[Light5]]&\";\"&BackendTable[[#This Row],[Light6]]","v":"1;3;0;1;0;0;0;0"},{"$f":"BackendTable[[#This Row],[HexString]]","v":"1D0"}]
[null,{"$f":"BackendTable[[#This Row],[Pattern]]&\"_\"&BackendTable[[#This Row],[Combo]]","v":"2L_P3_8"},"2L_P3",8,2,1,1,0,0,0,0,0,{"$f":"DEC2BIN(BackendTable[[#This Row],[Intensity]],2)&DEC2BIN(BackendTable[[#This Row],[Speed]],2)&_xlfn.CONCAT(BackendTable[[#This Row],[Light1]:[Light6]])","v":"1001100000"},{"$f":"BIN2HEX(VALUE(MID(BackendTable[[#This Row],[DecString]],1,2)))&BIN2HEX(VALUE(MID(BackendTable[[#This Row],[DecString]],3,4)))&BIN2HEX(VALUE(MID(BackendTable[[#This Row],[DecString]],7,4)))","v":"260"},{"$f":"BackendTable[[#This Row],[Intensity]]&\";\"&BackendTable[[#This Row],[Speed]]&\";\"&BackendTable[[#This Row],[Light1]]&\";\"&BackendTable[[#This Row],[Light2]]&\";\"&BackendTable[[#This Row],[Light3]]&\";\"&BackendTable[[#This Row],[Light4]]&\";\"&BackendTable[[#This Row],[Light5]]&\";\"&BackendTable[[#This Row],[Light6]]","v":"2;1;1;0;0;0;0;0"},{"$f":"BackendTable[[#This Row],[HexString]]","v":"260"}]
[null,{"$f":"BackendTable[[#This Row],[Pattern]]&\"_\"&BackendTable[[#This Row],[Combo]]","v":"3L_P1_1"},"3L_P1",1,2,2,1,0,0,0,0,0,{"$f":"DEC2BIN(BackendTable[[#This Row],[Intensity]],2)&DEC2BIN(BackendTable[[#This Row],[Speed]],2)&_xlfn.CONCAT(BackendTable[[#This Row],[Light1]:[Light6]])","v":"1010100000"},{"$f":"BIN2HEX(VALUE(MID(BackendTable[[#This Row],[DecString]],1,2)))&BIN2HEX(VALUE(MID(BackendTable[[#This Row],[DecString]],3,4)))&BIN2HEX(VALUE(MID(BackendTable[[#This Row],[DecString]],7,4)))","v":"2A0"},{"$f":"BackendTable[[#This Row],[Intensity]]&\";\"&BackendTable[[#This Row],[Speed]]&\";\"&BackendTable[[#This Row],[Light1]]&\";\"&BackendTable[[#This Row],[Light2]]&\";\"&BackendTable[[#This Row],[Light3]]&\";\"&BackendTable[[#This Row],[Light4]]&\";\"&BackendTable[[#This Row],[Light5]]&\";\"&BackendTable[[#This Row],[Light6]]","v":"2;2;1;0;0;0;0;0"},{"$f":"BackendTable[[#This Row],[HexString]]","v":"2A0"}]
[null,{"$f":"BackendTable[[#This Row],[Pattern]]&\"_\"&BackendTable[[#This Row],[Combo]]","v":"3L_P1_2"},"3L_P1",2,1,2,0,0,1,0,0,0,{"$f":"DEC2BIN(BackendTable[[#This Row],[Intensity]],2)&DEC2BIN(BackendTable[[#This Row],[Speed]],2)&_xlfn.CONCAT(BackendTable[[#This Row],[Light1]:[Light6]])","v":"0110001000"},{"$f":"BIN2HEX(VALUE(MID(BackendTable[[#This Row],[DecString]],1,2)))&BIN2HEX(VALUE(MID(BackendTable[[#This Row],[DecString]],3,4)))&BIN2HEX(VALUE(MID(BackendTable[[#This Row],[DecString]],7,4)))","v":"188"},{"$f":"BackendTable[[#This Row],[Intensity]]&\";\"&BackendTable[[#This Row],[Speed]]&\";\"&BackendTable[[#This Row],[Light1]]&\";\"&BackendTable[[#This Row],[Light2]]&\";\"&BackendTable[[#This Row],[Light3]]&\";\"&BackendTable[[#This Row],[Light4]]&\";\"&BackendTable[[#This Row],[Light5]]&\";\"&BackendTable[[#This Row],[Light6]]","v":"1;2;0;0;1;0;0;0"},{"$f":"BackendTable[[#This Row],[HexString]]","v":"188"}]
[null,{"$f":"BackendTable[[#This Row],[Pattern]]&\"_\"&BackendTable[[#This Row],[Combo]]","v":"3L_P1_3"},"3L_P1",3,2,2,0,0,1,0,0,0,{"$f":"DEC2BIN(BackendTable[[#This Row],[Intensity]],2)&DEC2BIN(BackendTable[[#This Row],[Speed]],2)&_xlfn.CONCAT(BackendTable[[#This Row],[Light1]:[Light6]])","v":"1010001000"},{"$f":"BIN2HEX(VALUE(MID(BackendTable[[#This Row],[DecString]],1,2)))&BIN2HEX(VALUE(MID(BackendTable[[#This Row],[DecString]],3,4)))&BIN2HEX(VALUE(MID(BackendTable[[#This Row],[DecString]],7,4)))","v":"288"},{"$f":"BackendTable[[#This Row],[Intensity]]&\";\"&BackendTable[[#This Row],[Speed]]&\";\"&BackendTable[[#This Row],[Light1]]&\";\"&BackendTable[[#This Row],[Light2]]&\";\"&BackendTable[[#This Row],[Light3]]&\";\"&BackendTable[[#This Row],[Light4]]&\";\"&BackendTable[[#This Row],[Light5]]&\";\"&BackendTable[[#This Row],[Light6]]","v":"2;2;0;0;1;0;0;0"},{"$f":"BackendTable[[#This Row],[HexString]]","v":"288"}]
[null,{"$f":"BackendTable[[#This Row],[Pattern]]&\"_\"&BackendTable[[#This Row],[Combo]]","v":"3L_P1_4"},"3L_P1",4,3,2,0,0,1,0,0,0,{"$f":"DEC2BIN(BackendTable[[#This Row],[Intensity]],2)&DEC2BIN(BackendTable[[#This Row],[Speed]],2)&_xlfn.CONCAT(BackendTable[[#This Row],[Light1]:[Light6]])","v":"1110001000"},{"$f":"BIN2HEX(VALUE(MID(BackendTable[[#This Row],[DecString]],1,2)))&BIN2HEX(VALUE(MID(BackendTable[[#This Row],[DecString]],3,4)))&BIN2HEX(VALUE(MID(BackendTable[[#This Row],[DecString]],7,4)))","v":"388"},{"$f":"BackendTable[[#This Row],[Intensity]]&\";\"&BackendTable[[#This Row],[Speed]]&\";\"&BackendTable[[#This Row],[Light1]]&\";\"&BackendTable[[#This Row],[Light2]]&\";\"&BackendTable[[#This Row],[Light3]]&\";\"&BackendTable[[#This Row],[Light4]]&\";\"&BackendTable[[#This Row],[Light5]]&\";\"&BackendTable[[#This Row],[Light6]]","v":"3;2;0;0;1;0;0;0"},{"$f":"BackendTable[[#This Row],[HexString]]","v":"388"}]
[null,{"$f":"BackendTable[[#This Row],[Pattern]]&\"_\"&BackendTable[[#This Row],[Combo]]","v":"3L_P1_5"},"3L_P1",5,1,3,0,1,0,0,0,0,{"$f":"DEC2BIN(BackendTable[[#This Row],[Intensity]],2)&DEC2BIN(BackendTable[[#This Row],[Speed]],2)&_xlfn.CONCAT(BackendTable[[#This Row],[Light1]:[Light6]])","v":"0111010000"},{"$f":"BIN2HEX(VALUE(MID(BackendTable[[#This Row],[DecString]],1,2)))&BIN2HEX(VALUE(MID(BackendTable[[#This Row],[DecString]],3,4)))&BIN2HEX(VALUE(MID(BackendTable[[#This Row],[DecString]],7,4)))","v":"1D0"},{"$f":"BackendTable[[#This Row],[Intensity]]&\";\"&BackendTable[[#This Row],[Speed]]&\";\"&BackendTable[[#This Row],[Light1]]&\";\"&BackendTable[[#This Row],[Light2]]&\";\"&BackendTable[[#This Row],[Light3]]&\";\"&BackendTable[[#This Row],[Light4]]&\";\"&BackendTable[[#This Row],[Light5]]&\";\"&BackendTable[[#This Row],[Light6]]","v":"1;3;0;1;0;0;0;0"},{"$f":"BackendTable[[#This Row],[HexString]]","v":"1D0"}]
[null,{"$f":"BackendTable[[#This Row],[Pattern]]&\"_\"&BackendTable[[#This Row],[Combo]]","v":"3L_P1_6"},"3L_P1",6,3,3,0,1,0,0,0,0,{"$f":"DEC2BIN(BackendTable[[#This Row],[Intensity]],2)&DEC2BIN(BackendTable[[#This Row],[Speed]],2)&_xlfn.CONCAT(BackendTable[[#This Row],[Light1]:[Light6]])","v":"1111010000"},{"$f":"BIN2HEX(VALUE(MID(BackendTable[[#This Row],[DecString]],1,2)))&BIN2HEX(VALUE(MID(BackendTable[[#This Row],[DecString]],3,4)))&BIN2HEX(VALUE(MID(BackendTable[[#This Row],[DecString]],7,4)))","v":"3D0"},{"$f":"BackendTable[[#This Row],[Intensity]]&\";\"&BackendTable[[#This Row],[Speed]]&\";\"&BackendTable[[#This Row],[Light1]]&\";\"&BackendTable[[#This Row],[Light2]]&\";\"&BackendTable[[#This Row],[Light3]]&\";\"&BackendTable[[#This Row],[Light4]]&\";\"&BackendTable[[#This Row],[Light5]]&\";\"&BackendTable[[#This Row],[Light6]]","v":"3;3;0;1;0;0;0;0"},{"$f":"BackendTable[[#This Row],[HexString]]","v":"3D0"}]
[null,{"$f":"BackendTable[[#This Row],[Pattern]]&\"_\"&BackendTable[[#This Row],[Combo]]","v":"3L_P1_7"},"3L_P1",7,2,2,1,0,0,0,0,0,{"$f":"DEC2BIN(BackendTable[[#This Row],[Intensity]],2)&DEC2BIN(BackendTable[[#This Row],[Speed]],2)&_xlfn.CONCAT(BackendTable[[#This Row],[Light1]:[Light6]])","v":"1010100000"},{"$f":"BIN2HEX(VALUE(MID(BackendTable[[#This Row],[DecString]],1,2)))&BIN2HEX(VALUE(MID(BackendTable[[#This Row],[DecString]],3,4)))&BIN2HEX(VALUE(MID(BackendTable[[#This Row],[DecString]],7,4)))","v":"2A0"},{"$f":"BackendTable[[#This Row],[Intensity]]&\";\"&BackendTable[[#This Row],[Speed]]&\";\"&BackendTable[[#This Row],[Light1]]&\";\"&BackendTable[[#This Row],[Light2]]&\";\"&BackendTable[[#This Row],[Light3]]&\";\"&BackendTable[[#This Row],[Light4]]&\";\"&BackendTable[[#This Row],[Light5]]&\";\"&BackendTable[[#This Row],[Light6]]","v":"2;2;1;0;0;0;0;0"},{"$f":"BackendTable[[#This Row],[HexString]]","v":"2A0"}]
[null,{"$f":"BackendTable[[#This Row],[Pattern]]&\"_\"&BackendTable[[#This Row],[Combo]]","v":"3L_P1_8"},"3L_P1",8,2,2,1,0,0,0,0,0,{"$f":"DEC2BIN(BackendTable[[#This Row],[Intensity]],2)&DEC2BIN(BackendTable[[#This Row],[Speed]],2)&_xlfn.CONCAT(BackendTable[[#This Row],[Light1]:[Light6]])","v":"1010100000"},{"$f":"BIN2HEX(VALUE(MID(BackendTable[[#This Row],[DecString]],1,2)))&BIN2HEX(VALUE(MID(BackendTable[[#This Row],[DecString]],3,4)))&BIN2HEX(VALUE(MID(BackendTable[[#This Row],[DecString]],7,4)))","v":"2A0"},{"$f":"BackendTable[[#This Row],[Intensity]]&\";\"&BackendTable[[#This Row],[Speed]]&\";\"&BackendTable[[#This Row],[Light1]]&\";\"&BackendTable[[#This Row],[Light2]]&\";\"&BackendTable[[#This Row],[Light3]]&\";\"&BackendTable[[#This Row],[Light4]]&\";\"&BackendTable[[#This Row],[Light5]]&\";\"&BackendTable[[#This Row],[Light6]]","v":"2;2;1;0;0;0;0;0"},{"$f":"BackendTable[[#This Row],[HexString]]","v":"2A0"}]
[null,{"$f":"BackendTable[[#This Row],[Pattern]]&\"_\"&BackendTable[[#This Row],[Combo]]","v":"3L_P2_1"},"3L_P2",1,1,3,1,0,0,0,0,0,{"$f":"DEC2BIN(BackendTable[[#This Row],[Intensity]],2)&DEC2BIN(BackendTable[[#This Row],[Speed]],2)&_xlfn.CONCAT(BackendTable[[#This Row],[Light1]:[Light6]])","v":"0111100000"},{"$f":"BIN2HEX(VALUE(MID(BackendTable[[#This Row],[DecString]],1,2)))&BIN2HEX(VALUE(MID(BackendTable[[#This Row],[DecString]],3,4)))&BIN2HEX(VALUE(MID(BackendTable[[#This Row],[DecString]],7,4)))","v":"1E0"},{"$f":"BackendTable[[#This Row],[Intensity]]&\";\"&BackendTable[[#This Row],[Speed]]&\";\"&BackendTable[[#This Row],[Light1]]&\";\"&BackendTable[[#This Row],[Light2]]&\";\"&BackendTable[[#This Row],[Light3]]&\";\"&BackendTable[[#This Row],[Light4]]&\";\"&BackendTable[[#This Row],[Light5]]&\";\"&BackendTable[[#This Row],[Light6]]","v":"1;3;1;0;0;0;0;0"},{"$f":"BackendTable[[#This Row],[HexString]]","v":"1E0"}]
[null,{"$f":"BackendTable[[#This Row],[Pattern]]&\"_\"&BackendTable[[#This Row],[Combo]]","v":"3L_P2_2"},"3L_P2",2,2,1,1,0,0,0,0,0,{"$f":"DEC2BIN(BackendTable[[#This Row],[Intensity]],2)&DEC2BIN(BackendTable[[#This Row],[Speed]],2)&_xlfn.CONCAT(BackendTable[[#This Row],[Light1]:[Light6]])","v":"1001100000"},{"$f":"BIN2HEX(VALUE(MID(BackendTable[[#This Row],[DecString]],1,2)))&BIN2HEX(VALUE(MID(BackendTable[[#This Row],[DecString]],3,4)))&BIN2HEX(VALUE(MID(BackendTable[[#This Row],[DecString]],7,4)))","v":"260"},{"$f":"BackendTable[[#This Row],[Intensity]]&\";\"&BackendTable[[#This Row],[Speed]]&\";\"&BackendTable[[#This Row],[Light1]]&\";\"&BackendTable[[#This Row],[Light2]]&\";\"&BackendTable[[#This Row],[Light3]]&\";\"&BackendTable[[#This Row],[Light4]]&\";\"&BackendTable[[#This Row],[Light5]]&\";\"&BackendTable[[#This Row],[Light6]]","v":"2;1;1;0;0;0;0;0"},{"$f":"BackendTable[[#This Row],[HexString]]","v":"260"}]
[null,{"$f":"BackendTable[[#This Row],[Pattern]]&\"_\"&BackendTable[[#This Row],[Combo]]","v":"3L_P2_3"},"3L_P2",3,3,3,1,1,0,0,0,0,{"$f":"DEC2BIN(BackendTable[[#This Row],[Intensity]],2)&DEC2BIN(BackendTable[[#This Row],[Speed]],2)&_xlfn.CONCAT(BackendTable[[#This Row],[Light1]:[Light6]])","v":"1111110000"},{"$f":"BIN2HEX(VALUE(MID(BackendTable[[#This Row],[DecString]],1,2)))&BIN2HEX(VALUE(MID(BackendTable[[#This Row],[DecString]],3,4)))&BIN2HEX(VALUE(MID(BackendTable[[#This Row],[DecString]],7,4)))","v":"3F0"},{"$f":"BackendTable[[#This Row],[Intensity]]&\";\"&BackendTable[[#This Row],[Speed]]&\";\"&BackendTable[[#This Row],[Light1]]&\";\"&BackendTable[[#This Row],[Light2]]&\";\"&BackendTable[[#This Row],[Light3]]&\";\"&BackendTable[[#This Row],[Light4]]&\";\"&BackendTable[[#This Row],[Light5]]&\";\"&BackendTable[[#This Row],[Light6]]","v":"3;3;1;1;0;0;0;0"},{"$f":"BackendTable[[#This Row],[HexString]]","v":"3F0"}]
[null,{"$f":"BackendTable[[#This Row],[Pattern]]&\"_\"&BackendTable[[#This Row],[Combo]]","v":"3L_P2_4"},"3L_P2",4,2,2,1,1,0,0,0,0,{"$f":"DEC2BIN(BackendTable[[#This Row],[Intensity]],2)&DEC2BIN(BackendTable[[#This Row],[Speed]],2)&_xlfn.CONCAT(BackendTable[[#This Row],[Light1]:[Light6]])","v":"1010110000"},{"$f":"BIN2HEX(VALUE(MID(BackendTable[[#This Row],[DecString]],1,2)))&BIN2HEX(VALUE(MID(BackendTable[[#This Row],[DecString]],3,4)))&BIN2HEX(VALUE(MID(BackendTable[[#This Row],[DecString]],7,4)))","v":"2B0"},{"$f":"BackendTable[[#This Row],[Intensity]]&\";\"&BackendTable[[#This Row],[Speed]]&\";\"&BackendTable[[#This Row],[Light1]]&\";\"&BackendTable[[#This Row],[Light2]]&\";\"&BackendTable[[#This Row],[Light3]]&\";\"&BackendTable[[#This Row],[Light4]]&\";\"&BackendTable[[#This Row],[Light5]]&\";\"&BackendTable[[#This Row],[Light6]]","v":"2;2;1;1;0;0;0;0"},{"$f":"BackendTable[[#This Row],[HexString]]","v":"2B0"}]
[null,{"$f":"BackendTable[[#This Row],[Pattern]]&\"_\"&BackendTable[[#This Row],[Combo]]","v":"3L_P2_5"},"3L_P2",5,3,1,0,0,1,0,0,0,{"$f":"DEC2BIN(BackendTable[[#This Row],[Intensity]],2)&DEC2BIN(BackendTable[[#This Row],[Speed]],2)&_xlfn.CONCAT(BackendTable[[#This Row],[Light1]:[Light6]])","v":"1101001000"},{"$f":"BIN2HEX(VALUE(MID(BackendTable[[#This Row],[DecString]],1,2)))&BIN2HEX(VALUE(MID(BackendTable[[#This Row],[DecString]],3,4)))&BIN2HEX(VALUE(MID(BackendTable[[#This Row],[DecString]],7,4)))","v":"348"},{"$f":"BackendTable[[#This Row],[Intensity]]&\";\"&BackendTable[[#This Row],[Speed]]&\";\"&BackendTable[[#This Row],[Light1]]&\";\"&BackendTable[[#This Row],[Light2]]&\";\"&BackendTable[[#This Row],[Light3]]&\";\"&BackendTable[[#This Row],[Light4]]&\";\"&BackendTable[[#This Row],[Light5]]&\";\"&BackendTable[[#This Row],[Light6]]","v":"3;1;0;0;1;0;0;0"},{"$f":"BackendTable[[#This Row],[HexString]]","v":"348"}]
[null,{"$f":"BackendTable[[#This Row],[Pattern]]&\"_\"&BackendTable[[#This Row],[Combo]]","v":"3L_P2_6"},"3L_P2",6,2,3,0,0,1,0,0,0,{"$f":"DEC2BIN(BackendTable[[#This Row],[Intensity]],2)&DEC2BIN(BackendTable[[#This Row],[Speed]],2)&_xlfn.CONCAT(BackendTable[[#This Row],[Light1]:[Light6]])","v":"1011001000"},{"$f":"BIN2HEX(VALUE(MID(BackendTable[[#This Row],[DecString]],1,2)))&BIN2HEX(VALUE(MID(BackendTable[[#This Row],[DecString]],3,4)))&BIN2HEX(VALUE(MID(BackendTable[[#This Row],[DecString]],7,4)))","v":"2C8"},{"$f":"BackendTable[[#This Row],[Intensity]]&\";\"&BackendTable[[#This Row],[Speed]]&\";\"&BackendTable[[#This Row],[Light1]]&\";\"&BackendTable[[#This Row],[Light2]]&\";\"&BackendTable[[#This Row],[Light3]]&\";\"&BackendTable[[#This Row],[Light4]]&\";\"&BackendTable[[#This Row],[Light5]]&\";\"&BackendTable[[#This Row],[Light6]]","v":"2;3;0;0;1;0;0;0"},{"$f":"BackendTable[[#This Row],[HexString]]","v":"2C8"}]
[null,{"$f":"BackendTable[[#This Row],[Pattern]]&\"_\"&BackendTable[[#This Row],[Combo]]","v":"3L_P2_7"},"3L_P2",7,2,1,0,1,0,0,0,0,{"$f":"DEC2BIN(BackendTable[[#This Row],[Intensity]],2)&DEC2BIN(BackendTable[[#This Row],[Speed]],2)&_xlfn.CONCAT(BackendTable[[#This Row],[Light1]:[Light6]])","v":"1001010000"},{"$f":"BIN2HEX(VALUE(MID(BackendTable[[#This Row],[DecString]],1,2)))&BIN2HEX(VALUE(MID(BackendTable[[#This Row],[DecString]],3,4)))&BIN2HEX(VALUE(MID(BackendTable[[#This Row],[DecString]],7,4)))","v":"250"},{"$f":"BackendTable[[#This Row],[Intensity]]&\";\"&BackendTable[[#This Row],[Speed]]&\";\"&BackendTable[[#This Row],[Light1]]&\";\"&BackendTable[[#This Row],[Light2]]&\";\"&BackendTable[[#This Row],[Light3]]&\";\"&BackendTable[[#This Row],[Light4]]&\";\"&BackendTable[[#This Row],[Light5]]&\";\"&BackendTable[[#This Row],[Light6]]","v":"2;1;0;1;0;0;0;0"},{"$f":"BackendTable[[#This Row],[HexString]]","v":"250"}]
[null,{"$f":"BackendTable[[#This Row],[Pattern]]&\"_\"&BackendTable[[#This Row],[Combo]]","v":"3L_P2_8"},"3L_P2",8,1,3,0,1,0,0,0,0,{"$f":"DEC2BIN(BackendTable[[#This Row],[Intensity]],2)&DEC2BIN(BackendTable[[#This Row],[Speed]],2)&_xlfn.CONCAT(BackendTable[[#This Row],[Light1]:[Light6]])","v":"0111010000"},{"$f":"BIN2HEX(VALUE(MID(BackendTable[[#This Row],[DecString]],1,2)))&BIN2HEX(VALUE(MID(BackendTable[[#This Row],[DecString]],3,4)))&BIN2HEX(VALUE(MID(BackendTable[[#This Row],[DecString]],7,4)))","v":"1D0"},{"$f":"BackendTable[[#This Row],[Intensity]]&\";\"&BackendTable[[#This Row],[Speed]]&\";\"&BackendTable[[#This Row],[Light1]]&\";\"&BackendTable[[#This Row],[Light2]]&\";\"&BackendTable[[#This Row],[Light3]]&\";\"&BackendTable[[#This Row],[Light4]]&\";\"&BackendTable[[#This Row],[Light5]]&\";\"&BackendTable[[#This Row],[Light6]]","v":"1;3;0;1;0;0;0;0"},{"$f":"BackendTable[[#This Row],[HexString]]","v":"1D0"}]
[null,{"$f":"BackendTable[[#This Row],[Pattern]]&\"_\"&BackendTable[[#This Row],[Combo]]","v":"3L_P3_1"},"3L_P3",1,2,3,1,0,0,0,0,0,{"$f":"DEC2BIN(BackendTable[[#This Row],[Intensity]],2)&DEC2BIN(BackendTable[[#This Row],[Speed]],2)&_xlfn.CONCAT(BackendTable[[#This Row],[Light1]:[Light6]])","v":"1011100000"},{"$f":"BIN2HEX(VALUE(MID(BackendTable[[#This Row],[DecString]],1,2)))&BIN2HEX(VALUE(MID(BackendTable[[#This Row],[DecString]],3,4)))&BIN2HEX(VALUE(MID(BackendTable[[#This Row],[DecString]],7,4)))","v":"2E0"},{"$f":"BackendTable[[#This Row],[Intensity]]&\";\"&BackendTable[[#This Row],[Speed]]&\";\"&BackendTable[[#This Row],[Light1]]&\";\"&BackendTable[[#This Row],[Light2]]&\";\"&BackendTable[[#This Row],[Light3]]&\";\"&BackendTable[[#This Row],[Light4]]&\";\"&BackendTable[[#This Row],[Light5]]&\";\"&BackendTable[[#This Row],[Light6]]","v":"2;3;1;0;0;0;0;0"},{"$f":"BackendTable[[#This Row],[HexString]]","v":"2E0"}]
[null,{"$f":"BackendTable[[#This Row],[Pattern]]&\"_\"&BackendTable[[#This Row],[Combo]]","v":"3L_P3_2"},"3L_P3",2,1,1,0,0,0,0,0,0,{"$f":"DEC2BIN(BackendTable[[#This Row],[Intensity]],2)&DEC2BIN(BackendTable[[#This Row],[Speed]],2)&_xlfn.CONCAT(BackendTable[[#This Row],[Light1]:[Light6]])","v":"0101000000"},{"$f":"BIN2HEX(VALUE(MID(BackendTable[[#This Row],[DecString]],1,2)))&BIN2HEX(VALUE(MID(BackendTable[[#This Row],[DecString]],3,4)))&BIN2HEX(VALUE(MID(BackendTable[[#This Row],[DecString]],7,4)))","v":"140"},{"$f":"BackendTable[[#This Row],[Intensity]]&\";\"&BackendTable[[#This Row],[Speed]]&\";\"&BackendTable[[#This Row],[Light1]]&\";\"&BackendTable[[#This Row],[Light2]]&\";\"&BackendTable[[#This Row],[Light3]]&\";\"&BackendTable[[#This Row],[Light4]]&\";\"&BackendTable[[#This Row],[Light5]]&\";\"&BackendTable[[#This Row],[Light6]]","v":"1;1;0;0;0;0;0;0"},{"$f":"BackendTable[[#This Row],[HexString]]","v":"140"}]
[null,{"$f":"BackendTable[[#This Row],[Pattern]]&\"_\"&BackendTable[[#This Row],[Combo]]","v":"3L_P3_3"},"3L_P3",3,1,1,0,1,0,0,0,0,{"$f":"DEC2BIN(BackendTable[[#This Row],[Intensity]],2)&DEC2BIN(BackendTable[[#This Row],[Speed]],2)&_xlfn.CONCAT(BackendTable[[#This Row],[Light1]:[Light6]])","v":"0101010000"},{"$f":"BIN2HEX(VALUE(MID(BackendTable[[#This Row],[DecString]],1,2)))&BIN2HEX(VALUE(MID(BackendTable[[#This Row],[DecString]],3,4)))&BIN2HEX(VALUE(MID(BackendTable[[#This Row],[DecString]],7,4)))","v":"150"},{"$f":"BackendTable[[#This Row],[Intensity]]&\";\"&BackendTable[[#This Row],[Speed]]&\";\"&BackendTable[[#This Row],[Light1]]&\";\"&BackendTable[[#This Row],[Light2]]&\";\"&BackendTable[[#This Row],[Light3]]&\";\"&BackendTable[[#This Row],[Light4]]&\";\"&BackendTable[[#This Row],[Light5]]&\";\"&BackendTable[[#This Row],[Light6]]","v":"1;1;0;1;0;0;0;0"},{"$f":"BackendTable[[#This Row],[HexString]]","v":"150"}]
[null,{"$f":"BackendTable[[#This Row],[Pattern]]&\"_\"&BackendTable[[#This Row],[Combo]]","v":"3L_P3_4"},"3L_P3",4,1,3,0,0,1,0,0,0,{"$f":"DEC2BIN(BackendTable[[#This Row],[Intensity]],2)&DEC2BIN(BackendTable[[#This Row],[Speed]],2)&_xlfn.CONCAT(BackendTable[[#This Row],[Light1]:[Light6]])","v":"0111001000"},{"$f":"BIN2HEX(VALUE(MID(BackendTable[[#This Row],[DecString]],1,2)))&BIN2HEX(VALUE(MID(BackendTable[[#This Row],[DecString]],3,4)))&BIN2HEX(VALUE(MID(BackendTable[[#This Row],[DecString]],7,4)))","v":"1C8"},{"$f":"BackendTable[[#This Row],[Intensity]]&\";\"&BackendTable[[#This Row],[Speed]]&\";\"&BackendTable[[#This Row],[Light1]]&\";\"&BackendTable[[#This Row],[Light2]]&\";\"&BackendTable[[#This Row],[Light3]]&\";\"&BackendTable[[#This Row],[Light4]]&\";\"&BackendTable[[#This Row],[Light5]]&\";\"&BackendTable[[#This Row],[Light6]]","v":"1;3;0;0;1;0;0;0"},{"$f":"BackendTable[[#This Row],[HexString]]","v":"1C8"}]
[null,{"$f":"BackendTable[[#This Row],[Pattern]]&\"_\"&BackendTable[[#This Row],[Combo]]","v":"3L_P3_5"},"3L_P3",5,2,2,0,0,0,0,0,0,{"$f":"DEC2BIN(BackendTable[[#This Row],[Intensity]],2)&DEC2BIN(BackendTable[[#This Row],[Speed]],2)&_xlfn.CONCAT(BackendTable[[#This Row],[Light1]:[Light6]])","v":"1010000000"},{"$f":"BIN2HEX(VALUE(MID(BackendTable[[#This Row],[DecString]],1,2)))&BIN2HEX(VALUE(MID(BackendTable[[#This Row],[DecString]],3,4)))&BIN2HEX(VALUE(MID(BackendTable[[#This Row],[DecString]],7,4)))","v":"280"},{"$f":"BackendTable[[#This Row],[Intensity]]&\";\"&BackendTable[[#This Row],[Speed]]&\";\"&BackendTable[[#This Row],[Light1]]&\";\"&BackendTable[[#This Row],[Light2]]&\";\"&BackendTable[[#This Row],[Light3]]&\";\"&BackendTable[[#This Row],[Light4]]&\";\"&BackendTable[[#This Row],[Light5]]&\";\"&BackendTable[[#This Row],[Light6]]","v":"2;2;0;0;0;0;0;0"},{"$f":"BackendTable[[#This Row],[HexString]]","v":"280"}]
[null,{"$f":"BackendTable[[#This Row],[Pattern]]&\"_\"&BackendTable[[#This Row],[Combo]]","v":"3L_P3_6"},"3L_P3",6,3,1,1,1,1,0,0,0,{"$f":"DEC2BIN(BackendTable[[#This Row],[Intensity]],2)&DEC2BIN(BackendTable[[#This Row],[Speed]],2)&_xlfn.CONCAT(BackendTable[[#This Row],[Light1]:[Light6]])","v":"1101111000"},{"$f":"BIN2HEX(VALUE(MID(BackendTable[[#This Row],[DecString]],1,2)))&BIN2HEX(VALUE(MID(BackendTable[[#This Row],[DecString]],3,4)))&BIN2HEX(VALUE(MID(BackendTable[[#This Row],[DecString]],7,4)))","v":"378"},{"$f":"BackendTable[[#This Row],[Intensity]]&\";\"&BackendTable[[#This Row],[Speed]]&\";\"&BackendTable[[#This Row],[Light1]]&\";\"&BackendTable[[#This Row],[Light2]]&\";\"&BackendTable[[#This Row],[Light3]]&\";\"&BackendTable[[#This Row],[Light4]]&\";\"&BackendTable[[#This Row],[Light5]]&\";\"&BackendTable[[#This Row],[Light6]]","v":"3;1;1;1;1;0;0;0"},{"$f":"BackendTable[[#This Row],[HexString]]","v":"378"}]
[null,{"$f":"BackendTable[[#This Row],[Pattern]]&\"_\"&BackendTable[[#This Row],[Combo]]","v":"3L_P3_7"},"3L_P3",7,2,3,0,0,1,0,0,0,{"$f":"DEC2BIN(BackendTable[[#This Row],[Intensity]],2)&DEC2BIN(BackendTable[[#This Row],[Speed]],2)&_xlfn.CONCAT(BackendTable[[#This Row],[Light1]:[Light6]])","v":"1011001000"},{"$f":"BIN2HEX(VALUE(MID(BackendTable[[#This Row],[DecString]],1,2)))&BIN2HEX(VALUE(MID(BackendTable[[#This Row],[DecString]],3,4)))&BIN2HEX(VALUE(MID(BackendTable[[#This Row],[DecString]],7,4)))","v":"2C8"},{"$f":"BackendTable[[#This Row],[Intensity]]&\";\"&BackendTable[[#This Row],[Speed]]&\";\"&BackendTable[[#This Row],[Light1]]&\";\"&BackendTable[[#This Row],[Light2]]&\";\"&BackendTable[[#This Row],[Light3]]&\";\"&BackendTable[[#This Row],[Light4]]&\";\"&BackendTable[[#This Row],[Light5]]&\";\"&BackendTable[[#This Row],[Light6]]","v":"2;3;0;0;1;0;0;0"},{"$f":"BackendTable[[#This Row],[HexString]]","v":"2C8"}]
[null,{"$f":"BackendTable[[#This Row],[Pattern]]&\"_\"&BackendTable[[#This Row],[Combo]]","v":"3L_P3_8"},"3L_P3",8,3,3,0,0,1,0,0,0,{"$f":"DEC2BIN(BackendTable[[#This Row],[Intensity]],2)&DEC2BIN(BackendTable[[#This Row],[Speed]],2)&_xlfn.CONCAT(BackendTable[[#This Row],[Light1]:[Light6]])","v":"1111001000"},{"$f":"BIN2HEX(VALUE(MID(BackendTable[[#This Row],[DecString]],1,2)))&BIN2HEX(VALUE(MID(BackendTable[[#This Row],[DecString]],3,4)))&BIN2HEX(VALUE(MID(BackendTable[[#This Row],[DecString]],7,4)))","v":"3C8"},{"$f":"BackendTable[[#This Row],[Intensity]]&\";\"&BackendTable[[#This Row],[Speed]]&\";\"&BackendTable[[#This Row],[Light1]]&\";\"&BackendTable[[#This Row],[Light2]]&\";\"&BackendTable[[#This Row],[Light3]]&\";\"&BackendTable[[#This Row],[Light4]]&\";\"&BackendTable[[#This Row],[Light5]]&\";\"&BackendTable[[#This Row],[Light6]]","v":"3;3;0;0;1;0;0;0"},{"$f":"BackendTable[[#This Row],[HexString]]","v":"3C8"}]
[null,{"$f":"BackendTable[[#This Row],[Pattern]]&\"_\"&BackendTable[[#This Row],[Combo]]","v":"4L_P1_1"},"4L_P1",1,1,2,0,0,0,1,0,0,{"$f":"DEC2BIN(BackendTable[[#This Row],[Intensity]],2)&DEC2BIN(BackendTable[[#This Row],[Speed]],2)&_xlfn.CONCAT(BackendTable[[#This Row],[Light1]:[Light6]])","v":"0110000100"},{"$f":"BIN2HEX(VALUE(MID(BackendTable[[#This Row],[DecString]],1,2)))&BIN2HEX(VALUE(MID(BackendTable[[#This Row],[DecString]],3,4)))&BIN2HEX(VALUE(MID(BackendTable[[#This Row],[DecString]],7,4)))","v":"184"},{"$f":"BackendTable[[#This Row],[Intensity]]&\";\"&BackendTable[[#This Row],[Speed]]&\";\"&BackendTable[[#This Row],[Light1]]&\";\"&BackendTable[[#This Row],[Light2]]&\";\"&BackendTable[[#This Row],[Light3]]&\";\"&BackendTable[[#This Row],[Light4]]&\";\"&BackendTable[[#This Row],[Light5]]&\";\"&BackendTable[[#This Row],[Light6]]","v":"1;2;0;0;0;1;0;0"},{"$f":"BackendTable[[#This Row],[HexString]]","v":"184"}]
[null,{"$f":"BackendTable[[#This Row],[Pattern]]&\"_\"&BackendTable[[#This Row],[Combo]]","v":"4L_P1_2"},"4L_P1",2,1,3,1,0,0,1,0,0,{"$f":"DEC2BIN(BackendTable[[#This Row],[Intensity]],2)&DEC2BIN(BackendTable[[#This Row],[Speed]],2)&_xlfn.CONCAT(BackendTable[[#This Row],[Light1]:[Light6]])","v":"0111100100"},{"$f":"BIN2HEX(VALUE(MID(BackendTable[[#This Row],[DecString]],1,2)))&BIN2HEX(VALUE(MID(BackendTable[[#This Row],[DecString]],3,4)))&BIN2HEX(VALUE(MID(BackendTable[[#This Row],[DecString]],7,4)))","v":"1E4"},{"$f":"BackendTable[[#This Row],[Intensity]]&\";\"&BackendTable[[#This Row],[Speed]]&\";\"&BackendTable[[#This Row],[Light1]]&\";\"&BackendTable[[#This Row],[Light2]]&\";\"&BackendTable[[#This Row],[Light3]]&\";\"&BackendTable[[#This Row],[Light4]]&\";\"&BackendTable[[#This Row],[Light5]]&\";\"&BackendTable[[#This Row],[Light6]]","v":"1;3;1;0;0;1;0;0"},{"$f":"BackendTable[[#This Row],[HexString]]","v":"1E4"}]
[null,{"$f":"BackendTable[[#This Row],[Pattern]]&\"_\"&BackendTable[[#This Row],[Combo]]","v":"4L_P1_3"},"4L_P1",3,1,3,1,1,0,1,0,0,{"$f":"DEC2BIN(BackendTable[[#This Row],[Intensity]],2)&DEC2BIN(BackendTable[[#This Row],[Speed]],2)&_xlfn.CONCAT(BackendTable[[#This Row],[Light1]:[Light6]])","v":"0111110100"},{"$f":"BIN2HEX(VALUE(MID(BackendTable[[#This Row],[DecString]],1,2)))&BIN2HEX(VALUE(MID(BackendTable[[#This Row],[DecString]],3,4)))&BIN2HEX(VALUE(MID(BackendTable[[#This Row],[DecString]],7,4)))","v":"1F4"},{"$f":"BackendTable[[#This Row],[Intensity]]&\";\"&BackendTable[[#This Row],[Speed]]&\";\"&BackendTable[[#This Row],[Light1]]&\";\"&BackendTable[[#This Row],[Light2]]&\";\"&BackendTable[[#This Row],[Light3]]&\";\"&BackendTable[[#This Row],[Light4]]&\";\"&BackendTable[[#This Row],[Light5]]&\";\"&BackendTable[[#This Row],[Light6]]","v":"1;3;1;1;0;1;0;0"},{"$f":"BackendTable[[#This Row],[HexString]]","v":"1F4"}]
[null,{"$f":"BackendTable[[#This Row],[Pattern]]&\"_\"&BackendTable[[#This Row],[Combo]]","v":"4L_P1_4"},"4L_P1",4,3,3,0,1,0,0,0,0,{"$f":"DEC2BIN(BackendTable[[#This Row],[Intensity]],2)&DEC2BIN(BackendTable[[#This Row],[Speed]],2)&_xlfn.CONCAT(BackendTable[[#This Row],[Light1]:[Light6]])","v":"1111010000"},{"$f":"BIN2HEX(VALUE(MID(BackendTable[[#This Row],[DecString]],1,2)))&BIN2HEX(VALUE(MID(BackendTable[[#This Row],[DecString]],3,4)))&BIN2HEX(VALUE(MID(BackendTable[[#This Row],[DecString]],7,4)))","v":"3D0"},{"$f":"BackendTable[[#This Row],[Intensity]]&\";\"&BackendTable[[#This Row],[Speed]]&\";\"&BackendTable[[#This Row],[Light1]]&\";\"&BackendTable[[#This Row],[Light2]]&\";\"&BackendTable[[#This Row],[Light3]]&\";\"&BackendTable[[#This Row],[Light4]]&\";\"&BackendTable[[#This Row],[Light5]]&\";\"&BackendTable[[#This Row],[Light6]]","v":"3;3;0;1;0;0;0;0"},{"$f":"BackendTable[[#This Row],[HexString]]","v":"3D0"}]
[null,{"$f":"BackendTable[[#This Row],[Pattern]]&\"_\"&BackendTable[[#This Row],[Combo]]","v":"4L_P1_5"},"4L_P1",5,3,3,1,0,1,0,0,0,{"$f":"DEC2BIN(BackendTable[[#This Row],[Intensity]],2)&DEC2BIN(BackendTable[[#This Row],[Speed]],2)&_xlfn.CONCAT(BackendTable[[#This Row],[Light1]:[Light6]])","v":"1111101000"},{"$f":"BIN2HEX(VALUE(MID(BackendTable[[#This Row],[DecString]],1,2)))&BIN2HEX(VALUE(MID(BackendTable[[#This Row],[DecString]],3,4)))&BIN2HEX(VALUE(MID(BackendTable[[#This Row],[DecString]],7,4)))","v":"3E8"},{"$f":"BackendTable[[#This Row],[Intensity]]&\";\"&BackendTable[[#This Row],[Speed]]&\";\"&BackendTable[[#This Row],[Light1]]&\";\"&BackendTable[[#This Row],[Light2]]&\";\"&BackendTable[[#This Row],[Light3]]&\";\"&BackendTable[[#This Row],[Light4]]&\";\"&BackendTable[[#This Row],[Light5]]&\";\"&BackendTable[[#This Row],[Light6]]","v":"3;3;1;0;1;0;0;0"},{"$f":"BackendTable[[#This Row],[HexString]]","v":"3E8"}]
[null,{"$f":"BackendTable[[#This Row],[Pattern]]&\"_\"&BackendTable[[#This Row],[Combo]]","v":"4L_P1_6"},"4L_P1",6,1,3,0,0,1,0,0,0,{"$f":"DEC2BIN(BackendTable[[#This Row],[Intensity]],2)&DEC2BIN(BackendTable[[#This Row],[Speed]],2)&_xlfn.CONCAT(BackendTable[[#This Row],[Light1]:[Light6]])","v":"0111001000"},{"$f":"BIN2HEX(VALUE(MID(BackendTable[[#This Row],[DecString]],1,2)))&BIN2HEX(VALUE(MID(BackendTable[[#This Row],[DecString]],3,4)))&BIN2HEX(VALUE(MID(BackendTable[[#This Row],[DecString]],7,4)))","v":"1C8"},{"$f":"BackendTable[[#This Row],[Intensity]]&\";\"&BackendTable[[#This Row],[Speed]]&\";\"&BackendTable[[#This Row],[Light1]]&\";\"&BackendTable[[#This Row],[Light2]]&\";\"&BackendTable[[#This Row],[Light3]]&\";\"&BackendTable[[#This Row],[Light4]]&\";\"&BackendTable[[#This Row],[Light5]]&\";\"&BackendTable[[#This Row],[Light6]]","v":"1;3;0;0;1;0;0;0"},{"$f":"BackendTable[[#This Row],[HexString]]","v":"1C8"}]
[null,{"$f":"BackendTable[[#This Row],[Pattern]]&\"_\"&BackendTable[[#This Row],[Combo]]","v":"4L_P1_7"},"4L_P1",7,1,2,0,1,0,0,0,0,{"$f":"DEC2BIN(BackendTable[[#This Row],[Intensity]],2)&DEC2BIN(BackendTable[[#This Row],[Speed]],2)&_xlfn.CONCAT(BackendTable[[#This Row],[Light1]:[Light6]])","v":"0110010000"},{"$f":"BIN2HEX(VALUE(MID(BackendTable[[#This Row],[DecString]],1,2)))&BIN2HEX(VALUE(MID(BackendTable[[#This Row],[DecString]],3,4)))&BIN2HEX(VALUE(MID(BackendTable[[#This Row],[DecString]],7,4)))","v":"190"},{"$f":"BackendTable[[#This Row],[Intensity]]&\";\"&BackendTable[[#This Row],[Speed]]&\";\"&BackendTable[[#This Row],[Light1]]&\";\"&BackendTable[[#This Row],[Light2]]&\";\"&BackendTable[[#This Row],[Light3]]&\";\"&BackendTable[[#This Row],[Light4]]&\";\"&BackendTable[[#This Row],[Light5]]&\";\"&BackendTable[[#This Row],[Light6]]","v":"1;2;0;1;0;0;0;0"},{"$f":"BackendTable[[#This Row],[HexString]]","v":"190"}]
[null,{"$f":"BackendTable[[#This Row],[Pattern]]&\"_\"&BackendTable[[#This Row],[Combo]]","v":"4L_P1_8"},"4L_P1",8,3,1,1,1,0,0,0,0,{"$f":"DEC2BIN(BackendTable[[#This Row],[Intensity]],2)&DEC2BIN(BackendTable[[#This Row],[Speed]],2)&_xlfn.CONCAT(BackendTable[[#This Row],[Light1]:[Light6]])","v":"1101110000"},{"$f":"BIN2HEX(VALUE(MID(BackendTable[[#This Row],[DecString]],1,2)))&BIN2HEX(VALUE(MID(BackendTable[[#This Row],[DecString]],3,4)))&BIN2HEX(VALUE(MID(BackendTable[[#This Row],[DecString]],7,4)))","v":"370"},{"$f":"BackendTable[[#This Row],[Intensity]]&\";\"&BackendTable[[#This Row],[Speed]]&\";\"&BackendTable[[#This Row],[Light1]]&\";\"&BackendTable[[#This Row],[Light2]]&\";\"&BackendTable[[#This Row],[Light3]]&\";\"&BackendTable[[#This Row],[Light4]]&\";\"&BackendTable[[#This Row],[Light5]]&\";\"&BackendTable[[#This Row],[Light6]]","v":"3;1;1;1;0;0;0;0"},{"$f":"BackendTable[[#This Row],[HexString]]","v":"370"}]
[null,{"$f":"BackendTable[[#This Row],[Pattern]]&\"_\"&BackendTable[[#This Row],[Combo]]","v":"4L_P2_1"},"4L_P2",1,3,1,1,0,0,0,0,0,{"$f":"DEC2BIN(BackendTable[[#This Row],[Intensity]],2)&DEC2BIN(BackendTable[[#This Row],[Speed]],2)&_xlfn.CONCAT(BackendTable[[#This Row],[Light1]:[Light6]])","v":"1101100000"},{"$f":"BIN2HEX(VALUE(MID(BackendTable[[#This Row],[DecString]],1,2)))&BIN2HEX(VALUE(MID(BackendTable[[#This Row],[DecString]],3,4)))&BIN2HEX(VALUE(MID(BackendTable[[#This Row],[DecString]],7,4)))","v":"360"},{"$f":"BackendTable[[#This Row],[Intensity]]&\";\"&BackendTable[[#This Row],[Speed]]&\";\"&BackendTable[[#This Row],[Light1]]&\";\"&BackendTable[[#This Row],[Light2]]&\";\"&BackendTable[[#This Row],[Light3]]&\";\"&BackendTable[[#This Row],[Light4]]&\";\"&BackendTable[[#This Row],[Light5]]&\";\"&BackendTable[[#This Row],[Light6]]","v":"3;1;1;0;0;0;0;0"},{"$f":"BackendTable[[#This Row],[HexString]]","v":"360"}]
[null,{"$f":"BackendTable[[#This Row],[Pattern]]&\"_\"&BackendTable[[#This Row],[Combo]]","v":"4L_P2_2"},"4L_P2",2,1,1,0,1,1,0,0,0,{"$f":"DEC2BIN(BackendTable[[#This Row],[Intensity]],2)&DEC2BIN(BackendTable[[#This Row],[Speed]],2)&_xlfn.CONCAT(BackendTable[[#This Row],[Light1]:[Light6]])","v":"0101011000"},{"$f":"BIN2HEX(VALUE(MID(BackendTable[[#This Row],[DecString]],1,2)))&BIN2HEX(VALUE(MID(BackendTable[[#This Row],[DecString]],3,4)))&BIN2HEX(VALUE(MID(BackendTable[[#This Row],[DecString]],7,4)))","v":"158"},{"$f":"BackendTable[[#This Row],[Intensity]]&\";\"&BackendTable[[#This Row],[Speed]]&\";\"&BackendTable[[#This Row],[Light1]]&\";\"&BackendTable[[#This Row],[Light2]]&\";\"&BackendTable[[#This Row],[Light3]]&\";\"&BackendTable[[#This Row],[Light4]]&\";\"&BackendTable[[#This Row],[Light5]]&\";\"&BackendTable[[#This Row],[Light6]]","v":"1;1;0;1;1;0;0;0"},{"$f":"BackendTable[[#This Row],[HexString]]","v":"158"}]
[null,{"$f":"BackendTable[[#This Row],[Pattern]]&\"_\"&BackendTable[[#This Row],[Combo]]","v":"4L_P2_3"},"4L_P2",3,1,1,1,0,1,0,0,0,{"$f":"DEC2BIN(BackendTable[[#This Row],[Intensity]],2)&DEC2BIN(BackendTable[[#This Row],[Speed]],2)&_xlfn.CONCAT(BackendTable[[#This Row],[Light1]:[Light6]])","v":"0101101000"},{"$f":"BIN2HEX(VALUE(MID(BackendTable[[#This Row],[DecString]],1,2)))&BIN2HEX(VALUE(MID(BackendTable[[#This Row],[DecString]],3,4)))&BIN2HEX(VALUE(MID(BackendTable[[#This Row],[DecString]],7,4)))","v":"168"},{"$f":"BackendTable[[#This Row],[Intensity]]&\";\"&BackendTable[[#This Row],[Speed]]&\";\"&BackendTable[[#This Row],[Light1]]&\";\"&BackendTable[[#This Row],[Light2]]&\";\"&BackendTable[[#This Row],[Light3]]&\";\"&BackendTable[[#This Row],[Light4]]&\";\"&BackendTable[[#This Row],[Light5]]&\";\"&BackendTable[[#This Row],[Light6]]","v":"1;1;1;0;1;0;0;0"},{"$f":"BackendTable[[#This Row],[HexString]]","v":"168"}]
[null,{"$f":"BackendTable[[#This Row],[Pattern]]&\"_\"&BackendTable[[#This Row],[Combo]]","v":"4L_P2_4"},"4L_P2",4,1,2,0,0,0,1,0,0,{"$f":"DEC2BIN(BackendTable[[#This Row],[Intensity]],2)&DEC2BIN(BackendTable[[#This Row],[Speed]],2)&_xlfn.CONCAT(BackendTable[[#This Row],[Light1]:[Light6]])","v":"0110000100"},{"$f":"BIN2HEX(VALUE(MID(BackendTable[[#This Row],[DecString]],1,2)))&BIN2HEX(VALUE(MID(BackendTable[[#This Row],[DecString]],3,4)))&BIN2HEX(VALUE(MID(BackendTable[[#This Row],[DecString]],7,4)))","v":"184"},{"$f":"BackendTable[[#This Row],[Intensity]]&\";\"&BackendTable[[#This Row],[Speed]]&\";\"&BackendTable[[#This Row],[Light1]]&\";\"&BackendTable[[#This Row],[Light2]]&\";\"&BackendTable[[#This Row],[Light3]]&\";\"&BackendTable[[#This Row],[Light4]]&\";\"&BackendTable[[#This Row],[Light5]]&\";\"&BackendTable[[#This Row],[Light6]]","v":"1;2;0;0;0;1;0;0"},{"$f":"BackendTable[[#This Row],[HexString]]","v":"184"}]
[null,{"$f":"BackendTable[[#This Row],[Pattern]]&\"_\"&BackendTable[[#This Row],[Combo]]","v":"4L_P2_5"},"4L_P2",5,2,3,1,1,1,1,0,0,{"$f":"DEC2BIN(BackendTable[[#This Row],[Intensity]],2)&DEC2BIN(BackendTable[[#This Row],[Speed]],2)&_xlfn.CONCAT(BackendTable[[#This Row],[Light1]:[Light6]])","v":"1011111100"},{"$f":"BIN2HEX(VALUE(MID(BackendTable[[#This Row],[DecString]],1,2)))&BIN2HEX(VALUE(MID(BackendTable[[#This Row],[DecString]],3,4)))&BIN2HEX(VALUE(MID(BackendTable[[#This Row],[DecString]],7,4)))","v":"2FC"},{"$f":"BackendTable[[#This Row],[Intensity]]&\";\"&BackendTable[[#This Row],[Speed]]&\";\"&BackendTable[[#This Row],[Light1]]&\";\"&BackendTable[[#This Row],[Light2]]&\";\"&BackendTable[[#This Row],[Light3]]&\";\"&BackendTable[[#This Row],[Light4]]&\";\"&BackendTable[[#This Row],[Light5]]&\";\"&BackendTable[[#This Row],[Light6]]","v":"2;3;1;1;1;1;0;0"},{"$f":"BackendTable[[#This Row],[HexString]]","v":"2FC"}]
[null,{"$f":"BackendTable[[#This Row],[Pattern]]&\"_\"&BackendTable[[#This Row],[Combo]]","v":"4L_P2_6"},"4L_P2",6,3,1,0,0,0,1,0,0,{"$f":"DEC2BIN(BackendTable[[#This Row],[Intensity]],2)&DEC2BIN(BackendTable[[#This Row],[Speed]],2)&_xlfn.CONCAT(BackendTable[[#This Row],[Light1]:[Light6]])","v":"1101000100"},{"$f":"BIN2HEX(VALUE(MID(BackendTable[[#This Row],[DecString]],1,2)))&BIN2HEX(VALUE(MID(BackendTable[[#This Row],[DecString]],3,4)))&BIN2HEX(VALUE(MID(BackendTable[[#This Row],[DecString]],7,4)))","v":"344"},{"$f":"BackendTable[[#This Row],[Intensity]]&\";\"&BackendTable[[#This Row],[Speed]]&\";\"&BackendTable[[#This Row],[Light1]]&\";\"&BackendTable[[#This Row],[Light2]]&\";\"&BackendTable[[#This Row],[Light3]]&\";\"&BackendTable[[#This Row],[Light4]]&\";\"&BackendTable[[#This Row],[Light5]]&\";\"&BackendTable[[#This Row],[Light6]]","v":"3;1;0;0;0;1;0;0"},{"$f":"BackendTable[[#This Row],[HexString]]","v":"344"}]
[null,{"$f":"BackendTable[[#This Row],[Pattern]]&\"_\"&BackendTable[[#This Row],[Combo]]","v":"4L_P2_7"},"4L_P2",7,3,3,1,0,0,1,0,0,{"$f":"DEC2BIN(BackendTable[[#This Row],[Intensity]],2)&DEC2BIN(BackendTable[[#This Row],[Speed]],2)&_xlfn.CONCAT(BackendTable[[#This Row],[Light1]:[Light6]])","v":"1111100100"},{"$f":"BIN2HEX(VALUE(MID(BackendTable[[#This Row],[DecString]],1,2)))&BIN2HEX(VALUE(MID(BackendTable[[#This Row],[DecString]],3,4)))&BIN2HEX(VALUE(MID(BackendTable[[#This Row],[DecString]],7,4)))","v":"3E4"},{"$f":"BackendTable[[#This Row],[Intensity]]&\";\"&BackendTable[[#This Row],[Speed]]&\";\"&BackendTable[[#This Row],[Light1]]&\";\"&BackendTable[[#This Row],[Light2]]&\";\"&BackendTable[[#This Row],[Light3]]&\";\"&BackendTable[[#This Row],[Light4]]&\";\"&BackendTable[[#This Row],[Light5]]&\";\"&BackendTable[[#This Row],[Light6]]","v":"3;3;1;0;0;1;0;0"},{"$f":"BackendTable[[#This Row],[HexString]]","v":"3E4"}]
[null,{"$f":"BackendTable[[#This Row],[Pattern]]&\"_\"&BackendTable[[#This Row],[Combo]]","v":"4L_P2_8"},"4L_P2",8,1,3,1,0,1,0,0,0,{"$f":"DEC2BIN(BackendTable[[#This Row],[Intensity]],2)&DEC2BIN(BackendTable[[#This Row],[Speed]],2)&_xlfn.CONCAT(BackendTable[[#This Row],[Light1]:[Light6]])","v":"0111101000"},{"$f":"BIN2HEX(VALUE(MID(BackendTable[[#This Row],[DecString]],1,2)))&BIN2HEX(VALUE(MID(BackendTable[[#This Row],[DecString]],3,4)))&BIN2HEX(VALUE(MID(BackendTable[[#This Row],[DecString]],7,4)))","v":"1E8"},{"$f":"BackendTable[[#This Row],[Intensity]]&\";\"&BackendTable[[#This Row],[Speed]]&\";\"&BackendTable[[#This Row],[Light1]]&\";\"&BackendTable[[#This Row],[Light2]]&\";\"&BackendTable[[#This Row],[Light3]]&\";\"&BackendTable[[#This Row],[Light4]]&\";\"&BackendTable[[#This Row],[Light5]]&\";\"&BackendTable[[#This Row],[Light6]]","v":"1;3;1;0;1;0;0;0"},{"$f":"BackendTable[[#This Row],[HexString]]","v":"1E8"}]
[null,{"$f":"BackendTable[[#This Row],[Pattern]]&\"_\"&BackendTable[[#This Row],[Combo]]","v":"4L_P3_1"},"4L_P3",1,3,3,1,0,1,1,0,0,{"$f":"DEC2BIN(BackendTable[[#This Row],[Intensity]],2)&DEC2BIN(BackendTable[[#This Row],[Speed]],2)&_xlfn.CONCAT(BackendTable[[#This Row],[Light1]:[Light6]])","v":"1111101100"},{"$f":"BIN2HEX(VALUE(MID(BackendTable[[#This Row],[DecString]],1,2)))&BIN2HEX(VALUE(MID(BackendTable[[#This Row],[DecString]],3,4)))&BIN2HEX(VALUE(MID(BackendTable[[#This Row],[DecString]],7,4)))","v":"3EC"},{"$f":"BackendTable[[#This Row],[Intensity]]&\";\"&BackendTable[[#This Row],[Speed]]&\";\"&BackendTable[[#This Row],[Light1]]&\";\"&BackendTable[[#This Row],[Light2]]&\";\"&BackendTable[[#This Row],[Light3]]&\";\"&BackendTable[[#This Row],[Light4]]&\";\"&BackendTable[[#This Row],[Light5]]&\";\"&BackendTable[[#This Row],[Light6]]","v":"3;3;1;0;1;1;0;0"},{"$f":"BackendTable[[#This Row],[HexString]]","v":"3EC"}]
[null,{"$f":"BackendTable[[#This Row],[Pattern]]&\"_\"&BackendTable[[#This Row],[Combo]]","v":"4L_P3_2"},"4L_P3",2,2,3,0,0,0,1,0,0,{"$f":"DEC2BIN(BackendTable[[#This Row],[Intensity]],2)&DEC2BIN(BackendTable[[#This Row],[Speed]],2)&_xlfn.CONCAT(BackendTable[[#This Row],[Light1]:[Light6]])","v":"1011000100"},{"$f":"BIN2HEX(VALUE(MID(BackendTable[[#This Row],[DecString]],1,2)))&BIN2HEX(VALUE(MID(BackendTable[[#This Row],[DecString]],3,4)))&BIN2HEX(VALUE(MID(BackendTable[[#This Row],[DecString]],7,4)))","v":"2C4"},{"$f":"BackendTable[[#This Row],[Intensity]]&\";\"&BackendTable[[#This Row],[Speed]]&\";\"&BackendTable[[#This Row],[Light1]]&\";\"&BackendTable[[#This Row],[Light2]]&\";\"&BackendTable[[#This Row],[Light3]]&\";\"&BackendTable[[#This Row],[Light4]]&\";\"&BackendTable[[#This Row],[Light5]]&\";\"&BackendTable[[#This Row],[Light6]]","v":"2;3;0;0;0;1;0;0"},{"$f":"BackendTable[[#This Row],[HexString]]","v":"2C4"}]
[null,{"$f":"BackendTable[[#This Row],[Pattern]]&\"_\"&BackendTable[[#This Row],[Combo]]","v":"4L_P3_3"},"4L_P3",3,3,1,1,0,0,0,0,0,{"$f":"DEC2BIN(BackendTable[[#This Row],[Intensity]],2)&DEC2BIN(BackendTable[[#This Row],[Speed]],2)&_xlfn.CONCAT(BackendTable[[#This Row],[Light1]:[Light6]])","v":"1101100000"},{"$f":"BIN2HEX(VALUE(MID(BackendTable[[#This Row],[DecString]],1,2)))&BIN2HEX(VALUE(MID(BackendTable[[#This Row],[DecString]],3,4)))&BIN2HEX(VALUE(MID(BackendTable[[#This Row],[DecString]],7,4)))","v":"360"},{"$f":"BackendTable[[#This Row],[Intensity]]&\";\"&BackendTable[[#This Row],[Speed]]&\";\"&BackendTable[[#This Row],[Light1]]&\";\"&BackendTable[[#This Row],[Light2]]&\";\"&BackendTable[[#This Row],[Light3]]&\";\"&BackendTable[[#This Row],[Light4]]&\";\"&BackendTable[[#This Row],[Light5]]&\";\"&BackendTable[[#This Row],[Light6]]","v":"3;1;1;0;0;0;0;0"},{"$f":"BackendTable[[#This Row],[HexString]]","v":"360"}]
[null,{"$f":"BackendTable[[#This Row],[Pattern]]&\"_\"&BackendTable[[#This Row],[Combo]]","v":"4L_P3_4"},"4L_P3",4,1,1,0,1,0,0,0,0,{"$f":"DEC2BIN(BackendTable[[#This Row],[Intensity]],2)&DEC2BIN(BackendTable[[#This Row],[Speed]],2)&_xlfn.CONCAT(BackendTable[[#This Row],[Light1]:[Light6]])","v":"0101010000"},{"$f":"BIN2HEX(VALUE(MID(BackendTable[[#This Row],[DecString]],1,2)))&BIN2HEX(VALUE(MID(BackendTable[[#This Row],[DecString]],3,4)))&BIN2HEX(VALUE(MID(BackendTable[[#This Row],[DecString]],7,4)))","v":"150"},{"$f":"BackendTable[[#This Row],[Intensity]]&\";\"&BackendTable[[#This Row],[Speed]]&\";\"&BackendTable[[#This Row],[Light1]]&\";\"&BackendTable[[#This Row],[Light2]]&\";\"&BackendTable[[#This Row],[Light3]]&\";\"&BackendTable[[#This Row],[Light4]]&\";\"&BackendTable[[#This Row],[Light5]]&\";\"&BackendTable[[#This Row],[Light6]]","v":"1;1;0;1;0;0;0;0"},{"$f":"BackendTable[[#This Row],[HexString]]","v":"150"}]
[null,{"$f":"BackendTable[[#This Row],[Pattern]]&\"_\"&BackendTable[[#This Row],[Combo]]","v":"4L_P3_5"},"4L_P3",5,3,1,1,1,0,1,0,0,{"$f":"DEC2BIN(BackendTable[[#This Row],[Intensity]],2)&DEC2BIN(BackendTable[[#This Row],[Speed]],2)&_xlfn.CONCAT(BackendTable[[#This Row],[Light1]:[Light6]])","v":"1101110100"},{"$f":"BIN2HEX(VALUE(MID(BackendTable[[#This Row],[DecString]],1,2)))&BIN2HEX(VALUE(MID(BackendTable[[#This Row],[DecString]],3,4)))&BIN2HEX(VALUE(MID(BackendTable[[#This Row],[DecString]],7,4)))","v":"374"},{"$f":"BackendTable[[#This Row],[Intensity]]&\";\"&BackendTable[[#This Row],[Speed]]&\";\"&BackendTable[[#This Row],[Light1]]&\";\"&BackendTable[[#This Row],[Light2]]&\";\"&BackendTable[[#This Row],[Light3]]&\";\"&BackendTable[[#This Row],[Light4]]&\";\"&BackendTable[[#This Row],[Light5]]&\";\"&BackendTable[[#This Row],[Light6]]","v":"3;1;1;1;0;1;0;0"},{"$f":"BackendTable[[#This Row],[HexString]]","v":"374"}]
[null,{"$f":"BackendTable[[#This Row],[Pattern]]&\"_\"&BackendTable[[#This Row],[Combo]]","v":"4L_P3_6"},"4L_P3",6,2,1,0,0,1,0,0,0,{"$f":"DEC2BIN(BackendTable[[#This Row],[Intensity]],2)&DEC2BIN(BackendTable[[#This Row],[Speed]],2)&_xlfn.CONCAT(BackendTable[[#This Row],[Light1]:[Light6]])","v":"1001001000"},{"$f":"BIN2HEX(VALUE(MID(BackendTable[[#This Row],[DecString]],1,2)))&BIN2HEX(VALUE(MID(BackendTable[[#This Row],[DecString]],3,4)))&BIN2HEX(VALUE(MID(BackendTable[[#This Row],[DecString]],7,4)))","v":"248"},{"$f":"BackendTable[[#This Row],[Intensity]]&\";\"&BackendTable[[#This Row],[Speed]]&\";\"&BackendTable[[#This Row],[Light1]]&\";\"&BackendTable[[#This Row],[Light2]]&\";\"&BackendTable[[#This Row],[Light3]]&\";\"&BackendTable[[#This Row],[Light4]]&\";\"&BackendTable[[#This Row],[Light5]]&\";\"&BackendTable[[#This Row],[Light6]]","v":"2;1;0;0;1;0;0;0"},{"$f":"BackendTable[[#This Row],[HexString]]","v":"248"}]
[null,{"$f":"BackendTable[[#This Row],[Pattern]]&\"_\"&BackendTable[[#This Row],[Combo]]","v":"4L_P3_7"},"4L_P3",7,3,2,1,0,1,1,0,0,{"$f":"DEC2BIN(BackendTable[[#This Row],[Intensity]],2)&DEC2BIN(BackendTable[[#This Row],[Speed]],2)&_xlfn.CONCAT(BackendTable[[#This Row],[Light1]:[Light6]])","v":"1110101100"},{"$f":"BIN2HEX(VALUE(MID(BackendTable[[#This Row],[DecString]],1,2)))&BIN2HEX(VALUE(MID(BackendTable[[#This Row],[DecString]],3,4)))&BIN2HEX(VALUE(MID(BackendTable[[#This Row],[DecString]],7,4)))","v":"3AC"},{"$f":"BackendTable[[#This Row],[Intensity]]&\";\"&BackendTable[[#This Row],[Speed]]&\";\"&BackendTable[[#This Row],[Light1]]&\";\"&BackendTable[[#This Row],[Light2]]&\";\"&BackendTable[[#This Row],[Light3]]&\";\"&BackendTable[[#This Row],[Light4]]&\";\"&BackendTable[[#This Row],[Light5]]&\";\"&BackendTable[[#This Row],[Light6]]","v":"3;2;1;0;1;1;0;0"},{"$f":"BackendTable[[#This Row],[HexString]]","v":"3AC"}]
[null,{"$f":"BackendTable[[#This Row],[Pattern]]&\"_\"&BackendTable[[#This Row],[Combo]]","v":"4L_P3_8"},"4L_P3",8,2,2,1,1,1,1,0,0,{"$f":"DEC2BIN(BackendTable[[#This Row],[Intensity]],2)&DEC2BIN(BackendTable[[#This Row],[Speed]],2)&_xlfn.CONCAT(BackendTable[[#This Row],[Light1]:[Light6]])","v":"1010111100"},{"$f":"BIN2HEX(VALUE(MID(BackendTable[[#This Row],[DecString]],1,2)))&BIN2HEX(VALUE(MID(BackendTable[[#This Row],[DecString]],3,4)))&BIN2HEX(VALUE(MID(BackendTable[[#This Row],[DecString]],7,4)))","v":"2BC"},{"$f":"BackendTable[[#This Row],[Intensity]]&\";\"&BackendTable[[#This Row],[Speed]]&\";\"&BackendTable[[#This Row],[Light1]]&\";\"&BackendTable[[#This Row],[Light2]]&\";\"&BackendTable[[#This Row],[Light3]]&\";\"&BackendTable[[#This Row],[Light4]]&\";\"&BackendTable[[#This Row],[Light5]]&\";\"&BackendTable[[#This Row],[Light6]]","v":"2;2;1;1;1;1;0;0"},{"$f":"BackendTable[[#This Row],[HexString]]","v":"2BC"}]
[null,{"$f":"BackendTable[[#This Row],[Pattern]]&\"_\"&BackendTable[[#This Row],[Combo]]","v":"5L_P1_1"},"5L_P1",1,3,2,1,0,1,0,1,0,{"$f":"DEC2BIN(BackendTable[[#This Row],[Intensity]],2)&DEC2BIN(BackendTable[[#This Row],[Speed]],2)&_xlfn.CONCAT(BackendTable[[#This Row],[Light1]:[Light6]])","v":"1110101010"},{"$f":"BIN2HEX(VALUE(MID(BackendTable[[#This Row],[DecString]],1,2)))&BIN2HEX(VALUE(MID(BackendTable[[#This Row],[DecString]],3,4)))&BIN2HEX(VALUE(MID(BackendTable[[#This Row],[DecString]],7,4)))","v":"3AA"},{"$f":"BackendTable[[#This Row],[Intensity]]&\";\"&BackendTable[[#This Row],[Speed]]&\";\"&BackendTable[[#This Row],[Light1]]&\";\"&BackendTable[[#This Row],[Light2]]&\";\"&BackendTable[[#This Row],[Light3]]&\";\"&BackendTable[[#This Row],[Light4]]&\";\"&BackendTable[[#This Row],[Light5]]&\";\"&BackendTable[[#This Row],[Light6]]","v":"3;2;1;0;1;0;1;0"},{"$f":"BackendTable[[#This Row],[HexString]]","v":"3AA"}]
[null,{"$f":"BackendTable[[#This Row],[Pattern]]&\"_\"&BackendTable[[#This Row],[Combo]]","v":"5L_P1_2"},"5L_P1",2,2,1,1,0,0,0,0,0,{"$f":"DEC2BIN(BackendTable[[#This Row],[Intensity]],2)&DEC2BIN(BackendTable[[#This Row],[Speed]],2)&_xlfn.CONCAT(BackendTable[[#This Row],[Light1]:[Light6]])","v":"1001100000"},{"$f":"BIN2HEX(VALUE(MID(BackendTable[[#This Row],[DecString]],1,2)))&BIN2HEX(VALUE(MID(BackendTable[[#This Row],[DecString]],3,4)))&BIN2HEX(VALUE(MID(BackendTable[[#This Row],[DecString]],7,4)))","v":"260"},{"$f":"BackendTable[[#This Row],[Intensity]]&\";\"&BackendTable[[#This Row],[Speed]]&\";\"&BackendTable[[#This Row],[Light1]]&\";\"&BackendTable[[#This Row],[Light2]]&\";\"&BackendTable[[#This Row],[Light3]]&\";\"&BackendTable[[#This Row],[Light4]]&\";\"&BackendTable[[#This Row],[Light5]]&\";\"&BackendTable[[#This Row],[Light6]]","v":"2;1;1;0;0;0;0;0"},{"$f":"BackendTable[[#This Row],[HexString]]","v":"260"}]
[null,{"$f":"BackendTable[[#This Row],[Pattern]]&\"_\"&BackendTable[[#This Row],[Combo]]","v":"5L_P1_3"},"5L_P1",3,2,1,0,1,0,1,0,0,{"$f":"DEC2BIN(BackendTable[[#This Row],[Intensity]],2)&DEC2BIN(BackendTable[[#This Row],[Speed]],2)&_xlfn.CONCAT(BackendTable[[#This Row],[Light1]:[Light6]])","v":"1001010100"},{"$f":"BIN2HEX(VALUE(MID(BackendTable[[#This Row],[DecString]],1,2)))&BIN2HEX(VALUE(MID(BackendTable[[#This Row],[DecString]],3,4)))&BIN2HEX(VALUE(MID(BackendTable[[#This Row],[DecString]],7,4)))","v":"254"},{"$f":"BackendTable[[#This Row],[Intensity]]&\";\"&BackendTable[[#This Row],[Speed]]&\";\"&BackendTable[[#This Row],[Light1]]&\";\"&BackendTable[[#This Row],[Light2]]&\";\"&BackendTable[[#This Row],[Light3]]&\";\"&BackendTable[[#This Row],[Light4]]&\";\"&BackendTable[[#This Row],[Light5]]&\";\"&BackendTable[[#This Row],[Light6]]","v":"2;1;0;1;0;1;0;0"},{"$f":"BackendTable[[#This Row],[HexString]]","v":"254"}]
[null,{"$f":"BackendTable[[#This Row],[Pattern]]&\"_\"&BackendTable[[#This Row],[Combo]]","v":"5L_P1_4"},"5L_P1",4,2,3,0,0,0,0,1,0,{"$f":"DEC2BIN(BackendTable[[#This Row],[Intensity]],2)&DEC2BIN(BackendTable[[#This Row],[Speed]],2)&_xlfn.CONCAT(BackendTable[[#This Row],[Light1]:[Light6]])","v":"1011000010"},{"$f":"BIN2HEX(VALUE(MID(BackendTable[[#This Row],[DecString]],1,2)))&BIN2HEX(VALUE(MID(BackendTable[[#This Row],[DecString]],3,4)))&BIN2HEX(VALUE(MID(BackendTable[[#This Row],[DecString]],7,4)))","v":"2C2"},{"$f":"BackendTable[[#This Row],[Intensity]]&\";\"&BackendTable[[#This Row],[Speed]]&\";\"&BackendTable[[#This Row],[Light1]]&\";\"&BackendTable[[#This Row],[Light2]]&\";\"&BackendTable[[#This Row],[Light3]]&\";\"&BackendTable[[#This Row],[Light4]]&\";\"&BackendTable[[#This Row],[Light5]]&\";\"&BackendTable[[#This Row],[Light6]]","v":"2;3;0;0;0;0;1;0"},{"$f":"BackendTable[[#This Row],[HexString]]","v":"2C2"}]
[null,{"$f":"BackendTable[[#This Row],[Pattern]]&\"_\"&BackendTable[[#This Row],[Combo]]","v":"5L_P1_5"},"5L_P1",5,3,2,1,0,1,1,0,0,{"$f":"DEC2BIN(BackendTable[[#This Row],[Intensity]],2)&DEC2BIN(BackendTable[[#This Row],[Speed]],2)&_xlfn.CONCAT(BackendTable[[#This Row],[Light1]:[Light6]])","v":"1110101100"},{"$f":"BIN2HEX(VALUE(MID(BackendTable[[#This Row],[DecString]],1,2)))&BIN2HEX(VALUE(MID(BackendTable[[#This Row],[DecString]],3,4)))&BIN2HEX(VALUE(MID(BackendTable[[#This Row],[DecString]],7,4)))","v":"3AC"},{"$f":"BackendTable[[#This Row],[Intensity]]&\";\"&BackendTable[[#This Row],[Speed]]&\";\"&BackendTable[[#This Row],[Light1]]&\";\"&BackendTable[[#This Row],[Light2]]&\";\"&BackendTable[[#This Row],[Light3]]&\";\"&BackendTable[[#This Row],[Light4]]&\";\"&BackendTable[[#This Row],[Light5]]&\";\"&BackendTable[[#This Row],[Light6]]","v":"3;2;1;0;1;1;0;0"},{"$f":"BackendTable[[#This Row],[HexString]]","v":"3AC"}]
[null,{"$f":"BackendTable[[#This Row],[Pattern]]&\"_\"&BackendTable[[#This Row],[Combo]]","v":"5L_P1_6"},"5L_P1",6,2,3,0,0,1,1,1,0,{"$f":"DEC2BIN(BackendTable[[#This Row],[Intensity]],2)&DEC2BIN(BackendTable[[#This Row],[Speed]],2)&_xlfn.CONCAT(BackendTable[[#This Row],[Light1]:[Light6]])","v":"1011001110"},{"$f":"BIN2HEX(VALUE(MID(BackendTable[[#This Row],[DecString]],1,2)))&BIN2HEX(VALUE(MID(BackendTable[[#This Row],[DecString]],3,4)))&BIN2HEX(VALUE(MID(BackendTable[[#This Row],[DecString]],7,4)))","v":"2CE"},{"$f":"BackendTable[[#This Row],[Intensity]]&\";\"&BackendTable[[#This Row],[Speed]]&\";\"&BackendTable[[#This Row],[Light1]]&\";\"&BackendTable[[#This Row],[Light2]]&\";\"&BackendTable[[#This Row],[Light3]]&\";\"&BackendTable[[#This Row],[Light4]]&\";\"&BackendTable[[#This Row],[Light5]]&\";\"&BackendTable[[#This Row],[Light6]]","v":"2;3;0;0;1;1;1;0"},{"$f":"BackendTable[[#This Row],[HexString]]","v":"2CE"}]
[null,{"$f":"BackendTable[[#This Row],[Pattern]]&\"_\"&BackendTable[[#This Row],[Combo]]","v":"5L_P1_7"},"5L_P1",7,2,1,1,1,0,1,0,0,{"$f":"DEC2BIN(BackendTable[[#This Row],[Intensity]],2)&DEC2BIN(BackendTable[[#This Row],[Speed]],2)&_xlfn.CONCAT(BackendTable[[#This Row],[Light1]:[Light6]])","v":"1001110100"},{"$f":"BIN2HEX(VALUE(MID(BackendTable[[#This Row],[DecString]],1,2)))&BIN2HEX(VALUE(MID(BackendTable[[#This Row],[DecString]],3,4)))&BIN2HEX(VALUE(MID(BackendTable[[#This Row],[DecString]],7,4)))","v":"274"},{"$f":"BackendTable[[#This Row],[Intensity]]&\";\"&BackendTable[[#This Row],[Speed]]&\";\"&BackendTable[[#This Row],[Light1]]&\";\"&BackendTable[[#This Row],[Light2]]&\";\"&BackendTable[[#This Row],[Light3]]&\";\"&BackendTable[[#This Row],[Light4]]&\";\"&BackendTable[[#This Row],[Light5]]&\";\"&BackendTable[[#This Row],[Light6]]","v":"2;1;1;1;0;1;0;0"},{"$f":"BackendTable[[#This Row],[HexString]]","v":"274"}]
[null,{"$f":"BackendTable[[#This Row],[Pattern]]&\"_\"&BackendTable[[#This Row],[Combo]]","v":"5L_P1_8"},"5L_P1",8,1,2,0,0,0,1,1,0,{"$f":"DEC2BIN(BackendTable[[#This Row],[Intensity]],2)&DEC2BIN(BackendTable[[#This Row],[Speed]],2)&_xlfn.CONCAT(BackendTable[[#This Row],[Light1]:[Light6]])","v":"0110000110"},{"$f":"BIN2HEX(VALUE(MID(BackendTable[[#This Row],[DecString]],1,2)))&BIN2HEX(VALUE(MID(BackendTable[[#This Row],[DecString]],3,4)))&BIN2HEX(VALUE(MID(BackendTable[[#This Row],[DecString]],7,4)))","v":"186"},{"$f":"BackendTable[[#This Row],[Intensity]]&\";\"&BackendTable[[#This Row],[Speed]]&\";\"&BackendTable[[#This Row],[Light1]]&\";\"&BackendTable[[#This Row],[Light2]]&\";\"&BackendTable[[#This Row],[Light3]]&\";\"&BackendTable[[#This Row],[Light4]]&\";\"&BackendTable[[#This Row],[Light5]]&\";\"&BackendTable[[#This Row],[Light6]]","v":"1;2;0;0;0;1;1;0"},{"$f":"BackendTable[[#This Row],[HexString]]","v":"186"}]
[null,{"$f":"BackendTable[[#This Row],[Pattern]]&\"_\"&BackendTable[[#This Row],[Combo]]","v":"5L_P2_1"},"5L_P2",1,1,1,1,0,0,1,1,0,{"$f":"DEC2BIN(BackendTable[[#This Row],[Intensity]],2)&DEC2BIN(BackendTable[[#This Row],[Speed]],2)&_xlfn.CONCAT(BackendTable[[#This Row],[Light1]:[Light6]])","v":"0101100110"},{"$f":"BIN2HEX(VALUE(MID(BackendTable[[#This Row],[DecString]],1,2)))&BIN2HEX(VALUE(MID(BackendTable[[#This Row],[DecString]],3,4)))&BIN2HEX(VALUE(MID(BackendTable[[#This Row],[DecString]],7,4)))","v":"166"},{"$f":"BackendTable[[#This Row],[Intensity]]&\";\"&BackendTable[[#This Row],[Speed]]&\";\"&BackendTable[[#This Row],[Light1]]&\";\"&BackendTable[[#This Row],[Light2]]&\";\"&BackendTable[[#This Row],[Light3]]&\";\"&BackendTable[[#This Row],[Light4]]&\";\"&BackendTable[[#This Row],[Light5]]&\";\"&BackendTable[[#This Row],[Light6]]","v":"1;1;1;0;0;1;1;0"},{"$f":"BackendTable[[#This Row],[HexString]]","v":"166"}]
[null,{"$f":"BackendTable[[#This Row],[Pattern]]&\"_\"&BackendTable[[#This Row],[Combo]]","v":"5L_P2_2"},"5L_P2",2,3,3,0,1,1,1,0,0,{"$f":"DEC2BIN(BackendTable[[#This Row],[Intensity]],2)&DEC2BIN(BackendTable[[#This Row],[Speed]],2)&_xlfn.CONCAT(BackendTable[[#This Row],[Light1]:[Light6]])","v":"1111011100"},{"$f":"BIN2HEX(VALUE(MID(BackendTable[[#This Row],[DecString]],1,2)))&BIN2HEX(VALUE(MID(BackendTable[[#This Row],[DecString]],3,4)))&BIN2HEX(VALUE(MID(BackendTable[[#This Row],[DecString]],7,4)))","v":"3DC"},{"$f":"BackendTable[[#This Row],[Intensity]]&\";\"&BackendTable[[#This Row],[Speed]]&\";\"&BackendTable[[#This Row],[Light1]]&\";\"&BackendTable[[#This Row],[Light2]]&\";\"&BackendTable[[#This Row],[Light3]]&\";\"&BackendTable[[#This Row],[Light4]]&\";\"&BackendTable[[#This Row],[Light5]]&\";\"&BackendTable[[#This Row],[Light6]]","v":"3;3;0;1;1;1;0;0"},{"$f":"BackendTable[[#This Row],[HexString]]","v":"3DC"}]
[null,{"$f":"BackendTable[[#This Row],[Pattern]]&\"_\"&BackendTable[[#This Row],[Combo]]","v":"5L_P2_3"},"5L_P2",3,1,3,1,0,0,1,0,0,{"$f":"DEC2BIN(BackendTable[[#This Row],[Intensity]],2)&DEC2BIN(BackendTable[[#This Row],[Speed]],2)&_xlfn.CONCAT(BackendTable[[#This Row],[Light1]:[Light6]])","v":"0111100100"},{"$f":"BIN2HEX(VALUE(MID(BackendTable[[#This Row],[DecString]],1,2)))&BIN2HEX(VALUE(MID(BackendTable[[#This Row],[DecString]],3,4)))&BIN2HEX(VALUE(MID(BackendTable[[#This Row],[DecString]],7,4)))","v":"1E4"},{"$f":"BackendTable[[#This Row],[Intensity]]&\";\"&BackendTable[[#This Row],[Speed]]&\";\"&BackendTable[[#This Row],[Light1]]&\";\"&BackendTable[[#This Row],[Light2]]&\";\"&BackendTable[[#This Row],[Light3]]&\";\"&BackendTable[[#This Row],[Light4]]&\";\"&BackendTable[[#This Row],[Light5]]&\";\"&BackendTable[[#This Row],[Light6]]","v":"1;3;1;0;0;1;0;0"},{"$f":"BackendTable[[#This Row],[HexString]]","v":"1E4"}]
[null,{"$f":"BackendTable[[#This Row],[Pattern]]&\"_\"&BackendTable[[#This Row],[Combo]]","v":"5L_P2_4"},"5L_P2",4,1,2,0,0,1,0,0,0,{"$f":"DEC2BIN(BackendTable[[#This Row],[Intensity]],2)&DEC2BIN(BackendTable[[#This Row],[Speed]],2)&_xlfn.CONCAT(BackendTable[[#This Row],[Light1]:[Light6]])","v":"0110001000"},{"$f":"BIN2HEX(VALUE(MID(BackendTable[[#This Row],[DecString]],1,2)))&BIN2HEX(VALUE(MID(BackendTable[[#This Row],[DecString]],3,4)))&BIN2HEX(VALUE(MID(BackendTable[[#This Row],[DecString]],7,4)))","v":"188"},{"$f":"BackendTable[[#This Row],[Intensity]]&\";\"&BackendTable[[#This Row],[Speed]]&\";\"&BackendTable[[#This Row],[Light1]]&\";\"&BackendTable[[#This Row],[Light2]]&\";\"&BackendTable[[#This Row],[Light3]]&\";\"&BackendTable[[#This Row],[Light4]]&\";\"&BackendTable[[#This Row],[Light5]]&\";\"&BackendTable[[#This Row],[Light6]]","v":"1;2;0;0;1;0;0;0"},{"$f":"BackendTable[[#This Row],[HexString]]","v":"188"}]
[null,{"$f":"BackendTable[[#This Row],[Pattern]]&\"_\"&BackendTable[[#This Row],[Combo]]","v":"5L_P2_5"},"5L_P2",5,2,1,0,0,0,1,0,0,{"$f":"DEC2BIN(BackendTable[[#This Row],[Intensity]],2)&DEC2BIN(BackendTable[[#This Row],[Speed]],2)&_xlfn.CONCAT(BackendTable[[#This Row],[Light1]:[Light6]])","v":"1001000100"},{"$f":"BIN2HEX(VALUE(MID(BackendTable[[#This Row],[DecString]],1,2)))&BIN2HEX(VALUE(MID(BackendTable[[#This Row],[DecString]],3,4)))&BIN2HEX(VALUE(MID(BackendTable[[#This Row],[DecString]],7,4)))","v":"244"},{"$f":"BackendTable[[#This Row],[Intensity]]&\";\"&BackendTable[[#This Row],[Speed]]&\";\"&BackendTable[[#This Row],[Light1]]&\";\"&BackendTable[[#This Row],[Light2]]&\";\"&BackendTable[[#This Row],[Light3]]&\";\"&BackendTable[[#This Row],[Light4]]&\";\"&BackendTable[[#This Row],[Light5]]&\";\"&BackendTable[[#This Row],[Light6]]","v":"2;1;0;0;0;1;0;0"},{"$f":"BackendTable[[#This Row],[HexString]]","v":"244"}]
[null,{"$f":"BackendTable[[#This Row],[Pattern]]&\"_\"&BackendTable[[#This Row],[Combo]]","v":"5L_P2_6"},"5L_P2",6,1,1,0,1,1,0,1,0,{"$f":"DEC2BIN(BackendTable[[#This Row],[Intensity]],2)&DEC2BIN(BackendTable[[#This Row],[Speed]],2)&_xlfn.CONCAT(BackendTable[[#This Row],[Light1]:[Light6]])","v":"0101011010"},{"$f":"BIN2HEX(VALUE(MID(BackendTable[[#This Row],[DecString]],1,2)))&BIN2HEX(VALUE(MID(BackendTable[[#This Row],[DecString]],3,4)))&BIN2HEX(VALUE(MID(BackendTable[[#This Row],[DecString]],7,4)))","v":"15A"},{"$f":"BackendTable[[#This Row],[Intensity]]&\";\"&BackendTable[[#This Row],[Speed]]&\";\"&BackendTable[[#This Row],[Light1]]&\";\"&BackendTable[[#This Row],[Light2]]&\";\"&BackendTable[[#This Row],[Light3]]&\";\"&BackendTable[[#This Row],[Light4]]&\";\"&BackendTable[[#This Row],[Light5]]&\";\"&BackendTable[[#This Row],[Light6]]","v":"1;1;0;1;1;0;1;0"},{"$f":"BackendTable[[#This Row],[HexString]]","v":"15A"}]
[null,{"$f":"BackendTable[[#This Row],[Pattern]]&\"_\"&BackendTable[[#This Row],[Combo]]","v":"5L_P2_7"},"5L_P2",7,3,3,0,1,0,1,1,0,{"$f":"DEC2BIN(BackendTable[[#This Row],[Intensity]],2)&DEC2BIN(BackendTable[[#This Row],[Speed]],2)&_xlfn.CONCAT(BackendTable[[#This Row],[Light1]:[Light6]])","v":"1111010110"},{"$f":"BIN2HEX(VALUE(MID(BackendTable[[#This Row],[DecString]],1,2)))&BIN2HEX(VALUE(MID(BackendTable[[#This Row],[DecString]],3,4)))&BIN2HEX(VALUE(MID(BackendTable[[#This Row],[DecString]],7,4)))","v":"3D6"},{"$f":"BackendTable[[#This Row],[Intensity]]&\";\"&BackendTable[[#This Row],[Speed]]&\";\"&BackendTable[[#This Row],[Light1]]&\";\"&BackendTable[[#This Row],[Light2]]&\";\"&BackendTable[[#This Row],[Light3]]&\";\"&BackendTable[[#This Row],[Light4]]&\";\"&BackendTable[[#This Row],[Light5]]&\";\"&BackendTable[[#This Row],[Light6]]","v":"3;3;0;1;0;1;1;0"},{"$f":"BackendTable[[#This Row],[HexString]]","v":"3D6"}]
[null,{"$f":"BackendTable[[#This Row],[Pattern]]&\"_\"&BackendTable[[#This Row],[Combo]]","v":"5L_P2_8"},"5L_P2",8,2,2,1,0,1,0,1,0,{"$f":"DEC2BIN(BackendTable[[#This Row],[Intensity]],2)&DEC2BIN(BackendTable[[#This Row],[Speed]],2)&_xlfn.CONCAT(BackendTable[[#This Row],[Light1]:[Light6]])","v":"1010101010"},{"$f":"BIN2HEX(VALUE(MID(BackendTable[[#This Row],[DecString]],1,2)))&BIN2HEX(VALUE(MID(BackendTable[[#This Row],[DecString]],3,4)))&BIN2HEX(VALUE(MID(BackendTable[[#This Row],[DecString]],7,4)))","v":"2AA"},{"$f":"BackendTable[[#This Row],[Intensity]]&\";\"&BackendTable[[#This Row],[Speed]]&\";\"&BackendTable[[#This Row],[Light1]]&\";\"&BackendTable[[#This Row],[Light2]]&\";\"&BackendTable[[#This Row],[Light3]]&\";\"&BackendTable[[#This Row],[Light4]]&\";\"&BackendTable[[#This Row],[Light5]]&\";\"&BackendTable[[#This Row],[Light6]]","v":"2;2;1;0;1;0;1;0"},{"$f":"BackendTable[[#This Row],[HexString]]","v":"2AA"}]
[null,{"$f":"BackendTable[[#This Row],[Pattern]]&\"_\"&BackendTable[[#This Row],[Combo]]","v":"5L_P3_1"},"5L_P3",1,3,2,1,1,0,1,1,0,{"$f":"DEC2BIN(BackendTable[[#This Row],[Intensity]],2)&DEC2BIN(BackendTable[[#This Row],[Speed]],2)&_xlfn.CONCAT(BackendTable[[#This Row],[Light1]:[Light6]])","v":"1110110110"},{"$f":"BIN2HEX(VALUE(MID(BackendTable[[#This Row],[DecString]],1,2)))&BIN2HEX(VALUE(MID(BackendTable[[#This Row],[DecString]],3,4)))&BIN2HEX(VALUE(MID(BackendTable[[#This Row],[DecString]],7,4)))","v":"3B6"},{"$f":"BackendTable[[#This Row],[Intensity]]&\";\"&BackendTable[[#This Row],[Speed]]&\";\"&BackendTable[[#This Row],[Light1]]&\";\"&BackendTable[[#This Row],[Light2]]&\";\"&BackendTable[[#This Row],[Light3]]&\";\"&BackendTable[[#This Row],[Light4]]&\";\"&BackendTable[[#This Row],[Light5]]&\";\"&BackendTable[[#This Row],[Light6]]","v":"3;2;1;1;0;1;1;0"},{"$f":"BackendTable[[#This Row],[HexString]]","v":"3B6"}]
[null,{"$f":"BackendTable[[#This Row],[Pattern]]&\"_\"&BackendTable[[#This Row],[Combo]]","v":"5L_P3_2"},"5L_P3",2,2,1,1,0,1,1,0,0,{"$f":"DEC2BIN(BackendTable[[#This Row],[Intensity]],2)&DEC2BIN(BackendTable[[#This Row],[Speed]],2)&_xlfn.CONCAT(BackendTable[[#This Row],[Light1]:[Light6]])","v":"1001101100"},{"$f":"BIN2HEX(VALUE(MID(BackendTable[[#This Row],[DecString]],1,2)))&BIN2HEX(VALUE(MID(BackendTable[[#This Row],[DecString]],3,4)))&BIN2HEX(VALUE(MID(BackendTable[[#This Row],[DecString]],7,4)))","v":"26C"},{"$f":"BackendTable[[#This Row],[Intensity]]&\";\"&BackendTable[[#This Row],[Speed]]&\";\"&BackendTable[[#This Row],[Light1]]&\";\"&BackendTable[[#This Row],[Light2]]&\";\"&BackendTable[[#This Row],[Light3]]&\";\"&BackendTable[[#This Row],[Light4]]&\";\"&BackendTable[[#This Row],[Light5]]&\";\"&BackendTable[[#This Row],[Light6]]","v":"2;1;1;0;1;1;0;0"},{"$f":"BackendTable[[#This Row],[HexString]]","v":"26C"}]
[null,{"$f":"BackendTable[[#This Row],[Pattern]]&\"_\"&BackendTable[[#This Row],[Combo]]","v":"5L_P3_3"},"5L_P3",3,3,1,0,0,0,0,0,0,{"$f":"DEC2BIN(BackendTable[[#This Row],[Intensity]],2)&DEC2BIN(BackendTable[[#This Row],[Speed]],2)&_xlfn.CONCAT(BackendTable[[#This Row],[Light1]:[Light6]])","v":"1101000000"},{"$f":"BIN2HEX(VALUE(MID(BackendTable[[#This Row],[DecString]],1,2)))&BIN2HEX(VALUE(MID(BackendTable[[#This Row],[DecString]],3,4)))&BIN2HEX(VALUE(MID(BackendTable[[#This Row],[DecString]],7,4)))","v":"340"},{"$f":"BackendTable[[#This Row],[Intensity]]&\";\"&BackendTable[[#This Row],[Speed]]&\";\"&BackendTable[[#This Row],[Light1]]&\";\"&BackendTable[[#This Row],[Light2]]&\";\"&BackendTable[[#This Row],[Light3]]&\";\"&BackendTable[[#This Row],[Light4]]&\";\"&BackendTable[[#This Row],[Light5]]&\";\"&BackendTable[[#This Row],[Light6]]","v":"3;1;0;0;0;0;0;0"},{"$f":"BackendTable[[#This Row],[HexString]]","v":"340"}]
[null,{"$f":"BackendTable[[#This Row],[Pattern]]&\"_\"&BackendTable[[#This Row],[Combo]]","v":"5L_P3_4"},"5L_P3",4,3,3,1,1,0,0,1,0,{"$f":"DEC2BIN(BackendTable[[#This Row],[Intensity]],2)&DEC2BIN(BackendTable[[#This Row],[Speed]],2)&_xlfn.CONCAT(BackendTable[[#This Row],[Light1]:[Light6]])","v":"1111110010"},{"$f":"BIN2HEX(VALUE(MID(BackendTable[[#This Row],[DecString]],1,2)))&BIN2HEX(VALUE(MID(BackendTable[[#This Row],[DecString]],3,4)))&BIN2HEX(VALUE(MID(BackendTable[[#This Row],[DecString]],7,4)))","v":"3F2"},{"$f":"BackendTable[[#This Row],[Intensity]]&\";\"&BackendTable[[#This Row],[Speed]]&\";\"&BackendTable[[#This Row],[Light1]]&\";\"&BackendTable[[#This Row],[Light2]]&\";\"&BackendTable[[#This Row],[Light3]]&\";\"&BackendTable[[#This Row],[Light4]]&\";\"&BackendTable[[#This Row],[Light5]]&\";\"&BackendTable[[#This Row],[Light6]]","v":"3;3;1;1;0;0;1;0"},{"$f":"BackendTable[[#This Row],[HexString]]","v":"3F2"}]
[null,{"$f":"BackendTable[[#This Row],[Pattern]]&\"_\"&BackendTable[[#This Row],[Combo]]","v":"5L_P3_5"},"5L_P3",5,2,2,1,0,1,0,1,0,{"$f":"DEC2BIN(BackendTable[[#This Row],[Intensity]],2)&DEC2BIN(BackendTable[[#This Row],[Speed]],2)&_xlfn.CONCAT(BackendTable[[#This Row],[Light1]:[Light6]])","v":"1010101010"},{"$f":"BIN2HEX(VALUE(MID(BackendTable[[#This Row],[DecString]],1,2)))&BIN2HEX(VALUE(MID(BackendTable[[#This Row],[DecString]],3,4)))&BIN2HEX(VALUE(MID(BackendTable[[#This Row],[DecString]],7,4)))","v":"2AA"},{"$f":"BackendTable[[#This Row],[Intensity]]&\";\"&BackendTable[[#This Row],[Speed]]&\";\"&BackendTable[[#This Row],[Light1]]&\";\"&BackendTable[[#This Row],[Light2]]&\";\"&BackendTable[[#This Row],[Light3]]&\";\"&BackendTable[[#This Row],[Light4]]&\";\"&BackendTable[[#This Row],[Light5]]&\";\"&BackendTable[[#This Row],[Light6]]","v":"2;2;1;0;1;0;1;0"},{"$f":"BackendTable[[#This Row],[HexString]]","v":"2AA"}]
[null,{"$f":"BackendTable[[#This Row],[Pattern]]&\"_\"&BackendTable[[#This Row],[Combo]]","v":"5L_P3_6"},"5L_P3",6,2,2,0,1,0,0,1,0,{"$f":"DEC2BIN(BackendTable[[#This Row],[Intensity]],2)&DEC2BIN(BackendTable[[#This Row],[Speed]],2)&_xlfn.CONCAT(BackendTable[[#This Row],[Light1]:[Light6]])","v":"1010010010"},{"$f":"BIN2HEX(VALUE(MID(BackendTable[[#This Row],[DecString]],1,2)))&BIN2HEX(VALUE(MID(BackendTable[[#This Row],[DecString]],3,4)))&BIN2HEX(VALUE(MID(BackendTable[[#This Row],[DecString]],7,4)))","v":"292"},{"$f":"BackendTable[[#This Row],[Intensity]]&\";\"&BackendTable[[#This Row],[Speed]]&\";\"&BackendTable[[#This Row],[Light1]]&\";\"&BackendTable[[#This Row],[Light2]]&\";\"&BackendTable[[#This Row],[Light3]]&\";\"&BackendTable[[#This Row],[Light4]]&\";\"&BackendTable[[#This Row],[Light5]]&\";\"&BackendTable[[#This Row],[Light6]]","v":"2;2;0;1;0;0;1;0"},{"$f":"BackendTable[[#This Row],[HexString]]","v":"292"}]
[null,{"$f":"BackendTable[[#This Row],[Pattern]]&\"_\"&BackendTable[[#This Row],[Combo]]","v":"5L_P3_7"},"5L_P3",7,1,3,1,0,0,0,0,0,{"$f":"DEC2BIN(BackendTable[[#This Row],[Intensity]],2)&DEC2BIN(BackendTable[[#This Row],[Speed]],2)&_xlfn.CONCAT(BackendTable[[#This Row],[Light1]:[Light6]])","v":"0111100000"},{"$f":"BIN2HEX(VALUE(MID(BackendTable[[#This Row],[DecString]],1,2)))&BIN2HEX(VALUE(MID(BackendTable[[#This Row],[DecString]],3,4)))&BIN2HEX(VALUE(MID(BackendTable[[#This Row],[DecString]],7,4)))","v":"1E0"},{"$f":"BackendTable[[#This Row],[Intensity]]&\";\"&BackendTable[[#This Row],[Speed]]&\";\"&BackendTable[[#This Row],[Light1]]&\";\"&BackendTable[[#This Row],[Light2]]&\";\"&BackendTable[[#This Row],[Light3]]&\";\"&BackendTable[[#This Row],[Light4]]&\";\"&BackendTable[[#This Row],[Light5]]&\";\"&BackendTable[[#This Row],[Light6]]","v":"1;3;1;0;0;0;0;0"},{"$f":"BackendTable[[#This Row],[HexString]]","v":"1E0"}]
[null,{"$f":"BackendTable[[#This Row],[Pattern]]&\"_\"&BackendTable[[#This Row],[Combo]]","v":"5L_P3_8"},"5L_P3",8,1,2,1,1,0,1,0,0,{"$f":"DEC2BIN(BackendTable[[#This Row],[Intensity]],2)&DEC2BIN(BackendTable[[#This Row],[Speed]],2)&_xlfn.CONCAT(BackendTable[[#This Row],[Light1]:[Light6]])","v":"0110110100"},{"$f":"BIN2HEX(VALUE(MID(BackendTable[[#This Row],[DecString]],1,2)))&BIN2HEX(VALUE(MID(BackendTable[[#This Row],[DecString]],3,4)))&BIN2HEX(VALUE(MID(BackendTable[[#This Row],[DecString]],7,4)))","v":"1B4"},{"$f":"BackendTable[[#This Row],[Intensity]]&\";\"&BackendTable[[#This Row],[Speed]]&\";\"&BackendTable[[#This Row],[Light1]]&\";\"&BackendTable[[#This Row],[Light2]]&\";\"&BackendTable[[#This Row],[Light3]]&\";\"&BackendTable[[#This Row],[Light4]]&\";\"&BackendTable[[#This Row],[Light5]]&\";\"&BackendTable[[#This Row],[Light6]]","v":"1;2;1;1;0;1;0;0"},{"$f":"BackendTable[[#This Row],[HexString]]","v":"1B4"}]
[null,{"$f":"BackendTable[[#This Row],[Pattern]]&\"_\"&BackendTable[[#This Row],[Combo]]","v":"6L_P1_1"},"6L_P1",1,3,1,0,0,0,0,1,1,{"$f":"DEC2BIN(BackendTable[[#This Row],[Intensity]],2)&DEC2BIN(BackendTable[[#This Row],[Speed]],2)&_xlfn.CONCAT(BackendTable[[#This Row],[Light1]:[Light6]])","v":"1101000011"},{"$f":"BIN2HEX(VALUE(MID(BackendTable[[#This Row],[DecString]],1,2)))&BIN2HEX(VALUE(MID(BackendTable[[#This Row],[DecString]],3,4)))&BIN2HEX(VALUE(MID(BackendTable[[#This Row],[DecString]],7,4)))","v":"343"},{"$f":"BackendTable[[#This Row],[Intensity]]&\";\"&BackendTable[[#This Row],[Speed]]&\";\"&BackendTable[[#This Row],[Light1]]&\";\"&BackendTable[[#This Row],[Light2]]&\";\"&BackendTable[[#This Row],[Light3]]&\";\"&BackendTable[[#This Row],[Light4]]&\";\"&BackendTable[[#This Row],[Light5]]&\";\"&BackendTable[[#This Row],[Light6]]","v":"3;1;0;0;0;0;1;1"},{"$f":"BackendTable[[#This Row],[HexString]]","v":"343"}]
[null,{"$f":"BackendTable[[#This Row],[Pattern]]&\"_\"&BackendTable[[#This Row],[Combo]]","v":"6L_P1_2"},"6L_P1",2,2,1,1,1,1,0,0,0,{"$f":"DEC2BIN(BackendTable[[#This Row],[Intensity]],2)&DEC2BIN(BackendTable[[#This Row],[Speed]],2)&_xlfn.CONCAT(BackendTable[[#This Row],[Light1]:[Light6]])","v":"1001111000"},{"$f":"BIN2HEX(VALUE(MID(BackendTable[[#This Row],[DecString]],1,2)))&BIN2HEX(VALUE(MID(BackendTable[[#This Row],[DecString]],3,4)))&BIN2HEX(VALUE(MID(BackendTable[[#This Row],[DecString]],7,4)))","v":"278"},{"$f":"BackendTable[[#This Row],[Intensity]]&\";\"&BackendTable[[#This Row],[Speed]]&\";\"&BackendTable[[#This Row],[Light1]]&\";\"&BackendTable[[#This Row],[Light2]]&\";\"&BackendTable[[#This Row],[Light3]]&\";\"&BackendTable[[#This Row],[Light4]]&\";\"&BackendTable[[#This Row],[Light5]]&\";\"&BackendTable[[#This Row],[Light6]]","v":"2;1;1;1;1;0;0;0"},{"$f":"BackendTable[[#This Row],[HexString]]","v":"278"}]
[null,{"$f":"BackendTable[[#This Row],[Pattern]]&\"_\"&BackendTable[[#This Row],[Combo]]","v":"6L_P1_3"},"6L_P1",3,1,2,0,1,1,1,0,0,{"$f":"DEC2BIN(BackendTable[[#This Row],[Intensity]],2)&DEC2BIN(BackendTable[[#This Row],[Speed]],2)&_xlfn.CONCAT(BackendTable[[#This Row],[Light1]:[Light6]])","v":"0110011100"},{"$f":"BIN2HEX(VALUE(MID(BackendTable[[#This Row],[DecString]],1,2)))&BIN2HEX(VALUE(MID(BackendTable[[#This Row],[DecString]],3,4)))&BIN2HEX(VALUE(MID(BackendTable[[#This Row],[DecString]],7,4)))","v":"19C"},{"$f":"BackendTable[[#This Row],[Intensity]]&\";\"&BackendTable[[#This Row],[Speed]]&\";\"&BackendTable[[#This Row],[Light1]]&\";\"&BackendTable[[#This Row],[Light2]]&\";\"&BackendTable[[#This Row],[Light3]]&\";\"&BackendTable[[#This Row],[Light4]]&\";\"&BackendTable[[#This Row],[Light5]]&\";\"&BackendTable[[#This Row],[Light6]]","v":"1;2;0;1;1;1;0;0"},{"$f":"BackendTable[[#This Row],[HexString]]","v":"19C"}]
[null,{"$f":"BackendTable[[#This Row],[Pattern]]&\"_\"&BackendTable[[#This Row],[Combo]]","v":"6L_P1_4"},"6L_P1",4,2,2,1,0,0,0,1,0,{"$f":"DEC2BIN(BackendTable[[#This Row],[Intensity]],2)&DEC2BIN(BackendTable[[#This Row],[Speed]],2)&_xlfn.CONCAT(BackendTable[[#This Row],[Light1]:[Light6]])","v":"1010100010"},{"$f":"BIN2HEX(VALUE(MID(BackendTable[[#This Row],[DecString]],1,2)))&BIN2HEX(VALUE(MID(BackendTable[[#This Row],[DecString]],3,4)))&BIN2HEX(VALUE(MID(BackendTable[[#This Row],[DecString]],7,4)))","v":"2A2"},{"$f":"BackendTable[[#This Row],[Intensity]]&\";\"&BackendTable[[#This Row],[Speed]]&\";\"&BackendTable[[#This Row],[Light1]]&\";\"&BackendTable[[#This Row],[Light2]]&\";\"&BackendTable[[#This Row],[Light3]]&\";\"&BackendTable[[#This Row],[Light4]]&\";\"&BackendTable[[#This Row],[Light5]]&\";\"&BackendTable[[#This Row],[Light6]]","v":"2;2;1;0;0;0;1;0"},{"$f":"BackendTable[[#This Row],[HexString]]","v":"2A2"}]
[null,{"$f":"BackendTable[[#This Row],[Pattern]]&\"_\"&BackendTable[[#This Row],[Combo]]","v":"6L_P1_5"},"6L_P1",5,3,1,0,1,1,1,1,1,{"$f":"DEC2BIN(BackendTable[[#This Row],[Intensity]],2)&DEC2BIN(BackendTable[[#This Row],[Speed]],2)&_xlfn.CONCAT(BackendTable[[#This Row],[Light1]:[Light6]])","v":"1101011111"},{"$f":"BIN2HEX(VALUE(MID(BackendTable[[#This Row],[DecString]],1,2)))&BIN2HEX(VALUE(MID(BackendTable[[#This Row],[DecString]],3,4)))&BIN2HEX(VALUE(MID(BackendTable[[#This Row],[DecString]],7,4)))","v":"35F"},{"$f":"BackendTable[[#This Row],[Intensity]]&\";\"&BackendTable[[#This Row],[Speed]]&\";\"&BackendTable[[#This Row],[Light1]]&\";\"&BackendTable[[#This Row],[Light2]]&\";\"&BackendTable[[#This Row],[Light3]]&\";\"&BackendTable[[#This Row],[Light4]]&\";\"&BackendTable[[#This Row],[Light5]]&\";\"&BackendTable[[#This Row],[Light6]]","v":"3;1;0;1;1;1;1;1"},{"$f":"BackendTable[[#This Row],[HexString]]","v":"35F"}]
[null,{"$f":"BackendTable[[#This Row],[Pattern]]&\"_\"&BackendTable[[#This Row],[Combo]]","v":"6L_P1_6"},"6L_P1",6,1,2,0,1,1,0,1,1,{"$f":"DEC2BIN(BackendTable[[#This Row],[Intensity]],2)&DEC2BIN(BackendTable[[#This Row],[Speed]],2)&_xlfn.CONCAT(BackendTable[[#This Row],[Light1]:[Light6]])","v":"0110011011"},{"$f":"BIN2HEX(VALUE(MID(BackendTable[[#This Row],[DecString]],1,2)))&BIN2HEX(VALUE(MID(BackendTable[[#This Row],[DecString]],3,4)))&BIN2HEX(VALUE(MID(BackendTable[[#This Row],[DecString]],7,4)))","v":"19B"},{"$f":"BackendTable[[#This Row],[Intensity]]&\";\"&BackendTable[[#This Row],[Speed]]&\";\"&BackendTable[[#This Row],[Light1]]&\";\"&BackendTable[[#This Row],[Light2]]&\";\"&BackendTable[[#This Row],[Light3]]&\";\"&BackendTable[[#This Row],[Light4]]&\";\"&BackendTable[[#This Row],[Light5]]&\";\"&BackendTable[[#This Row],[Light6]]","v":"1;2;0;1;1;0;1;1"},{"$f":"BackendTable[[#This Row],[HexString]]","v":"19B"}]
[null,{"$f":"BackendTable[[#This Row],[Pattern]]&\"_\"&BackendTable[[#This Row],[Combo]]","v":"6L_P1_7"},"6L_P1",7,2,1,1,1,0,1,1,0,{"$f":"DEC2BIN(BackendTable[[#This Row],[Intensity]],2)&DEC2BIN(BackendTable[[#This Row],[Speed]],2)&_xlfn.CONCAT(BackendTable[[#This Row],[Light1]:[Light6]])","v":"1001110110"},{"$f":"BIN2HEX(VALUE(MID(BackendTable[[#This Row],[DecString]],1,2)))&BIN2HEX(VALUE(MID(BackendTable[[#This Row],[DecString]],3,4)))&BIN2HEX(VALUE(MID(BackendTable[[#This Row],[DecString]],7,4)))","v":"276"},{"$f":"BackendTable[[#This Row],[Intensity]]&\";\"&BackendTable[[#This Row],[Speed]]&\";\"&BackendTable[[#This Row],[Light1]]&\";\"&BackendTable[[#This Row],[Light2]]&\";\"&BackendTable[[#This Row],[Light3]]&\";\"&BackendTable[[#This Row],[Light4]]&\";\"&BackendTable[[#This Row],[Light5]]&\";\"&BackendTable[[#This Row],[Light6]]","v":"2;1;1;1;0;1;1;0"},{"$f":"BackendTable[[#This Row],[HexString]]","v":"276"}]
[null,{"$f":"BackendTable[[#This Row],[Pattern]]&\"_\"&BackendTable[[#This Row],[Combo]]","v":"6L_P1_8"},"6L_P1",8,3,1,1,1,1,0,1,1,{"$f":"DEC2BIN(BackendTable[[#This Row],[Intensity]],2)&DEC2BIN(BackendTable[[#This Row],[Speed]],2)&_xlfn.CONCAT(BackendTable[[#This Row],[Light1]:[Light6]])","v":"1101111011"},{"$f":"BIN2HEX(VALUE(MID(BackendTable[[#This Row],[DecString]],1,2)))&BIN2HEX(VALUE(MID(BackendTable[[#This Row],[DecString]],3,4)))&BIN2HEX(VALUE(MID(BackendTable[[#This Row],[DecString]],7,4)))","v":"37B"},{"$f":"BackendTable[[#This Row],[Intensity]]&\";\"&BackendTable[[#This Row],[Speed]]&\";\"&BackendTable[[#This Row],[Light1]]&\";\"&BackendTable[[#This Row],[Light2]]&\";\"&BackendTable[[#This Row],[Light3]]&\";\"&BackendTable[[#This Row],[Light4]]&\";\"&BackendTable[[#This Row],[Light5]]&\";\"&BackendTable[[#This Row],[Light6]]","v":"3;1;1;1;1;0;1;1"},{"$f":"BackendTable[[#This Row],[HexString]]","v":"37B"}]
[null,{"$f":"BackendTable[[#This Row],[Pattern]]&\"_\"&BackendTable[[#This Row],[Combo]]","v":"6L_P2_1"},"6L_P2",1,2,3,0,0,0,1,1,1,{"$f":"DEC2BIN(BackendTable[[#This Row],[Intensity]],2)&DEC2BIN(BackendTable[[#This Row],[Speed]],2)&_xlfn.CONCAT(BackendTable[[#This Row],[Light1]:[Light6]])","v":"1011000111"},{"$f":"BIN2HEX(VALUE(MID(BackendTable[[#This Row],[DecString]],1,2)))&BIN2HEX(VALUE(MID(BackendTable[[#This Row],[DecString]],3,4)))&BIN2HEX(VALUE(MID(BackendTable[[#This Row],[DecString]],7,4)))","v":"2C7"},{"$f":"BackendTable[[#This Row],[Intensity]]&\";\"&BackendTable[[#This Row],[Speed]]&\";\"&BackendTable[[#This Row],[Light1]]&\";\"&BackendTable[[#This Row],[Light2]]&\";\"&BackendTable[[#This Row],[Light3]]&\";\"&BackendTable[[#This Row],[Light4]]&\";\"&BackendTable[[#This Row],[Light5]]&\";\"&BackendTable[[#This Row],[Light6]]","v":"2;3;0;0;0;1;1;1"},{"$f":"BackendTable[[#This Row],[HexString]]","v":"2C7"}]
[null,{"$f":"BackendTable[[#This Row],[Pattern]]&\"_\"&BackendTable[[#This Row],[Combo]]","v":"6L_P2_2"},"6L_P2",2,2,3,1,1,1,0,0,1,{"$f":"DEC2BIN(BackendTable[[#This Row],[Intensity]],2)&DEC2BIN(BackendTable[[#This Row],[Speed]],2)&_xlfn.CONCAT(BackendTable[[#This Row],[Light1]:[Light6]])","v":"1011111001"},{"$f":"BIN2HEX(VALUE(MID(BackendTable[[#This Row],[DecString]],1,2)))&BIN2HEX(VALUE(MID(BackendTable[[#This Row],[DecString]],3,4)))&BIN2HEX(VALUE(MID(BackendTable[[#This Row],[DecString]],7,4)))","v":"2F9"},{"$f":"BackendTable[[#This Row],[Intensity]]&\";\"&BackendTable[[#This Row],[Speed]]&\";\"&BackendTable[[#This Row],[Light1]]&\";\"&BackendTable[[#This Row],[Light2]]&\";\"&BackendTable[[#This Row],[Light3]]&\";\"&BackendTable[[#This Row],[Light4]]&\";\"&BackendTable[[#This Row],[Light5]]&\";\"&BackendTable[[#This Row],[Light6]]","v":"2;3;1;1;1;0;0;1"},{"$f":"BackendTable[[#This Row],[HexString]]","v":"2F9"}]
[null,{"$f":"BackendTable[[#This Row],[Pattern]]&\"_\"&BackendTable[[#This Row],[Combo]]","v":"6L_P2_3"},"6L_P2",3,2,2,1,1,1,0,1,0,{"$f":"DEC2BIN(BackendTable[[#This Row],[Intensity]],2)&DEC2BIN(BackendTable[[#This Row],[Speed]],2)&_xlfn.CONCAT(BackendTable[[#This Row],[Light1]:[Light6]])","v":"1010111010"},{"$f":"BIN2HEX(VALUE(MID(BackendTable[[#This Row],[DecString]],1,2)))&BIN2HEX(VALUE(MID(BackendTable[[#This Row],[DecString]],3,4)))&BIN2HEX(VALUE(MID(BackendTable[[#This Row],[DecString]],7,4)))","v":"2BA"},{"$f":"BackendTable[[#This Row],[Intensity]]&\";\"&BackendTable[[#This Row],[Speed]]&\";\"&BackendTable[[#This Row],[Light1]]&\";\"&BackendTable[[#This Row],[Light2]]&\";\"&BackendTable[[#This Row],[Light3]]&\";\"&BackendTable[[#This Row],[Light4]]&\";\"&BackendTable[[#This Row],[Light5]]&\";\"&BackendTable[[#This Row],[Light6]]","v":"2;2;1;1;1;0;1;0"},{"$f":"BackendTable[[#This Row],[HexString]]","v":"2BA"}]
[null,{"$f":"BackendTable[[#This Row],[Pattern]]&\"_\"&BackendTable[[#This Row],[Combo]]","v":"6L_P2_4"},"6L_P2",4,2,1,1,0,1,1,1,0,{"$f":"DEC2BIN(BackendTable[[#This Row],[Intensity]],2)&DEC2BIN(BackendTable[[#This Row],[Speed]],2)&_xlfn.CONCAT(BackendTable[[#This Row],[Light1]:[Light6]])","v":"1001101110"},{"$f":"BIN2HEX(VALUE(MID(BackendTable[[#This Row],[DecString]],1,2)))&BIN2HEX(VALUE(MID(BackendTable[[#This Row],[DecString]],3,4)))&BIN2HEX(VALUE(MID(BackendTable[[#This Row],[DecString]],7,4)))","v":"26E"},{"$f":"BackendTable[[#This Row],[Intensity]]&\";\"&BackendTable[[#This Row],[Speed]]&\";\"&BackendTable[[#This Row],[Light1]]&\";\"&BackendTable[[#This Row],[Light2]]&\";\"&BackendTable[[#This Row],[Light3]]&\";\"&BackendTable[[#This Row],[Light4]]&\";\"&BackendTable[[#This Row],[Light5]]&\";\"&BackendTable[[#This Row],[Light6]]","v":"2;1;1;0;1;1;1;0"},{"$f":"BackendTable[[#This Row],[HexString]]","v":"26E"}]
[null,{"$f":"BackendTable[[#This Row],[Pattern]]&\"_\"&BackendTable[[#This Row],[Combo]]","v":"6L_P2_5"},"6L_P2",5,3,1,0,0,0,0,0,0,{"$f":"DEC2BIN(BackendTable[[#This Row],[Intensity]],2)&DEC2BIN(BackendTable[[#This Row],[Speed]],2)&_xlfn.CONCAT(BackendTable[[#This Row],[Light1]:[Light6]])","v":"1101000000"},{"$f":"BIN2HEX(VALUE(MID(BackendTable[[#This Row],[DecString]],1,2)))&BIN2HEX(VALUE(MID(BackendTable[[#This Row],[DecString]],3,4)))&BIN2HEX(VALUE(MID(BackendTable[[#This Row],[DecString]],7,4)))","v":"340"},{"$f":"BackendTable[[#This Row],[Intensity]]&\";\"&BackendTable[[#This Row],[Speed]]&\";\"&BackendTable[[#This Row],[Light1]]&\";\"&BackendTable[[#This Row],[Light2]]&\";\"&BackendTable[[#This Row],[Light3]]&\";\"&BackendTable[[#This Row],[Light4]]&\";\"&BackendTable[[#This Row],[Light5]]&\";\"&BackendTable[[#This Row],[Light6]]","v":"3;1;0;0;0;0;0;0"},{"$f":"BackendTable[[#This Row],[HexString]]","v":"340"}]
[null,{"$f":"BackendTable[[#This Row],[Pattern]]&\"_\"&BackendTable[[#This Row],[Combo]]","v":"6L_P2_6"},"6L_P2",6,2,1,0,1,0,0,1,1,{"$f":"DEC2BIN(BackendTable[[#This Row],[Intensity]],2)&DEC2BIN(BackendTable[[#This Row],[Speed]],2)&_xlfn.CONCAT(BackendTable[[#This Row],[Light1]:[Light6]])","v":"1001010011"},{"$f":"BIN2HEX(VALUE(MID(BackendTable[[#This Row],[DecString]],1,2)))&BIN2HEX(VALUE(MID(BackendTable[[#This Row],[DecString]],3,4)))&BIN2HEX(VALUE(MID(BackendTable[[#This Row],[DecString]],7,4)))","v":"253"},{"$f":"BackendTable[[#This Row],[Intensity]]&\";\"&BackendTable[[#This Row],[Speed]]&\";\"&BackendTable[[#This Row],[Light1]]&\";\"&BackendTable[[#This Row],[Light2]]&\";\"&BackendTable[[#This Row],[Light3]]&\";\"&BackendTable[[#This Row],[Light4]]&\";\"&BackendTable[[#This Row],[Light5]]&\";\"&BackendTable[[#This Row],[Light6]]","v":"2;1;0;1;0;0;1;1"},{"$f":"BackendTable[[#This Row],[HexString]]","v":"253"}]
[null,{"$f":"BackendTable[[#This Row],[Pattern]]&\"_\"&BackendTable[[#This Row],[Combo]]","v":"6L_P2_7"},"6L_P2",7,3,3,1,0,1,0,1,1,{"$f":"DEC2BIN(BackendTable[[#This Row],[Intensity]],2)&DEC2BIN(BackendTable[[#This Row],[Speed]],2)&_xlfn.CONCAT(BackendTable[[#This Row],[Light1]:[Light6]])","v":"1111101011"},{"$f":"BIN2HEX(VALUE(MID(BackendTable[[#This Row],[DecString]],1,2)))&BIN2HEX(VALUE(MID(BackendTable[[#This Row],[DecString]],3,4)))&BIN2HEX(VALUE(MID(BackendTable[[#This Row],[DecString]],7,4)))","v":"3EB"},{"$f":"BackendTable[[#This Row],[Intensity]]&\";\"&BackendTable[[#This Row],[Speed]]&\";\"&BackendTable[[#This Row],[Light1]]&\";\"&BackendTable[[#This Row],[Light2]]&\";\"&BackendTable[[#This Row],[Light3]]&\";\"&BackendTable[[#This Row],[Light4]]&\";\"&BackendTable[[#This Row],[Light5]]&\";\"&BackendTable[[#This Row],[Light6]]","v":"3;3;1;0;1;0;1;1"},{"$f":"BackendTable[[#This Row],[HexString]]","v":"3EB"}]
[null,{"$f":"BackendTable[[#This Row],[Pattern]]&\"_\"&BackendTable[[#This Row],[Combo]]","v":"6L_P2_8"},"6L_P2",8,2,2,0,1,1,0,1,0,{"$f":"DEC2BIN(BackendTable[[#This Row],[Intensity]],2)&DEC2BIN(BackendTable[[#This Row],[Speed]],2)&_xlfn.CONCAT(BackendTable[[#This Row],[Light1]:[Light6]])","v":"1010011010"},{"$f":"BIN2HEX(VALUE(MID(BackendTable[[#This Row],[DecString]],1,2)))&BIN2HEX(VALUE(MID(BackendTable[[#This Row],[DecString]],3,4)))&BIN2HEX(VALUE(MID(BackendTable[[#This Row],[DecString]],7,4)))","v":"29A"},{"$f":"BackendTable[[#This Row],[Intensity]]&\";\"&BackendTable[[#This Row],[Speed]]&\";\"&BackendTable[[#This Row],[Light1]]&\";\"&BackendTable[[#This Row],[Light2]]&\";\"&BackendTable[[#This Row],[Light3]]&\";\"&BackendTable[[#This Row],[Light4]]&\";\"&BackendTable[[#This Row],[Light5]]&\";\"&BackendTable[[#This Row],[Light6]]","v":"2;2;0;1;1;0;1;0"},{"$f":"BackendTable[[#This Row],[HexString]]","v":"29A"}]
[null,{"$f":"BackendTable[[#This Row],[Pattern]]&\"_\"&BackendTable[[#This Row],[Combo]]","v":"6L_P3_1"},"6L_P3",1,3,1,0,0,0,0,1,1,{"$f":"DEC2BIN(BackendTable[[#This Row],[Intensity]],2)&DEC2BIN(BackendTable[[#This Row],[Speed]],2)&_xlfn.CONCAT(BackendTable[[#This Row],[Light1]:[Light6]])","v":"1101000011"},{"$f":"BIN2HEX(VALUE(MID(BackendTable[[#This Row],[DecString]],1,2)))&BIN2HEX(VALUE(MID(BackendTable[[#This Row],[DecString]],3,4)))&BIN2HEX(VALUE(MID(BackendTable[[#This Row],[DecString]],7,4)))","v":"343"},{"$f":"BackendTable[[#This Row],[Intensity]]&\";\"&BackendTable[[#This Row],[Speed]]&\";\"&BackendTable[[#This Row],[Light1]]&\";\"&BackendTable[[#This Row],[Light2]]&\";\"&BackendTable[[#This Row],[Light3]]&\";\"&BackendTable[[#This Row],[Light4]]&\";\"&BackendTable[[#This Row],[Light5]]&\";\"&BackendTable[[#This Row],[Light6]]","v":"3;1;0;0;0;0;1;1"},{"$f":"BackendTable[[#This Row],[HexString]]","v":"343"}]
[null,{"$f":"BackendTable[[#This Row],[Pattern]]&\"_\"&BackendTable[[#This Row],[Combo]]","v":"6L_P3_2"},"6L_P3",2,2,3,0,0,1,1,1,1,{"$f":"DEC2BIN(BackendTable[[#This Row],[Intensity]],2)&DEC2BIN(BackendTable[[#This Row],[Speed]],2)&_xlfn.CONCAT(BackendTable[[#This Row],[Light1]:[Light6]])","v":"1011001111"},{"$f":"BIN2HEX(VALUE(MID(BackendTable[[#This Row],[DecString]],1,2)))&BIN2HEX(VALUE(MID(BackendTable[[#This Row],[DecString]],3,4)))&BIN2HEX(VALUE(MID(BackendTable[[#This Row],[DecString]],7,4)))","v":"2CF"},{"$f":"BackendTable[[#This Row],[Intensity]]&\";\"&BackendTable[[#This Row],[Speed]]&\";\"&BackendTable[[#This Row],[Light1]]&\";\"&BackendTable[[#This Row],[Light2]]&\";\"&BackendTable[[#This Row],[Light3]]&\";\"&BackendTable[[#This Row],[Light4]]&\";\"&BackendTable[[#This Row],[Light5]]&\";\"&BackendTable[[#This Row],[Light6]]","v":"2;3;0;0;1;1;1;1"},{"$f":"BackendTable[[#This Row],[HexString]]","v":"2CF"}]
[null,{"$f":"BackendTable[[#This Row],[Pattern]]&\"_\"&BackendTable[[#This Row],[Combo]]","v":"6L_P3_3"},"6L_P3",3,2,1,1,1,0,1,0,0,{"$f":"DEC2BIN(BackendTable[[#This Row],[Intensity]],2)&DEC2BIN(BackendTable[[#This Row],[Speed]],2)&_xlfn.CONCAT(BackendTable[[#This Row],[Light1]:[Light6]])","v":"1001110100"},{"$f":"BIN2HEX(VALUE(MID(BackendTable[[#This Row],[DecString]],1,2)))&BIN2HEX(VALUE(MID(BackendTable[[#This Row],[DecString]],3,4)))&BIN2HEX(VALUE(MID(BackendTable[[#This Row],[DecString]],7,4)))","v":"274"},{"$f":"BackendTable[[#This Row],[Intensity]]&\";\"&BackendTable[[#This Row],[Speed]]&\";\"&BackendTable[[#This Row],[Light1]]&\";\"&BackendTable[[#This Row],[Light2]]&\";\"&BackendTable[[#This Row],[Light3]]&\";\"&BackendTable[[#This Row],[Light4]]&\";\"&BackendTable[[#This Row],[Light5]]&\";\"&BackendTable[[#This Row],[Light6]]","v":"2;1;1;1;0;1;0;0"},{"$f":"BackendTable[[#This Row],[HexString]]","v":"274"}]
[null,{"$f":"BackendTable[[#This Row],[Pattern]]&\"_\"&BackendTable[[#This Row],[Combo]]","v":"6L_P3_4"},"6L_P3",4,3,3,1,0,0,1,0,0,{"$f":"DEC2BIN(BackendTable[[#This Row],[Intensity]],2)&DEC2BIN(BackendTable[[#This Row],[Speed]],2)&_xlfn.CONCAT(BackendTable[[#This Row],[Light1]:[Light6]])","v":"1111100100"},{"$f":"BIN2HEX(VALUE(MID(BackendTable[[#This Row],[DecString]],1,2)))&BIN2HEX(VALUE(MID(BackendTable[[#This Row],[DecString]],3,4)))&BIN2HEX(VALUE(MID(BackendTable[[#This Row],[DecString]],7,4)))","v":"3E4"},{"$f":"BackendTable[[#This Row],[Intensity]]&\";\"&BackendTable[[#This Row],[Speed]]&\";\"&BackendTable[[#This Row],[Light1]]&\";\"&BackendTable[[#This Row],[Light2]]&\";\"&BackendTable[[#This Row],[Light3]]&\";\"&BackendTable[[#This Row],[Light4]]&\";\"&BackendTable[[#This Row],[Light5]]&\";\"&BackendTable[[#This Row],[Light6]]","v":"3;3;1;0;0;1;0;0"},{"$f":"BackendTable[[#This Row],[HexString]]","v":"3E4"}]
[null,{"$f":"BackendTable[[#This Row],[Pattern]]&\"_\"&BackendTable[[#This Row],[Combo]]","v":"6L_P3_5"},"6L_P3",5,1,3,1,1,1,1,0,1,{"$f":"DEC2BIN(BackendTable[[#This Row],[Intensity]],2)&DEC2BIN(BackendTable[[#This Row],[Speed]],2)&_xlfn.CONCAT(BackendTable[[#This Row],[Light1]:[Light6]])","v":"0111111101"},{"$f":"BIN2HEX(VALUE(MID(BackendTable[[#This Row],[DecString]],1,2)))&BIN2HEX(VALUE(MID(BackendTable[[#This Row],[DecString]],3,4)))&BIN2HEX(VALUE(MID(BackendTable[[#This Row],[DecString]],7,4)))","v":"1FD"},{"$f":"BackendTable[[#This Row],[Intensity]]&\";\"&BackendTable[[#This Row],[Speed]]&\";\"&BackendTable[[#This Row],[Light1]]&\";\"&BackendTable[[#This Row],[Light2]]&\";\"&BackendTable[[#This Row],[Light3]]&\";\"&BackendTable[[#This Row],[Light4]]&\";\"&BackendTable[[#This Row],[Light5]]&\";\"&BackendTable[[#This Row],[Light6]]","v":"1;3;1;1;1;1;0;1"},{"$f":"BackendTable[[#This Row],[HexString]]","v":"1FD"}]
[null,{"$f":"BackendTable[[#This Row],[Pattern]]&\"_\"&BackendTable[[#This Row],[Combo]]","v":"6L_P3_6"},"6L_P3",6,3,3,0,0,0,1,0,0,{"$f":"DEC2BIN(BackendTable[[#This Row],[Intensity]],2)&DEC2BIN(BackendTable[[#This Row],[Speed]],2)&_xlfn.CONCAT(BackendTable[[#This Row],[Light1]:[Light6]])","v":"1111000100"},{"$f":"BIN2HEX(VALUE(MID(BackendTable[[#This Row],[DecString]],1,2)))&BIN2HEX(VALUE(MID(BackendTable[[#This Row],[DecString]],3,4)))&BIN2HEX(VALUE(MID(BackendTable[[#This Row],[DecString]],7,4)))","v":"3C4"},{"$f":"BackendTable[[#This Row],[Intensity]]&\";\"&BackendTable[[#This Row],[Speed]]&\";\"&BackendTable[[#This Row],[Light1]]&\";\"&BackendTable[[#This Row],[Light2]]&\";\"&BackendTable[[#This Row],[Light3]]&\";\"&BackendTable[[#This Row],[Light4]]&\";\"&BackendTable[[#This Row],[Light5]]&\";\"&BackendTable[[#This Row],[Light6]]","v":"3;3;0;0;0;1;0;0"},{"$f":"BackendTable[[#This Row],[HexString]]","v":"3C4"}]
[null,{"$f":"BackendTable[[#This Row],[Pattern]]&\"_\"&BackendTable[[#This Row],[Combo]]","v":"6L_P3_7"},"6L_P3",7,3,1,1,1,1,1,0,1,{"$f":"DEC2BIN(BackendTable[[#This Row],[Intensity]],2)&DEC2BIN(BackendTable[[#This Row],[Speed]],2)&_xlfn.CONCAT(BackendTable[[#This Row],[Light1]:[Light6]])","v":"1101111101"},{"$f":"BIN2HEX(VALUE(MID(BackendTable[[#This Row],[DecString]],1,2)))&BIN2HEX(VALUE(MID(BackendTable[[#This Row],[DecString]],3,4)))&BIN2HEX(VALUE(MID(BackendTable[[#This Row],[DecString]],7,4)))","v":"37D"},{"$f":"BackendTable[[#This Row],[Intensity]]&\";\"&BackendTable[[#This Row],[Speed]]&\";\"&BackendTable[[#This Row],[Light1]]&\";\"&BackendTable[[#This Row],[Light2]]&\";\"&BackendTable[[#This Row],[Light3]]&\";\"&BackendTable[[#This Row],[Light4]]&\";\"&BackendTable[[#This Row],[Light5]]&\";\"&BackendTable[[#This Row],[Light6]]","v":"3;1;1;1;1;1;0;1"},{"$f":"BackendTable[[#This Row],[HexString]]","v":"37D"}]
[null,{"$f":"BackendTable[[#This Row],[Pattern]]&\"_\"&BackendTable[[#This Row],[Combo]]","v":"6L_P3_8"},"6L_P3",8,2,2,1,0,1,1,1,0,{"$f":"DEC2BIN(BackendTable[[#This Row],[Intensity]],2)&DEC2BIN(BackendTable[[#This Row],[Speed]],2)&_xlfn.CONCAT(BackendTable[[#This Row],[Light1]:[Light6]])","v":"1010101110"},{"$f":"BIN2HEX(VALUE(MID(BackendTable[[#This Row],[DecString]],1,2)))&BIN2HEX(VALUE(MID(BackendTable[[#This Row],[DecString]],3,4)))&BIN2HEX(VALUE(MID(BackendTable[[#This Row],[DecString]],7,4)))","v":"2AE"},{"$f":"BackendTable[[#This Row],[Intensity]]&\";\"&BackendTable[[#This Row],[Speed]]&\";\"&BackendTable[[#This Row],[Light1]]&\";\"&BackendTable[[#This Row],[Light2]]&\";\"&BackendTable[[#This Row],[Light3]]&\";\"&BackendTable[[#This Row],[Light4]]&\";\"&BackendTable[[#This Row],[Light5]]&\";\"&BackendTable[[#This Row],[Light6]]","v":"2;2;1;0;1;1;1;0"},{"$f":"BackendTable[[#This Row],[HexString]]","v":"2AE"}]

{"sheet":"Data In","index":4,"n_rows":22,"n_cols":12,"rows_kept":22,"cut":false,"hidden":false,"merged":[[0,0,0,9],[1,0,1,9],[2,0,2,10],[5,0,5,10]]}
[{"$f":"TT!O39","v":"Data In (From Source)"},null,null,null,null,null,null,null,null,null,"update"]
[{"$f":"TT!O40","v":"Data coming from the current data source will appear below as it is received."}]
[{"$f":"TT!O41","v":"Current Data"}]
[{"$f":"TT!O42","v":"Time"},"CH1","CH2","CH3","CH4","CH5","CH6","CH7","CH8","CH9","CH10"]
[]
[{"$f":"TT!O43","v":"Historical Data"}]
[{"$f":"IF(A4=\"\",\"\",A4)","v":"Time"},{"$f":"IF(B4=\"\",\"\",B4)","v":"CH1"},{"$f":"IF(C4=\"\",\"\",C4)","v":"CH2"},{"$f":"IF(D4=\"\",\"\",D4)","v":"CH3"},{"$f":"IF(E4=\"\",\"\",E4)","v":"CH4"},"CH5",{"$f":"IF(G4=\"\",\"\",G4)","v":"CH6"},{"$f":"IF(H4=\"\",\"\",H4)","v":"CH7"},{"$f":"IF(I4=\"\",\"\",I4)","v":"CH8"},{"$f":"IF(J4=\"\",\"\",J4)","v":"CH9"},{"$f":"IF(K4=\"\",\"\",K4)","v":"CH10"}]
[]
[]
[]
[]
[]
[]
[]
[]
[]
[]
[]
[]
[]
[]
[null,null,null,null,null,null,null,null,null,null,null,{"$f":"TT!O44","v":"◀ Newest"}]

{"sheet":"Data Out","index":5,"n_rows":5,"n_cols":11,"rows_kept":5,"cut":false,"hidden":false,"merged":[[0,0,0,9],[1,0,1,9]]}
[{"$f":"TT!O45","v":"Data Out (To Device)"},null,null,null,null,null,null,null,null,null,"update"]
[{"$f":"TT!O46","v":"Data entered into the channels below will be sent to the currently connected device as a comma-delimited string."}]
[]
[{"$f":"TT!$O$47","v":"Command"},{"$f":"TT!$O$16","v":"Loop"},{"$f":"TT!$O48","v":"ActionR1"},{"$f":"TT!$O49","v":"ActionR2"},{"$f":"TT!$O50","v":"ActionR3"},{"$f":"TT!$O51","v":"ActionR4"},{"$f":"TT!$O52","v":"ActionR5"},{"$f":"TT!$O53","v":"ActionR6"},{"$f":"TT!$O54","v":"ActionR7"},{"$f":"TT!$O55","v":"ActionR8"}]
[{"$f":"Backend!S20","v":"#pause"},{"$f":"Backend!S21","v":0},{"$f":"IF(CommandCell=\"#pause\",140,INDEX(Table_ShowIS[HexString],MATCH(VALUE(RIGHT('Data Out'!C$4,1)),Table_ShowIS[Row],0)))","v":140},{"$f":"IF(CommandCell=\"#pause\",140,INDEX(Table_ShowIS[HexString],MATCH(VALUE(RIGHT('Data Out'!D$4,1)),Table_ShowIS[Row],0)))","v":140},{"$f":"IF(CommandCell=\"#pause\",140,INDEX(Table_ShowIS[HexString],MATCH(VALUE(RIGHT('Data Out'!E$4,1)),Table_ShowIS[Row],0)))","v":140},{"$f":"IF(CommandCell=\"#pause\",140,INDEX(Table_ShowIS[HexString],MATCH(VALUE(RIGHT('Data Out'!F$4,1)),Table_ShowIS[Row],0)))","v":140},{"$f":"IF(CommandCell=\"#pause\",140,INDEX(Table_ShowIS[HexString],MATCH(VALUE(RIGHT('Data Out'!G$4,1)),Table_ShowIS[Row],0)))","v":140},{"$f":"IF(CommandCell=\"#pause\",140,INDEX(Table_ShowIS[HexString],MATCH(VALUE(RIGHT('Data Out'!H$4,1)),Table_ShowIS[Row],0)))","v":140},{"$f":"IF(CommandCell=\"#pause\",140,INDEX(Table_ShowIS[HexString],MATCH(VALUE(RIGHT('Data Out'!I$4,1)),Table_ShowIS[Row],0)))","v":140},{"$f":"IF(CommandCell=\"#pause\",140,INDEX(Table_ShowIS[HexString],MATCH(VALUE(RIGHT('Data Out'!J$4,1)),Table_ShowIS[Row],0)))","v":140}]

{"sheet":"Settings","index":6,"n_rows":12,"n_cols":8,"rows_kept":12,"cut":false,"hidden":false,"merged":[[0,0,0,6],[1,0,1,6],[11,0,11,6]]}
[{"$f":"TT!O56","v":"Workbook Settings"},null,null,null,null,null,null,"update"]
[{"$f":"TT!O57","v":"Settings below will affect how data is read into the current workbook from data sources. Clear a field's contents to revert to its default setting."}]
[]
[{"$f":"TT!O58","v":"Data interval (ms):"},"150",10]
[]
[{"$f":"TT!O59","v":"Data rows:"},"15",15]
[]
[{"$f":"TT!O60","v":"Data channels:"},"10"]
[]
[{"$f":"TT!O61","v":"Data Orientation:"},"Newest last"]
[]
[{"$f":"TT!O62","v":"WARNING: Changing settings may result in the loss of content and/or custom formatting in the Data In and Data Out worksheets. Always save before changing values."}]